{"text_format":"1","workbook":"xlsx","n_sheets":41,"sheets":["Rennerslijst Giro","De Freddies","FC RAFTEN","De Roze 12","Le Capre Di Montagna","De Roze Janetten","U","Jeff","PADT","Paperboys","Il Krieperi Disoccupato","The Dolphen","Squadra Parcheggio","WELK","De Bakkers","De VACCAreurs","Totaalstand","San Lorenzo- San Remo","Albenga-Genua","Rapallo-Sestri Levante","Chiavari-La Spezia","La Spezia-Abetone","Montecatini-Castiglione","Grosseto-Fiuggi","Fiuggi-Campitello Matese","Benevento-San Giorgio","Civitanova Marche-Forli","Forli-Imola","Imola-Vicenza","Montecchio Maggiore-Jesolo","Treviso-Valdobbiadene","Marostica-Madonna","Pinzolo-Aprica","Tirano-Lugano","Melide-Verbania","Gravellona Toce-Cervinia","Saint.Vincent-Sestriere","Turijn-Milaan","Eindklassement renners","Pronostiekers","Deelnemende Renners"],"not_rendered":{"charts":0,"images":0,"macros":1,"external_links":0,"defined_names":0,"comments":0,"pivot_tables":0},"unopened":[],"bounds":{"document_bytes":16777216,"sheet_cells":100000,"rows_first":2000,"rows_last":500,"rows_between":2000,"halvings":0,"cell_chars":16384,"cell_head_chars":4096},"cells_cut":0,"cells_raw":0,"read":"whole","date_system":"1900"}

{"sheet":"Rennerslijst Giro","index":0,"n_rows":603,"n_cols":3,"rows_kept":603,"cut":false,"hidden":false,"merged":[]}
[]
[null,"AG2R - LA Mondiale"]
[1,"BARDET Romain",1030]
[2,"PERAUD Jean-Christophe",938]
[3,"POZZOVIVO Domenico",888]
[4,"VUILLERMOZ Alexis",518]
[5,"BAKELANTS Jan",508]
[6,"DUMOULIN Samuel",489]
[7,"NOCENTINI Rinaldo",371]
[8,"GASTAUER Ben",359]
[9,"GOUGEARD Alexis",318]
[10,"MONTAGUTI Matteo",311]
[11,"CHEREL Mikael",195]
[12,"RIBLON Christophe",183]
[13,"DUPONT Hubert",177]
[14,"MONDORY Lloyd",172]
[15,"KADRI Blel",125]
[16,"HOULE Hugo",124]
[17,"DANIEL Maxime",117]
[18,"LATOUR Pierre-Roger",116]
[19,"TURGOT Sébastien",99]
[20,"BERARD Julien",97]
[21,"MINARD Sébastien",94]
[22,"BAGDONAS Gediminas",82]
[23,"JAUREGUI Quentin",81]
[24,"VANSUMMEREN Johan",80]
[25,"GAUDIN Damien",66]
[26,"GRETSCH Patrick",51]
[27,"BETANCUR GOMEZ Carlos Alberto",45]
[28,"BONNAFOND Guillaume",30]
[29,"DOMONT Axel",30]
[]
[null,"Androni Giocattoli"]
[30,"PELLIZOTTI Franco",477]
[31,"GATTO Oscar",268]
[32,"TVETCOV Serghei",255]
[33,"ZILIOLI Gianfranco",177]
[34,"APPOLLONIO Davide",120]
[35,"BENFATTO Marco",112]
[36,"PADOUR Frantisek",108]
[37,"CHICCHI Francesco",80]
[38,"TALIANI Alessio",74]
[39,"STORTONI Simone",70]
[40,"GALVIZ GARCIA Carlos Johan",67]
[41,"RODRIGUEZ ORTIZ Jackson Jesus",64]
[42,"TABORRE Fabio",55]
[43,"DALL'ANTONIA Tiziano",37]
[44,"GODOY Yonder Eduardo",32]
[45,"BANDIERA Marco",30]
[46,"FRAPPORTI Marco",27]
[47,"SELLA Emanuele",26]
[48,"EBSEN John Kronborg",18]
[]
[null,"Astana Pro Team"]
[49,"NIBALI Vincenzo",2017]
[50,"ARU Fabio",1123]
[51,"BOOM Lars",634]
[52,"FUGLSANG Jakob",586]
[53,"TAARAMÄE Rein",509]
[54,"SANCHEZ GIL Luis Leon",439]
[55,"AGNOLI Valerio",409]
[56,"GUARDINI Andrea",391]
[57,"LUTSENKO Alexey",330]
[58,"CATALDO Dario",329]
[59,"LANDA MEANA Mikel",328]
[60,"GRIVKO Andriy",291]
[61,"SCARPONI Michele",236]
[62,"BOZIC Borut",204]
[63,"KANGERT Tanel",189]
[64,"TIRALONGO Paolo",186]
[65,"ZEITS Andrey",184]
[66,"DE VREESE Laurens",183]
[67,"WESTRA Lieuwe",181]
[68,"ROSA Diego",170]
[69,"DYACHENKO Alexandr",134]
[70,"TLEUBAYEV Ruslan",115]
[71,"MALACARNE Davide",94]
[72,"LOPEZ MORENO Miguel Angel",89]
[73,"GRUZDEV Dmitriy",79]
[74,"KAMYSHEV Arman",65]
[75,"FOMINYKH Daniil",54]
[76,"KOZHATAYEV Bakhtiyar",46]
[77,"VANOTTI Alessandro",40]
[78,"AYAZBAYEV Maxat",39]
[]
[null,"Bardiani – CSF"]
[79,"COLBRELLI Sonny",561]
[80,"BONGIORNO Francesco Manuel",365]
[81,"ZARDINI Edoardo",363]
[82,"BATTAGLIN Enrico",332]
[83,"PIRAZZI Stefano",206]
[84,"CHIRICO Luca",174]
[85,"RUFFONI Nicola",133]
[86,"PIECHELE Andrea",92]
[87,"BARBIN Enrico",84]
[88,"BOEM Nicola",53]
[89,"ANDREETTA Simone",26]
[90,"SIMION Paolo",5]
[91,"STERBINI Luca",5]
[92,"TONELLI Alessandro",3]
[93,"STERBINI Simone",1]
[]
[null,"BMC Racing Team"]
[94,"VAN AVERMAET Greg",1689]
[95,"GILBERT Philippe",1423]
[96,"VAN GARDEREN Tejay",1024]
[97,"DENNIS Rohan",803]
[98,"EVANS Cadel",785]
[99,"SANCHEZ GONZALEZ Samuel",596]
[100,"DRUCKER Jempy",594]
[101,"CARUSO Damiano",568]
[102,"HERMANS Ben",491]
[103,"DILLIER Silvan",461]
[104,"OSS Daniel",356]
[105,"DE MARCHI Alessandro",332]
[106,"KÜNG Stefan",261]
[107,"TEUNS Dylan",245]
[108,"VELITS Peter",220]
[109,"BOOKWALTER Brent",197]
[110,"ATAPUMA HURTADO Jhon Darwin",174]
[111,"QUINZIATO Manuel",172]
[112,"STETINA Peter",170]
[113,"BURGHARDT Marcus",163]
[114,"WYSS Danilo",151]
[115,"ROSSKOPF Joey",150]
[116,"MOINARD Amaël",131]
[117,"ZABEL Rick",131]
[118,"SCHÄR Michael",126]
[119,"FLAKEMORE Campbell",103]
[120,"PHINNEY Taylor",90]
[121,"SENNI Manuel",36]
[122,"LODEWYCK Klaas",33]
[]
[null,"CCC Sprandi – Polkowice"]
[123,"REBELLIN Davide",833]
[124,"PATERSKI Maciej",792]
[125,"BOLE Grega",723]
[126,"RUTKIEWICZ Marek",203]
[127,"SAMOILAU Branislau",201]
[128,"MATYSIAK Bartlomiej",165]
[129,"TACIAK Mateusz",162]
[130,"KUREK Adrian",136]
[131,"MARYCZ Jaroslaw",123]
[132,"SZMYD Sylwester",111]
[133,"HIRT Jan",107]
[134,"MIHAYLOV Nikolay",83]
[135,"KIENDYS Tomasz",64]
[136,"OWSIAN Lukasz",62]
[137,"SCHUMACHER Stefan",60]
[138,"DELLE STELLE Cristian",48]
[139,"LATON Eryk",40]
[140,"PLUCINSKI Leszek",34]
[141,"STEPNIAK Grzegorz",29]
[142,"HONKISZ Adrian",27]
[143,"CERNY Josef",22]
[144,"STOSZ Patryk",6]
[]
[null,"Ettix – Quickstep"]
[145,"KWIATKOWSKI Michal",1719]
[146,"URAN URAN Rigoberto",1271]
[147,"MARTIN Tony",1152]
[148,"STYBAR Zdenek",957]
[149,"TERPSTRA Niki",932]
[150,"MEERSMAN Gianni",879]
[151,"CAVENDISH Mark",873]
[152,"ALAPHILIPPE Julian",698]
[153,"LAMPAERT Yves",580]
[154,"TRENTIN Matteo",452]
[155,"BOONEN Tom",375]
[156,"VAKOC Petr",279]
[157,"VERMOTE Julien",276]
[158,"RENSHAW Mark",272]
[159,"MAES Nikolas",247]
[160,"SERRY Pieter",225]
[161,"VANDENBERGH Stijn",216]
[162,"BRAMBILLA Gianluca",204]
[163,"KEISSE Iljo",196]
[164,"BOUET Maxime",193]
[165,"GOLAS Michal",189]
[166,"VAN KEIRSBULCK Guillaume",151]
[167,"DE LA CRUZ MELGAREJO David",118]
[168,"WISNIOWSKI Lukasz",99]
[169,"VERONA QUINTANILLA Carlos",84]
[170,"SABATINI Fabio",45]
[171,"VELITS Martin",36]
[]
[null,"FDJ"]
[172,"DEMARE Arnaud",1283]
[173,"PINOT Thibaut",1270]
[174,"VICHOT Arthur",286]
[175,"MORABITO Steve",279]
[176,"GENIEZ Alexandre",245]
[177,"REZA Kévin",235]
[178,"ROY Jérémy",219]
[179,"LADAGNOUS Matthieu",201]
[180,"JEANNESSON Arnold",162]
[181,"ROUX Anthony",155]
[182,"DELAGE Mickaël",142]
[183,"PICHON Laurent",131]
[184,"MANZIN Lorrenzo",123]
[185,"OFFREDO Yoann",116]
[186,"SARREAU Marc",104]
[187,"ELISSONDE Kenny",100]
[188,"LE BON Johan",84]
[189,"VAUGRENARD Benoît",74]
[190,"MOUREY Francis",73]
[191,"VEIKKANEN Jussi",68]
[192,"PINEAU Cédric",65]
[193,"LE GAC Olivier",64]
[194,"BONNET William",45]
[195,"CHAVANEL Sébastien",40]
[196,"BOUCHER David",32]
[197,"LECUISINIER Pierre-Henri",32]
[198,"GESLIN Anthony",30]
[199,"COURTEILLE Arnaud",27]
[200,"FISCHER Murilo Antonio",20]
[]
[null,"IAM Cycling"]
[201,"CHAVANEL Sylvain",1144]
[202,"FRANK Mathias",552]
[203,"VAN GENECHTEN Jonas",536]
[204,"HAUSSLER Heinrich",452]
[205,"ELMIGER Martin",391]
[206,"BRÄNDLE Matthias",331]
[207,"PELUCCHI Matteo",248]
[208,"PANTANO GOMEZ Jarlinson",235]
[209,"REICHENBACH Sébastien",226]
[210,"DEGAND Thomas",223]
[211,"COPPEL Jérôme",190]
[212,"CLEMENT Stef",186]
[213,"SARAMOTINS Aleksejs",175]
[214,"WYSS Marcel",172]
[215,"REYNES MIMO Vicente",129]
[216,"ENGER Sondre Holst",122]
[217,"DEVENYNS Dries",99]
[218,"WARBASSE Larry",89]
[219,"TANNER David",75]
[220,"KLUGE Roger",72]
[221,"FUMEAUX Jonathan",65]
[222,"CHEVRIER Clément",65]
[223,"HOLLENSTEIN Reto",53]
[224,"PINEAU Jérôme",51]
[225,"LANG Pirmin",32]
[226,"SCHELLING Patrick",26]
[227,"AREGGER Marcel",24]
[]
[null,"Lampre - Merida"]
[228,"COSTA Rui Alberto Faria",1514]
[229,"BONIFAZIO Niccolo",820]
[230,"VALLS FERRI Rafael",464]
[231,"CIMOLAI Davide",430]
[232,"NIEMIEC Przemyslaw",406]
[233,"POZZATO Filippo",295]
[234,"OLIVEIRA Nelson Felipe Santos Simoes",272]
[235,"CONTI Valerio",272]
[236,"ULISSI Diego",220]
[237,"FERRARI Roberto",219]
[238,"DURASEK Kristijan",219]
[239,"MORI Manuele",194]
[240,"SERPA PEREZ Jose Rodolfo",176]
[241,"GEBREMARIAM GRMAY Tsgabu",165]
[242,"MODOLO Sacha",162]
[243,"POLANC Jan",157]
[244,"RICHEZE ARAQUISTAIN Ariel Maximiliano",69]
[245,"CATTANEO Mattia",60]
[246,"BONO Matteo",55]
[247,"PLAZA MOLINA Ruben",50]
[248,"PIBERNIK Luka",42]
[249,"KOSHEVOY Ilia",36]
[250,"FENG Chun Kai",22]
[251,"XU Gang",20]
[252,"COSTA Mario Jorge Faria",13]
[]
[null,"Lotto - Belisol"]
[253,"GALLOPIN Tony",1233]
[254,"GREIPEL André",1030]
[255,"WELLENS Tim",949]
[256,"DEBUSSCHERE Jens",871]
[257,"BENOOT Tiesj",485]
[258,"BOECKMANS Kris",415]
[259,"ROELANDTS Jürgen",396]
[260,"VAN DEN BROECK Jurgen",375]
[261,"VANENDERT Jelle",307]
[262,"MONFORT Maxime",297]
[263,"LIGTHART Pim",281]
[264,"BAK Lars Ytting",267]
[265,"HANSEN Adam",252]
[266,"HENDERSON Gregory",212]
[267,"DE BIE Sean",185]
[268,"VAN DER SANDE Tosh",166]
[269,"VALLEE Boris",166]
[270,"DE BUYST Jasper",161]
[271,"VERVAEKE Louis",125]
[272,"DE CLERCQ Bart",120]
[273,"DE GENDT Thomas",107]
[274,"BREEN Vegard",84]
[275,"ARMEE Sander",70]
[276,"SIEBERG Marcel",63]
[277,"BROECKX Stig",55]
[278,"VANENDERT Dennis",52]
[279,"DOCKX Gert",35]
[280,"DEHAES Kenny",10]
[]
[null,"Movistar Team"]
[281,"VALVERDE BELMONTE Alejandro",3354]
[282,"QUINTANA ROJAS Nairo Alexander",1641]
[283,"IZAGIRRE INSAUSTI Ion",908]
[284,"LOBATO DEL VALLE Juan Jose",672]
[285,"INTXAUSTI ELORRIAGA Beñat",617]
[286,"MALORI Adriano",547]
[287,"HERRADA LOPEZ Jesus",386]
[288,"VISCONTI Giovanni",379]
[289,"IZAGIRRE INSAUSTI Gorka",358]
[290,"ROJAS GIL Jose Joaquin",340]
[291,"HERRADA LOPEZ Jose",294]
[292,"MORENO BAZAN Javier",280]
[293,"ANACONA GOMEZ Winner Andrew",236]
[294,"AMADOR BIKKAZAKOVA Andrey",231]
[295,"FERNANDEZ ANDUJAR Ruben",221]
[296,"CASTROVIEJO NICOLAS Jonathan",212]
[297,"DOWSETT Alex",201]
[298,"ANTON HERNANDEZ Igor",177]
[299,"ERVITI OLLO Imanol",169]
[300,"QUINTANA ROJAS Dayer Uberney",168]
[301,"CAPECCHI Eros",158]
[302,"GADRET John",131]
[303,"SÜTTERLIN Jasha",131]
[304,"SUTHERLAND Rory",82]
[305,"SANZ UNZUE Enrique",79]
[306,"LASTRAS GARCIA Pablo",66]
[307,"VENTOSO ALBERDI Francisco Jose",55]
[308,"SOLER GIMENEZ Marc",43]
[]
[null,"Nippo – Vini Fantini"]
[309,"CUNEGO Damiano",341]
[310,"GROSU Eduard-Michael",260]
[311,"DE NEGRI Pierpaolo",101]
[312,"COLLI Daniele",87]
[313,"FILOSI Iuri",63]
[314,"MARINI Nicolas",53]
[315,"MALAGUTI Alessandro",37]
[316,"BERLATO Giacomo",30]
[317,"BISOLTI Alessandro",25]
[318,"YAMAMOTO Genki",22]
[319,"STACCHIOTTI Riccardo",10]
[320,"NIBALI Antonio",3]
[321,"CHAPARRO LOPEZ  Didier Alonso",1]
[]
[null,"Orica - GreenEdge"]
[322,"MATTHEWS Michael",1235]
[323,"GERRANS Simon",837]
[324,"IMPEY Daryl",727]
[325,"ALBASINI Michael",707]
[326,"YATES Adam",698]
[327,"CHAVES RUBIO Jhoan Esteban",450]
[328,"EWAN Caleb",417]
[329,"KEUKELEIRE Jens",407]
[330,"CORT NIELSEN Magnus",306]
[331,"TUFT Svein",304]
[332,"YATES Simon",299]
[333,"WEENING Pieter",296]
[334,"MEYER Cameron",245]
[335,"DURBRIDGE Luke",217]
[336,"CLARKE Simon",210]
[337,"BLYTHE Adam",170]
[338,"SANTAROMITA Ivan",115]
[339,"HEPBURN Michael",115]
[340,"HOWSON Damien",114]
[341,"HAYMAN Mathew",96]
[342,"MEIER Christian",80]
[343,"BEWLEY Sam",60]
[344,"HOWARD Leigh",60]
[345,"MOURIS Jens",47]
[346,"LANCASTER Brett",40]
[347,"DOCKER Mitchell",40]
[]
[null,"Southeast"]
[348,"FINETTO Mauro",418]
[349,"BELLETTI Manuel",387]
[350,"GAVAZZI Francesco",373]
[351,"PONZI Simone",281]
[352,"FEDI Andrea",227]
[353,"ANDRIATO Rafael Mattos",169]
[354,"BUSATO Matteo",156]
[355,"PETACCHI Alessandro",149]
[356,"MONSALVE PERTSINIDIS Yonathan Alejandro",80]
[357,"MARECZKO Jakub",71]
[358,"FAVILLI Elia",48]
[359,"CONTI Samuele",39]
[360,"BERTAZZO Liam",23]
[361,"ZHUPA Eugert",22]
[362,"DAL COL Andrea",6]
[363,"CECCHINEL Giorgio",5]
[364,"TEDESCHI Mirko",5]
[]
[null,"Team Cannondale – Garmin"]
[365,"MARTIN Daniel",1026]
[366,"NAVARDAUSKAS Ramunas",737]
[367,"FORMOLO Davide",656]
[368,"HESJEDAL Ryder",494]
[369,"TALANSKY Andrew",437]
[370,"DANIELSON Tom",432]
[371,"VAN BAARLE Dylan",416]
[372,"LANGEVELD Sebastian",359]
[373,"HAAS Nathan",351]
[374,"KOREN Kristjan",343]
[375,"CARDOSO Andre Fernando Santos Martins",257]
[376,"SLAGTER Tom-Jelte",251]
[377,"ACEVEDO CALLE Janier Alexis",219]
[378,"HOWES Alex",208]
[379,"BAUER Jack",208]
[380,"VILLELLA Davide",187]
[381,"MOSER Moreno",155]
[382,"ZEPUNTKE Ruben",120]
[383,"KING Benjamin",115]
[384,"SKJERPING Kristoffer",92]
[385,"MARANGONI Alan",85]
[386,"DOMBROWSKI Joseph Lloyd",59]
[387,"BROWN Nathan",50]
[388,"MOHORIC Matej",48]
[389,"HANSEN Lasse Norman",40]
[390,"KING Edward",25]
[391,"BETTIOL Alberto",20]
[]
[null,"Team Giant – Alpecin"]
[392,"DEGENKOLB John",1932]
[393,"DUMOULIN Tom",1524]
[394,"KITTEL Marcel",727]
[395,"BARGUIL Warren",440]
[396,"MEZGEC Luka",426]
[397,"SINKELDAM Ramon",321]
[398,"GESCHKE Simon",315]
[399,"ARNDT Nikias",238]
[400,"WAEYTENS Zico",217]
[401,"PREIDLER Georg",187]
[402,"TIMMER Albert",178]
[403,"VEELERS Tom",172]
[404,"JONES Carter",172]
[405,"CRADDOCK Lawson",139]
[406,"DE BACKER Bert",116]
[407,"OLIVIER Daan",104]
[408,"HAGA Chad",81]
[409,"DE KORT Koen",70]
[410,"CURVERS Roy",65]
[411,"HUPOND Thierry",55]
[412,"LUDVIGSSON Tobias",52]
[413,"FRÖHLINGER Johannes",45]
[414,"STAMSNIJDER Tom",40]
[415,"FAIRLY Caleb",34]
[416,"JI Cheng",25]
[417,"LUDVIGSSON Fredrik",21]
[418,"VAN DER HAAR Lars",10]
[]
[null,"Team Katusha"]
[419,"KRISTOFF Alexander",2819]
[420,"RODRIGUEZ OLIVER Joaquim",1497]
[421,"MORENO FERNANDEZ Daniel",806]
[422,"SPILAK Simon",607]
[423,"MACHADO Tiago Jose Pinto",597]
[424,"ZAKARIN Ilnur",518]
[425,"CARUSO Giampaolo",439]
[426,"CHERNETSKIY Sergey",431]
[427,"LAGUTIN Sergey",363]
[428,"PORSEV Alexander",323]
[429,"TROFIMOV Yury",313]
[430,"TSATEVICH Alexei",308]
[431,"PAOLINI Luca",296]
[432,"BYSTRØM Sven Erik",247]
[433,"KOLOBNEV Alexandr",214]
[434,"VOROBYEV Anton",214]
[435,"LOSADA ALGUACIL Alberto",187]
[436,"HALLER Marco",181]
[437,"KUZNETSOV Vyacheslav",175]
[438,"VICIOSO ARCOS Angel",131]
[439,"SILIN Egor",111]
[440,"GUARNIERI Jacopo",108]
[441,"KOCHETKOV Pavel",107]
[442,"SMUKULIS Gatis",83]
[443,"VORGANOV Eduard",79]
[444,"KOZONTCHUK Dmitriy",60]
[445,"ISAYCHEV Vladimir",48]
[446,"BELKOV Maxim",47]
[447,"SELIG Rüdiger",36]
[]
[null,"Team LottoNL – Jumbo"]
[448,"KELDERMAN Wilco",914]
[449,"VAN ASBROECK Tom",846]
[450,"VANMARCKE Sep",670]
[451,"KRUIJSWIJK Steven",374]
[452,"TEN DAM Laurens",344]
[453,"MARTENS Paul",316]
[454,"LINDEMAN Bert-Jan",261]
[455,"TANKINK Bram",203]
[456,"HOFLAND Moreno",189]
[457,"TEUNISSEN Mike",186]
[458,"VAN EMDEN Jos",175]
[459,"VAN DER LIJKE Nick",175]
[460,"BENNETT George",150]
[461,"MARKUS Barry",150]
[462,"KEIZER Martijn",142]
[463,"GESINK Robert",97]
[464,"LEEZER Tom",87]
[465,"ROOSEN Timo",79]
[466,"TJALLINGII Maarten",68]
[467,"FLENS Rick",65]
[468,"WYNANTS Maarten",60]
[469,"WAGNER Robert",47]
[470,"DE WEERT Kevin",35]
[471,"GOOS Marc",34]
[472,"BULGAC Brian",10]
[]
[null,"Team Sky"]
[473,"PORTE Richie",1358]
[474,"FROOME Chris",1299]
[475,"THOMAS Geraint",1162]
[476,"WIGGINS Bradley",869]
[477,"VIVIANI Elia",704]
[478,"KÖNIG Leopold",671]
[479,"SWIFT Ben",577]
[480,"NIEVE ITURRALDE Mikel",529]
[481,"KENNAUGH Peter",496]
[482,"HENAO MONTOYA Sergio Luis",483]
[483,"KIRYIENKA Vasil",443]
[484,"ROCHE Nicolas",440]
[485,"POELS Wout",339]
[486,"ROWE Luke",338]
[487,"SIUTSOU Kanstantsin",323]
[488,"NORDHAUG Lars Petter",277]
[489,"STANNARD Ian",267]
[490,"DEIGNAN Philip",252]
[491,"HENAO GOMEZ Sebastian",215]
[492,"LOPEZ GARCIA David",162]
[493,"PUCCIO Salvatore",135]
[494,"BOSWELL Ian",119]
[495,"EISEL Bernhard",115]
[496,"SUTTON Christopher",99]
[497,"KNEES Christian",95]
[498,"FENN Andrew",58]
[499,"PATE Danny",45]
[500,"EARLE Nathan",30]
[501,"ZANDIO ECHAIDE Xabier",15]
[]
[null,"Tinkoff – Saxo"]
[502,"CONTADOR VELASCO Alberto",1791]
[503,"SAGAN Peter",1390]
[504,"MAJKA Rafal",1218]
[505,"BRESCHEL Matti",740]
[506,"VALGREN ANDERSEN Michael",601]
[507,"ROGERS Michael",544]
[508,"BOARO Manuele",519]
[509,"KREUZIGER Roman",451]
[510,"JUUL JENSEN Christopher",319]
[511,"BODNAR Maciej",276]
[512,"KISERLOVSKI Robert",267]
[513,"ZAUGG Oliver",252]
[514,"MØRKØV CHRISTENSEN Michael",202]
[515,"HANSEN Jesper",190]
[516,"BENNATI Daniele",178]
[517,"BRUTT Pavel",134]
[518,"SØRENSEN Chris Anker",127]
[519,"BASSO Ivan",118]
[520,"BELTRAN SUAREZ Edward Alexander",104]
[521,"MCCARTHY Jay",97]
[522,"PETROV Evgeni",95]
[523,"POLJANSKI Pawel",86]
[524,"PIRES Bruno Manuel Silva",82]
[525,"TOSATTO Matteo",80]
[526,"HERNANDEZ BLAZQUEZ Jesus",72]
[527,"TRUSOV Nikolai",67]
[528,"ROVNY Ivan",65]
[529,"PAULINHO Sergio Miguel Moreira",61]
[530,"KOLAR Michael",31]
[531,"SAGAN Juraj",15]
[]
[null,"Trekk Factory Racing"]
[532,"MOLLEMA Bauke",1204]
[533,"NIZZOLO Giacomo",795]
[534,"FELLINE Fabio",568]
[535,"CANCELLARA Fabian",564]
[536,"VAN POPPEL Danny",474]
[537,"ARREDONDO MORENO Julian David",468]
[538,"SCHLECK Fränk",368]
[539,"ZOIDL Riccardo",333]
[540,"ZUBELDIA AGIRRE Haimar",328]
[541,"JUNGELS Bob",302]
[542,"SERGENT Jesse",274]
[543,"DEVOLDER Stijn",228]
[544,"STUYVEN Jasper",197]
[545,"BUSCHE Matthew",170]
[546,"VANDEWALLE Kristof",161]
[547,"RAST Gregory",118]
[548,"DIDIER Laurent",109]
[549,"VAN POPPEL Boy",86]
[550,"IRIZAR ARANBURU Markel",74]
[551,"BEPPU Fumiyuki",70]
[552,"POPOVYCH Yaroslav",57]
[553,"ROULSTON Hayden",45]
[554,"STEEGMANS Gert",37]
[555,"ALAFACI Eugenio",35]
[556,"SILVESTRE Fabio Andre Tomas",30]
[557,"WATSON Calvin",20]
[558,"COLEDAN Marco",12]
[559,"MCCONNELL Daniel",10]

{"sheet":"De Freddies","index":1,"n_rows":32,"n_cols":28,"rows_kept":32,"cut":false,"hidden":false,"merged":[]}
["ZWEMbike: GIRO 2015"]
[]
["Naam:","Fred  :  "]
["Ploegn:","De Freddies"]
[]
[null,null,null,null,null,"RIT",1,2,3,4,5,6,7,8,9,10,11,12,13,14,15,16,17,18,19,20,21,"Totaal"]
[null,"Code","Naam","Waarde"]
[1,502,{"$f":"IF(B8=\"\",\"\",VLOOKUP(B8,'Rennerslijst Giro'!A1:C976,2))","v":"CONTADOR VELASCO Alberto"},1791]
[2,146,{"$f":"IF(B9=\"\",\"\",VLOOKUP(B9,'Rennerslijst Giro'!A2:C977,2))","v":"URAN URAN Rigoberto"},1271]
[3,322,{"$f":"IF(B10=\"\",\"\",VLOOKUP(B10,'Rennerslijst Giro'!A3:C978,2))","v":"MATTHEWS Michael"},1235]
[4,50,{"$f":"IF(B11=\"\",\"\",VLOOKUP(B11,'Rennerslijst Giro'!A4:C979,2))","v":"ARU Fabio"},1123]
[5,451,{"$f":"IF(B12=\"\",\"\",VLOOKUP(B12,'Rennerslijst Giro'!A5:C980,2))","v":"KRUIJSWIJK Steven"},374]
[6,424,{"$f":"IF(B13=\"\",\"\",VLOOKUP(B13,'Rennerslijst Giro'!A6:C981,2))","v":"ZAKARIN Ilnur"},518]
[7,232,{"$f":"IF(B14=\"\",\"\",VLOOKUP(B14,'Rennerslijst Giro'!A7:C982,2))","v":"NIEMIEC Przemyslaw"},406]
[8,63,{"$f":"IF(B15=\"\",\"\",VLOOKUP(B15,'Rennerslijst Giro'!A8:C983,2))","v":"KANGERT Tanel"},189]
[9,456,{"$f":"IF(B16=\"\",\"\",VLOOKUP(B16,'Rennerslijst Giro'!A9:C984,2))","v":"HOFLAND Moreno"},189]
[10,298,{"$f":"IF(B17=\"\",\"\",VLOOKUP(B17,'Rennerslijst Giro'!A10:C985,2))","v":"ANTON HERNANDEZ Igor"},177]
[11,242,{"$f":"IF(B18=\"\",\"\",VLOOKUP(B18,'Rennerslijst Giro'!A11:C986,2))","v":"MODOLO Sacha"},162]
[12,27,{"$f":"IF(B19=\"\",\"\",VLOOKUP(B19,'Rennerslijst Giro'!A12:C987,2))","v":"BETANCUR GOMEZ Carlos Alberto"},45]
[null,null,null,null,"roze",150,0,0,0,0,0,0,0,150,150,150,150,150,0,0,0,0,0,0,0,0,0,{"$f":"SUM(G20:AA20)","v":750}]
[null,null,"Totaal:",7480,"Berg",100,0,0,0,0,0,0,100,100,0,0,0,0,0,0,0,0,0,0,0,0,0,200]
[null,null,"Totaal niet boven------->",8000,"punten",100,0,0,0,0,100,0,0,0,100,100,100,0,0,0,0,0,0,0,0,0,0,400]
[null,null,null,null,"Jongere",100,0,0,0,0,0,0,0,0,0,100,0,100,0,0,0,0,0,0,0,0,0,200]
[]
[null,null,null,null,null,"Totaal",{"$f":"SUM(G8:G23)","v":0},{"$f":"SUM(H8:H23)","v":0},{"$f":"SUM(I8:I23)","v":0},0,100,0,100,250,250,350,250,250,0,0,0,0,0,0,0,0,0,{"$f":"SUM(AB8:AB23)","v":1550}]
[]
[null,"Code","Reserve","Waarde"]
[1,473,{"$f":"IF(B28=\"\",\"\",VLOOKUP(B28,'Rennerslijst Giro'!A1:C976,2))","v":"PORTE Richie"},1358]
[2,509,{"$f":"IF(B29=\"\",\"\",VLOOKUP(B29,'Rennerslijst Giro'!A2:C977,2))","v":"KREUZIGER Roman"},451]
[3,3,{"$f":"IF(B30=\"\",\"\",VLOOKUP(B30,'Rennerslijst Giro'!A3:C978,2))","v":"POZZOVIVO Domenico"},888]
[null,null,"Totaal:",2697]
[null,null,"Totaal niet boven ------->",2500]

{"sheet":"FC RAFTEN","index":2,"n_rows":32,"n_cols":28,"rows_kept":32,"cut":false,"hidden":false,"merged":[]}
["ZWEMbike: GIRO 2015"]
[]
["Naam:","Raf  :  "]
["Ploegn:","FC RAFTEN**"]
[]
[null,null,null,null,null,"RIT",1,2,3,4,5,6,7,8,9,10,11,12,13,14,15,16,17,18,19,20,21,"Totaal"]
[null,"Code","Naam","Waarde"]
[1,502,{"$f":"IF(B8=\"\",\"\",VLOOKUP(B8,'Rennerslijst Giro'!A1:C976,2))","v":"CONTADOR VELASCO Alberto"},1791]
[2,146,{"$f":"IF(B9=\"\",\"\",VLOOKUP(B9,'Rennerslijst Giro'!A2:C977,2))","v":"URAN URAN Rigoberto"},1271]
[3,322,{"$f":"IF(B10=\"\",\"\",VLOOKUP(B10,'Rennerslijst Giro'!A3:C978,2))","v":"MATTHEWS Michael"},1235]
[4,50,{"$f":"IF(B11=\"\",\"\",VLOOKUP(B11,'Rennerslijst Giro'!A4:C979,2))","v":"ARU Fabio"},1123]
[5,533,{"$f":"IF(B12=\"\",\"\",VLOOKUP(B12,'Rennerslijst Giro'!A5:C980,2))","v":"NIZZOLO Giacomo"},374]
[6,477,{"$f":"IF(B13=\"\",\"\",VLOOKUP(B13,'Rennerslijst Giro'!A6:C981,2))","v":"VIVIANI Elia"},518]
[7,236,{"$f":"IF(B14=\"\",\"\",VLOOKUP(B14,'Rennerslijst Giro'!A7:C982,2))","v":"ULISSI Diego"},406]
[8,237,{"$f":"IF(B15=\"\",\"\",VLOOKUP(B15,'Rennerslijst Giro'!A8:C983,2))","v":"FERRARI Roberto"},189]
[9,83,{"$f":"IF(B16=\"\",\"\",VLOOKUP(B16,'Rennerslijst Giro'!A9:C984,2))","v":"PIRAZZI Stefano"},189]
[10,110,{"$f":"IF(B17=\"\",\"\",VLOOKUP(B17,'Rennerslijst Giro'!A10:C985,2))","v":"ATAPUMA HURTADO Jhon Darwin"},177]
[11,34,{"$f":"IF(B18=\"\",\"\",VLOOKUP(B18,'Rennerslijst Giro'!A11:C986,2))","v":"APPOLLONIO Davide"},162]
[12,27,{"$f":"IF(B19=\"\",\"\",VLOOKUP(B19,'Rennerslijst Giro'!A12:C987,2))","v":"BETANCUR GOMEZ Carlos Alberto"},45]
[null,null,null,null,"roze",150,0,0,0,0,0,0,0,150,150,150,150,150,0,0,0,0,0,0,0,0,0,{"$f":"SUM(G20:AA20)","v":750}]
[null,null,"Totaal:",7480,"Berg",100,0,0,0,0,0,0,100,100,0,0,0,0,0,0,0,0,0,0,0,0,0,200]
[null,null,"Totaal niet boven------->",8000,"punten",100,0,0,0,0,0,0,0,0,100,100,100,100,0,0,0,0,0,0,0,0,0,400]
[null,null,null,null,"Jongere",100,0,0,0,0,0,0,0,0,0,100,0,100,0,0,0,0,0,0,0,0,0,200]
[]
[null,null,null,null,null,"Totaal",{"$f":"SUM(G8:G23)","v":0},{"$f":"SUM(H8:H23)","v":0},{"$f":"SUM(I8:I23)","v":0},0,0,0,100,250,250,350,250,350,0,0,0,0,0,0,0,0,0,{"$f":"SUM(AB8:AB23)","v":1550}]
[]
[null,"Code","Reserve","Waarde"]
[1,473,{"$f":"IF(B28=\"\",\"\",VLOOKUP(B28,'Rennerslijst Giro'!A1:C976,2))","v":"PORTE Richie"},1358]
[2,285,{"$f":"IF(B29=\"\",\"\",VLOOKUP(B29,'Rennerslijst Giro'!A2:C977,2))","v":"INTXAUSTI ELORRIAGA Beñat"},451]
[3,59,{"$f":"IF(B30=\"\",\"\",VLOOKUP(B30,'Rennerslijst Giro'!A3:C978,2))","v":"LANDA MEANA Mikel"},888]
[null,null,"Totaal:",2697]
[null,null,"Totaal niet boven ------->",2500]

{"sheet":"De Roze 12","index":3,"n_rows":32,"n_cols":28,"rows_kept":32,"cut":false,"hidden":false,"merged":[]}
["ZWEMbike: GIRO 2015"]
[]
["Naam:","Janes  :  "]
["Ploegn:","De Roze 12*"]
[]
[null,null,null,null,null,"RIT",1,2,3,4,5,6,7,8,9,10,11,12,13,14,15,16,17,18,19,20,21,"Totaal"]
[null,"Code","Naam","Waarde"]
[1,473,{"$f":"IF(B8=\"\",\"\",VLOOKUP(B8,'Rennerslijst Giro'!A1:C976,2))","v":"PORTE Richie"},1791]
[2,146,{"$f":"IF(B9=\"\",\"\",VLOOKUP(B9,'Rennerslijst Giro'!A2:C977,2))","v":"URAN URAN Rigoberto"},1271]
[3,50,{"$f":"IF(B10=\"\",\"\",VLOOKUP(B10,'Rennerslijst Giro'!A3:C978,2))","v":"ARU Fabio"},1235]
[4,254,{"$f":"IF(B11=\"\",\"\",VLOOKUP(B11,'Rennerslijst Giro'!A4:C979,2))","v":"GREIPEL André"},1123]
[5,509,{"$f":"IF(B12=\"\",\"\",VLOOKUP(B12,'Rennerslijst Giro'!A5:C980,2))","v":"KREUZIGER Roman"},374]
[6,507,{"$f":"IF(B13=\"\",\"\",VLOOKUP(B13,'Rennerslijst Giro'!A6:C981,2))","v":"ROGERS Michael"},518]
[7,368,{"$f":"IF(B14=\"\",\"\",VLOOKUP(B14,'Rennerslijst Giro'!A7:C982,2))","v":"HESJEDAL Ryder"},406]
[8,396,{"$f":"IF(B15=\"\",\"\",VLOOKUP(B15,'Rennerslijst Giro'!A8:C983,2))","v":"MEZGEC Luka"},189]
[9,207,{"$f":"IF(B16=\"\",\"\",VLOOKUP(B16,'Rennerslijst Giro'!A9:C984,2))","v":"PELUCCHI Matteo"},189]
[10,83,{"$f":"IF(B17=\"\",\"\",VLOOKUP(B17,'Rennerslijst Giro'!A10:C985,2))","v":"PIRAZZI Stefano"},177]
[11,456,{"$f":"IF(B18=\"\",\"\",VLOOKUP(B18,'Rennerslijst Giro'!A11:C986,2))","v":"HOFLAND Moreno"},162]
[12,242,{"$f":"IF(B19=\"\",\"\",VLOOKUP(B19,'Rennerslijst Giro'!A12:C987,2))","v":"MODOLO Sacha"},45]
[null,null,null,null,"roze",150,0,0,0,0,0,0,0,0,0,0,0,0,0,0,0,0,0,0,0,0,0,{"$f":"SUM(G20:AA20)","v":0}]
[null,null,"Totaal:",7480,"Berg",100,0,0,100,100,100,0,100,100,0,0,0,0,0,0,0,0,0,0,0,0,0,500]
[null,null,"Totaal niet boven------->",8000,"punten",100,0,0,0,0,0,0,0,0,0,0,0,0,0,0,0,0,0,0,0,0,0,0]
[null,null,null,null,"Jongere",100,0,0,0,0,0,0,0,0,0,200,0,300,0,0,0,0,0,0,0,0,0,500]
[]
[null,null,null,null,null,"Totaal",{"$f":"SUM(G8:G23)","v":0},{"$f":"SUM(H8:H23)","v":0},{"$f":"SUM(I8:I23)","v":100},100,100,0,100,100,0,200,0,300,0,0,0,0,0,0,0,0,0,{"$f":"SUM(AB8:AB23)","v":1000}]
[]
[null,"Code","Reserve","Waarde"]
[1,322,{"$f":"IF(B28=\"\",\"\",VLOOKUP(B28,'Rennerslijst Giro'!A1:C976,2))","v":"MATTHEWS Michael"},1358]
[2,285,{"$f":"IF(B29=\"\",\"\",VLOOKUP(B29,'Rennerslijst Giro'!A2:C977,2))","v":"INTXAUSTI ELORRIAGA Beñat"},451]
[3,3,{"$f":"IF(B30=\"\",\"\",VLOOKUP(B30,'Rennerslijst Giro'!A3:C978,2))","v":"POZZOVIVO Domenico"},888]
[null,null,"Totaal:",2697]
[null,null,"Totaal niet boven ------->",2500]

{"sheet":"Le Capre Di Montagna","index":4,"n_rows":32,"n_cols":28,"rows_kept":32,"cut":false,"hidden":false,"merged":[]}
["ZWEMbike: GIRO 2015"]
[]
["Naam:","Joik  :  "]
["Ploegn:","Le Capre Di Montagna****"]
[]
[null,null,null,null,null,"RIT",1,2,3,4,5,6,7,8,9,10,11,12,13,14,15,16,17,18,19,20,21,"Totaal"]
[null,"Code","Naam","Waarde"]
[1,502,{"$f":"IF(B8=\"\",\"\",VLOOKUP(B8,'Rennerslijst Giro'!A1:C976,2))","v":"CONTADOR VELASCO Alberto"},1791]
[2,473,{"$f":"IF(B9=\"\",\"\",VLOOKUP(B9,'Rennerslijst Giro'!A2:C977,2))","v":"PORTE Richie"},1271]
[3,146,{"$f":"IF(B10=\"\",\"\",VLOOKUP(B10,'Rennerslijst Giro'!A3:C978,2))","v":"URAN URAN Rigoberto"},1235]
[4,322,{"$f":"IF(B11=\"\",\"\",VLOOKUP(B11,'Rennerslijst Giro'!A4:C979,2))","v":"MATTHEWS Michael"},1123]
[5,509,{"$f":"IF(B12=\"\",\"\",VLOOKUP(B12,'Rennerslijst Giro'!A5:C980,2))","v":"KREUZIGER Roman"},374]
[6,260,{"$f":"IF(B13=\"\",\"\",VLOOKUP(B13,'Rennerslijst Giro'!A6:C981,2))","v":"VAN DEN BROECK Jurgen"},518]
[7,82,{"$f":"IF(B14=\"\",\"\",VLOOKUP(B14,'Rennerslijst Giro'!A7:C982,2))","v":"BATTAGLIN Enrico"},406]
[8,236,{"$f":"IF(B15=\"\",\"\",VLOOKUP(B15,'Rennerslijst Giro'!A8:C983,2))","v":"ULISSI Diego"},189]
[9,242,{"$f":"IF(B16=\"\",\"\",VLOOKUP(B16,'Rennerslijst Giro'!A9:C984,2))","v":"MODOLO Sacha"},189]
[10,85,{"$f":"IF(B17=\"\",\"\",VLOOKUP(B17,'Rennerslijst Giro'!A10:C985,2))","v":"RUFFONI Nicola"},177]
[11,34,{"$f":"IF(B18=\"\",\"\",VLOOKUP(B18,'Rennerslijst Giro'!A11:C986,2))","v":"APPOLLONIO Davide"},162]
[12,355,{"$f":"IF(B19=\"\",\"\",VLOOKUP(B19,'Rennerslijst Giro'!A12:C987,2))","v":"PETACCHI Alessandro"},45]
[null,null,null,null,"roze",150,0,0,0,0,0,0,0,150,150,150,150,150,0,0,0,0,0,0,0,0,0,{"$f":"SUM(G20:AA20)","v":750}]
[null,null,"Totaal:",7480,"Berg",100,0,0,100,100,100,0,0,0,0,0,0,0,0,0,0,0,0,0,0,0,0,300]
[null,null,"Totaal niet boven------->",8000,"punten",100,0,0,0,0,0,0,0,0,100,100,100,100,0,0,0,0,0,0,0,0,0,400]
[null,null,null,null,"Jongere",100,0,0,0,0,0,0,0,0,0,100,0,400,0,0,0,0,0,0,0,0,0,500]
[]
[null,null,null,null,null,"Totaal",{"$f":"SUM(G8:G23)","v":0},{"$f":"SUM(H8:H23)","v":0},{"$f":"SUM(I8:I23)","v":100},100,100,0,0,150,250,350,250,650,0,0,0,0,0,0,0,0,0,{"$f":"SUM(AB8:AB23)","v":1950}]
[]
[null,"Code","Reserve","Waarde"]
[1,50,{"$f":"IF(B28=\"\",\"\",VLOOKUP(B28,'Rennerslijst Giro'!A1:C976,2))","v":"ARU Fabio"},1358]
[2,3,{"$f":"IF(B29=\"\",\"\",VLOOKUP(B29,'Rennerslijst Giro'!A2:C977,2))","v":"POZZOVIVO Domenico"},451]
[3,312,{"$f":"IF(B30=\"\",\"\",VLOOKUP(B30,'Rennerslijst Giro'!A3:C978,2))","v":"COLLI Daniele"},888]
[null,null,"Totaal:",2697]
[null,null,"Totaal niet boven ------->",2500]

{"sheet":"De Roze Janetten","index":5,"n_rows":32,"n_cols":28,"rows_kept":32,"cut":false,"hidden":false,"merged":[]}
["ZWEMbike: GIRO 2015"]
[]
["Naam:","Tim  :  "]
["Ploegn:","De Roze Janetten"]
[]
[null,null,null,null,null,"RIT",1,2,3,4,5,6,7,8,9,10,11,12,13,14,15,16,17,18,19,20,21,"Totaal"]
[null,"Code","Naam","Waarde"]
[1,502,{"$f":"IF(B8=\"\",\"\",VLOOKUP(B8,'Rennerslijst Giro'!A1:C976,2))","v":"CONTADOR VELASCO Alberto"},1791]
[2,473,{"$f":"IF(B9=\"\",\"\",VLOOKUP(B9,'Rennerslijst Giro'!A2:C977,2))","v":"PORTE Richie"},1271]
[3,146,{"$f":"IF(B10=\"\",\"\",VLOOKUP(B10,'Rennerslijst Giro'!A3:C978,2))","v":"URAN URAN Rigoberto"},1235]
[4,232,{"$f":"IF(B11=\"\",\"\",VLOOKUP(B11,'Rennerslijst Giro'!A4:C979,2))","v":"NIEMIEC Przemyslaw"},1123]
[5,533,{"$f":"IF(B12=\"\",\"\",VLOOKUP(B12,'Rennerslijst Giro'!A5:C980,2))","v":"NIZZOLO Giacomo"},374]
[6,509,{"$f":"IF(B13=\"\",\"\",VLOOKUP(B13,'Rennerslijst Giro'!A6:C981,2))","v":"KREUZIGER Roman"},518]
[7,396,{"$f":"IF(B14=\"\",\"\",VLOOKUP(B14,'Rennerslijst Giro'!A7:C982,2))","v":"MEZGEC Luka"},406]
[8,260,{"$f":"IF(B15=\"\",\"\",VLOOKUP(B15,'Rennerslijst Giro'!A8:C983,2))","v":"VAN DEN BROECK Jurgen"},189]
[9,237,{"$f":"IF(B16=\"\",\"\",VLOOKUP(B16,'Rennerslijst Giro'!A9:C984,2))","v":"FERRARI Roberto"},189]
[10,83,{"$f":"IF(B17=\"\",\"\",VLOOKUP(B17,'Rennerslijst Giro'!A10:C985,2))","v":"PIRAZZI Stefano"},177]
[11,242,{"$f":"IF(B18=\"\",\"\",VLOOKUP(B18,'Rennerslijst Giro'!A11:C986,2))","v":"MODOLO Sacha"},162]
[12,27,{"$f":"IF(B19=\"\",\"\",VLOOKUP(B19,'Rennerslijst Giro'!A12:C987,2))","v":"BETANCUR GOMEZ Carlos Alberto"},45]
[null,null,null,null,"roze",150,0,0,0,0,0,0,0,150,150,150,150,150,0,0,0,0,0,0,0,0,0,{"$f":"SUM(G20:AA20)","v":750}]
[null,null,"Totaal:",7480,"Berg",100,0,0,100,100,100,0,0,0,0,0,0,0,0,0,0,0,0,0,0,0,0,300]
[null,null,"Totaal niet boven------->",8000,"punten",100,0,0,0,0,0,0,0,0,0,0,0,0,0,0,0,0,0,0,0,0,0,0]
[null,null,null,null,"Jongere",100,0,0,0,0,0,0,0,0,0,300,0,400,0,0,0,0,0,0,0,0,0,700]
[]
[null,null,null,null,null,"Totaal",{"$f":"SUM(G8:G23)","v":0},{"$f":"SUM(H8:H23)","v":0},{"$f":"SUM(I8:I23)","v":100},100,100,0,0,150,150,450,150,550,0,0,0,0,0,0,0,0,0,{"$f":"SUM(AB8:AB23)","v":1750}]
[]
[null,"Code","Reserve","Waarde"]
[1,50,{"$f":"IF(B28=\"\",\"\",VLOOKUP(B28,'Rennerslijst Giro'!A1:C976,2))","v":"ARU Fabio"},1358]
[2,3,{"$f":"IF(B29=\"\",\"\",VLOOKUP(B29,'Rennerslijst Giro'!A2:C977,2))","v":"POZZOVIVO Domenico"},451]
[3,451,{"$f":"IF(B30=\"\",\"\",VLOOKUP(B30,'Rennerslijst Giro'!A3:C978,2))","v":"KRUIJSWIJK Steven"},888]
[null,null,"Totaal:",2697]
[null,null,"Totaal niet boven ------->",2500]

{"sheet":"U","index":6,"n_rows":32,"n_cols":28,"rows_kept":32,"cut":false,"hidden":false,"merged":[]}
["ZWEMbike: GIRO 2015"]
[]
["Naam:","Ollie  :  "]
["Ploegn:","U****"]
[]
[null,null,null,null,null,"RIT",1,2,3,4,5,6,7,8,9,10,11,12,13,14,15,16,17,18,19,20,21,"Totaal"]
[null,"Code","Naam","Waarde"]
[1,502,{"$f":"IF(B8=\"\",\"\",VLOOKUP(B8,'Rennerslijst Giro'!A1:C976,2))","v":"CONTADOR VELASCO Alberto"},1791]
[2,473,{"$f":"IF(B9=\"\",\"\",VLOOKUP(B9,'Rennerslijst Giro'!A2:C977,2))","v":"PORTE Richie"},1271]
[3,322,{"$f":"IF(B10=\"\",\"\",VLOOKUP(B10,'Rennerslijst Giro'!A3:C978,2))","v":"MATTHEWS Michael"},1235]
[4,509,{"$f":"IF(B11=\"\",\"\",VLOOKUP(B11,'Rennerslijst Giro'!A4:C979,2))","v":"KREUZIGER Roman"},1123]
[5,101,{"$f":"IF(B12=\"\",\"\",VLOOKUP(B12,'Rennerslijst Giro'!A5:C980,2))","v":"CARUSO Damiano"},374]
[6,424,{"$f":"IF(B13=\"\",\"\",VLOOKUP(B13,'Rennerslijst Giro'!A6:C981,2))","v":"ZAKARIN Ilnur"},518]
[7,260,{"$f":"IF(B14=\"\",\"\",VLOOKUP(B14,'Rennerslijst Giro'!A7:C982,2))","v":"VAN DEN BROECK Jurgen"},406]
[8,59,{"$f":"IF(B15=\"\",\"\",VLOOKUP(B15,'Rennerslijst Giro'!A8:C983,2))","v":"LANDA MEANA Mikel"},189]
[9,236,{"$f":"IF(B16=\"\",\"\",VLOOKUP(B16,'Rennerslijst Giro'!A9:C984,2))","v":"ULISSI Diego"},189]
[10,83,{"$f":"IF(B17=\"\",\"\",VLOOKUP(B17,'Rennerslijst Giro'!A10:C985,2))","v":"PIRAZZI Stefano"},177]
[11,242,{"$f":"IF(B18=\"\",\"\",VLOOKUP(B18,'Rennerslijst Giro'!A11:C986,2))","v":"MODOLO Sacha"},162]
[12,85,{"$f":"IF(B19=\"\",\"\",VLOOKUP(B19,'Rennerslijst Giro'!A12:C987,2))","v":"RUFFONI Nicola"},45]
[null,null,null,null,"roze",150,0,0,0,0,0,0,0,150,150,150,150,150,0,0,0,0,0,0,0,0,0,{"$f":"SUM(G20:AA20)","v":750}]
[null,null,"Totaal:",7480,"Berg",100,0,0,100,100,100,0,0,0,0,0,0,0,0,0,0,0,0,0,0,0,0,300]
[null,null,"Totaal niet boven------->",8000,"punten",100,0,0,0,0,300,0,0,0,100,100,100,100,0,0,0,0,0,0,0,0,0,700]
[null,null,null,null,"Jongere",100,0,0,0,0,0,0,0,0,0,100,0,300,0,0,0,0,0,0,0,0,0,400]
[]
[null,null,null,null,null,"Totaal",{"$f":"SUM(G8:G23)","v":0},{"$f":"SUM(H8:H23)","v":0},{"$f":"SUM(I8:I23)","v":100},100,400,0,0,150,250,350,250,550,0,0,0,0,0,0,0,0,0,{"$f":"SUM(AB8:AB23)","v":2150}]
[]
[null,"Code","Reserve","Waarde"]
[1,146,{"$f":"IF(B28=\"\",\"\",VLOOKUP(B28,'Rennerslijst Giro'!A1:C976,2))","v":"URAN URAN Rigoberto"},1358]
[2,478,{"$f":"IF(B29=\"\",\"\",VLOOKUP(B29,'Rennerslijst Giro'!A2:C977,2))","v":"KÖNIG Leopold"},451]
[3,3,{"$f":"IF(B30=\"\",\"\",VLOOKUP(B30,'Rennerslijst Giro'!A3:C978,2))","v":"POZZOVIVO Domenico"},888]
[null,null,"Totaal:",2697]
[null,null,"Totaal niet boven ------->",2500]

{"sheet":"Jeff","index":7,"n_rows":32,"n_cols":28,"rows_kept":32,"cut":false,"hidden":false,"merged":[]}
["ZWEMbike: GIRO 2015"]
[]
["Naam:","Arno  :  "]
["Ploegn:","Jeff"]
[]
[null,null,null,null,null,"RIT",1,2,3,4,5,6,7,8,9,10,11,12,13,14,15,16,17,18,19,20,21,"Totaal"]
[null,"Code","Naam","Waarde"]
[1,502,{"$f":"IF(B8=\"\",\"\",VLOOKUP(B8,'Rennerslijst Giro'!A1:C976,2))","v":"CONTADOR VELASCO Alberto"},1791]
[2,473,{"$f":"IF(B9=\"\",\"\",VLOOKUP(B9,'Rennerslijst Giro'!A2:C977,2))","v":"PORTE Richie"},1271]
[3,146,{"$f":"IF(B10=\"\",\"\",VLOOKUP(B10,'Rennerslijst Giro'!A3:C978,2))","v":"URAN URAN Rigoberto"},1235]
[4,254,{"$f":"IF(B11=\"\",\"\",VLOOKUP(B11,'Rennerslijst Giro'!A4:C979,2))","v":"GREIPEL André"},1123]
[5,260,{"$f":"IF(B12=\"\",\"\",VLOOKUP(B12,'Rennerslijst Giro'!A5:C980,2))","v":"VAN DEN BROECK Jurgen"},374]
[6,368,{"$f":"IF(B13=\"\",\"\",VLOOKUP(B13,'Rennerslijst Giro'!A6:C981,2))","v":"HESJEDAL Ryder"},518]
[7,30,{"$f":"IF(B14=\"\",\"\",VLOOKUP(B14,'Rennerslijst Giro'!A7:C982,2))","v":"PELLIZOTTI Franco"},406]
[8,262,{"$f":"IF(B15=\"\",\"\",VLOOKUP(B15,'Rennerslijst Giro'!A8:C983,2))","v":"MONFORT Maxime"},189]
[9,242,{"$f":"IF(B16=\"\",\"\",VLOOKUP(B16,'Rennerslijst Giro'!A9:C984,2))","v":"MODOLO Sacha"},189]
[10,519,{"$f":"IF(B17=\"\",\"\",VLOOKUP(B17,'Rennerslijst Giro'!A10:C985,2))","v":"BASSO Ivan"},177]
[11,529,{"$f":"IF(B18=\"\",\"\",VLOOKUP(B18,'Rennerslijst Giro'!A11:C986,2))","v":"PAULINHO Sergio Miguel Moreira"},162]
[12,412,{"$f":"IF(B19=\"\",\"\",VLOOKUP(B19,'Rennerslijst Giro'!A12:C987,2))","v":"LUDVIGSSON Tobias"},45]
[null,null,null,null,"roze",150,0,0,0,0,0,0,0,150,150,150,150,150,0,0,0,0,0,0,0,0,0,{"$f":"SUM(G20:AA20)","v":750}]
[null,null,"Totaal:",7480,"Berg",100,0,0,0,0,0,0,0,0,0,0,0,0,0,0,0,0,0,0,0,0,0,0]
[null,null,"Totaal niet boven------->",8000,"punten",100,0,0,0,0,0,0,0,0,0,0,0,0,0,0,0,0,0,0,0,0,0,0]
[null,null,null,null,"Jongere",100,0,0,0,0,0,0,0,0,0,100,0,300,0,0,0,0,0,0,0,0,0,400]
[]
[null,null,null,null,null,"Totaal",{"$f":"SUM(G8:G23)","v":0},{"$f":"SUM(H8:H23)","v":0},{"$f":"SUM(I8:I23)","v":0},0,0,0,0,150,150,250,150,450,0,0,0,0,0,0,0,0,0,{"$f":"SUM(AB8:AB23)","v":1150}]
[]
[null,"Code","Reserve","Waarde"]
[1,50,{"$f":"IF(B28=\"\",\"\",VLOOKUP(B28,'Rennerslijst Giro'!A1:C976,2))","v":"ARU Fabio"},1358]
[2,3,{"$f":"IF(B29=\"\",\"\",VLOOKUP(B29,'Rennerslijst Giro'!A2:C977,2))","v":"POZZOVIVO Domenico"},451]
[3,429,{"$f":"IF(B30=\"\",\"\",VLOOKUP(B30,'Rennerslijst Giro'!A3:C978,2))","v":"TROFIMOV Yury"},888]
[null,null,"Totaal:",2697]
[null,null,"Totaal niet boven ------->",2500]

{"sheet":"PADT","index":8,"n_rows":32,"n_cols":28,"rows_kept":32,"cut":false,"hidden":false,"merged":[]}
["ZWEMbike: GIRO 2015"]
[]
["Naam:","Filip  :  "]
["Ploegn:","PADT"]
[]
[null,null,null,null,null,"RIT",1,2,3,4,5,6,7,8,9,10,11,12,13,14,15,16,17,18,19,20,21,"Totaal"]
[null,"Code","Naam","Waarde"]
[1,502,{"$f":"IF(B8=\"\",\"\",VLOOKUP(B8,'Rennerslijst Giro'!A1:C976,2))","v":"CONTADOR VELASCO Alberto"},1791]
[2,473,{"$f":"IF(B9=\"\",\"\",VLOOKUP(B9,'Rennerslijst Giro'!A2:C977,2))","v":"PORTE Richie"},1271]
[3,322,{"$f":"IF(B10=\"\",\"\",VLOOKUP(B10,'Rennerslijst Giro'!A3:C978,2))","v":"MATTHEWS Michael"},1235]
[4,50,{"$f":"IF(B11=\"\",\"\",VLOOKUP(B11,'Rennerslijst Giro'!A4:C979,2))","v":"ARU Fabio"},1123]
[5,477,{"$f":"IF(B12=\"\",\"\",VLOOKUP(B12,'Rennerslijst Giro'!A5:C980,2))","v":"VIVIANI Elia"},374]
[6,368,{"$f":"IF(B13=\"\",\"\",VLOOKUP(B13,'Rennerslijst Giro'!A6:C981,2))","v":"HESJEDAL Ryder"},518]
[7,260,{"$f":"IF(B14=\"\",\"\",VLOOKUP(B14,'Rennerslijst Giro'!A7:C982,2))","v":"VAN DEN BROECK Jurgen"},406]
[8,82,{"$f":"IF(B15=\"\",\"\",VLOOKUP(B15,'Rennerslijst Giro'!A8:C983,2))","v":"BATTAGLIN Enrico"},189]
[9,83,{"$f":"IF(B16=\"\",\"\",VLOOKUP(B16,'Rennerslijst Giro'!A9:C984,2))","v":"PIRAZZI Stefano"},189]
[10,519,{"$f":"IF(B17=\"\",\"\",VLOOKUP(B17,'Rennerslijst Giro'!A10:C985,2))","v":"BASSO Ivan"},177]
[11,242,{"$f":"IF(B18=\"\",\"\",VLOOKUP(B18,'Rennerslijst Giro'!A11:C986,2))","v":"MODOLO Sacha"},162]
[12,27,{"$f":"IF(B19=\"\",\"\",VLOOKUP(B19,'Rennerslijst Giro'!A12:C987,2))","v":"BETANCUR GOMEZ Carlos Alberto"},45]
[null,null,null,null,"roze",150,0,0,0,0,0,0,0,150,150,150,150,150,0,0,0,0,0,0,0,0,0,{"$f":"SUM(G20:AA20)","v":750}]
[null,null,"Totaal:",7480,"Berg",100,0,0,0,0,0,0,100,100,0,0,0,0,0,0,0,0,0,0,0,0,0,200]
[null,null,"Totaal niet boven------->",8000,"punten",100,0,0,0,0,0,0,0,0,100,100,100,0,0,0,0,0,0,0,0,0,0,300]
[null,null,null,null,"Jongere",100,0,0,0,0,0,0,0,0,0,100,0,200,0,0,0,0,0,0,0,0,0,300]
[]
[null,null,null,null,null,"Totaal",{"$f":"SUM(G8:G23)","v":0},{"$f":"SUM(H8:H23)","v":0},{"$f":"SUM(I8:I23)","v":0},0,0,0,100,250,250,350,250,350,0,0,0,0,0,0,0,0,0,{"$f":"SUM(AB8:AB23)","v":1550}]
[]
[null,"Code","Reserve","Waarde"]
[1,3,{"$f":"IF(B28=\"\",\"\",VLOOKUP(B28,'Rennerslijst Giro'!A1:C976,2))","v":"POZZOVIVO Domenico"},1358]
[2,309,{"$f":"IF(B29=\"\",\"\",VLOOKUP(B29,'Rennerslijst Giro'!A2:C977,2))","v":"CUNEGO Damiano"},451]
[3,549,{"$f":"IF(B30=\"\",\"\",VLOOKUP(B30,'Rennerslijst Giro'!A3:C978,2))","v":"VAN POPPEL Boy"},888]
[null,null,"Totaal:",2697]
[null,null,"Totaal niet boven ------->",2500]

{"sheet":"Paperboys","index":9,"n_rows":32,"n_cols":28,"rows_kept":32,"cut":false,"hidden":false,"merged":[]}
["ZWEMbike: GIRO 2015"]
[]
["Naam:","Tom  :  "]
["Ploegn:","Paperboys*"]
[]
[null,null,null,null,null,"RIT",1,2,3,4,5,6,7,8,9,10,11,12,13,14,15,16,17,18,19,20,21,"Totaal"]
[null,"Code","Naam","Waarde"]
[1,473,{"$f":"IF(B8=\"\",\"\",VLOOKUP(B8,'Rennerslijst Giro'!A1:C976,2))","v":"PORTE Richie"},1791]
[2,146,{"$f":"IF(B9=\"\",\"\",VLOOKUP(B9,'Rennerslijst Giro'!A2:C977,2))","v":"URAN URAN Rigoberto"},1271]
[3,322,{"$f":"IF(B10=\"\",\"\",VLOOKUP(B10,'Rennerslijst Giro'!A3:C978,2))","v":"MATTHEWS Michael"},1235]
[4,50,{"$f":"IF(B11=\"\",\"\",VLOOKUP(B11,'Rennerslijst Giro'!A4:C979,2))","v":"ARU Fabio"},1123]
[5,368,{"$f":"IF(B12=\"\",\"\",VLOOKUP(B12,'Rennerslijst Giro'!A5:C980,2))","v":"HESJEDAL Ryder"},374]
[6,284,{"$f":"IF(B13=\"\",\"\",VLOOKUP(B13,'Rennerslijst Giro'!A6:C981,2))","v":"LOBATO DEL VALLE Juan Jose"},518]
[7,396,{"$f":"IF(B14=\"\",\"\",VLOOKUP(B14,'Rennerslijst Giro'!A7:C982,2))","v":"MEZGEC Luka"},406]
[8,456,{"$f":"IF(B15=\"\",\"\",VLOOKUP(B15,'Rennerslijst Giro'!A8:C983,2))","v":"HOFLAND Moreno"},189]
[9,110,{"$f":"IF(B16=\"\",\"\",VLOOKUP(B16,'Rennerslijst Giro'!A9:C984,2))","v":"ATAPUMA HURTADO Jhon Darwin"},189]
[10,242,{"$f":"IF(B17=\"\",\"\",VLOOKUP(B17,'Rennerslijst Giro'!A10:C985,2))","v":"MODOLO Sacha"},177]
[11,87,{"$f":"IF(B18=\"\",\"\",VLOOKUP(B18,'Rennerslijst Giro'!A11:C986,2))","v":"BARBIN Enrico"},162]
[12,319,{"$f":"IF(B19=\"\",\"\",VLOOKUP(B19,'Rennerslijst Giro'!A12:C987,2))","v":"STACCHIOTTI Riccardo"},45]
[null,null,null,null,"roze",150,0,0,0,0,0,0,0,0,0,0,0,0,0,0,0,0,0,0,0,0,0,{"$f":"SUM(G20:AA20)","v":0}]
[null,null,"Totaal:",7480,"Berg",100,0,0,0,0,0,0,100,100,0,0,0,0,0,0,0,0,0,0,0,0,0,200]
[null,null,"Totaal niet boven------->",8000,"punten",100,0,0,0,0,0,0,0,0,100,100,100,0,0,0,0,0,0,0,0,0,0,300]
[null,null,null,null,"Jongere",100,0,0,0,0,0,0,0,0,0,200,0,200,0,0,0,0,0,0,0,0,0,400]
[]
[null,null,null,null,null,"Totaal",{"$f":"SUM(G8:G23)","v":0},{"$f":"SUM(H8:H23)","v":0},{"$f":"SUM(I8:I23)","v":0},0,0,0,100,100,100,300,100,200,0,0,0,0,0,0,0,0,0,{"$f":"SUM(AB8:AB23)","v":900}]
[]
[null,"Code","Reserve","Waarde"]
[1,502,{"$f":"IF(B28=\"\",\"\",VLOOKUP(B28,'Rennerslijst Giro'!A1:C976,2))","v":"CONTADOR VELASCO Alberto"},1358]
[2,3,{"$f":"IF(B29=\"\",\"\",VLOOKUP(B29,'Rennerslijst Giro'!A2:C977,2))","v":"POZZOVIVO Domenico"},451]
[3,63,{"$f":"IF(B30=\"\",\"\",VLOOKUP(B30,'Rennerslijst Giro'!A3:C978,2))","v":"KANGERT Tanel"},888]
[null,null,"Totaal:",2697]
[null,null,"Totaal niet boven ------->",2500]

{"sheet":"Il Krieperi Disoccupato","index":10,"n_rows":32,"n_cols":28,"rows_kept":32,"cut":false,"hidden":false,"merged":[]}
["ZWEMbike: GIRO 2015"]
[]
["Naam:","Robin  :  "]
["Ploegn:","Il Krieperi Disoccupato***"]
[]
[null,null,null,null,null,"RIT",1,2,3,4,5,6,7,8,9,10,11,12,13,14,15,16,17,18,19,20,21,"Totaal"]
[null,"Code","Naam","Waarde"]
[1,502,{"$f":"IF(B8=\"\",\"\",VLOOKUP(B8,'Rennerslijst Giro'!A1:C976,2))","v":"CONTADOR VELASCO Alberto"},1791]
[2,473,{"$f":"IF(B9=\"\",\"\",VLOOKUP(B9,'Rennerslijst Giro'!A2:C977,2))","v":"PORTE Richie"},1271]
[3,146,{"$f":"IF(B10=\"\",\"\",VLOOKUP(B10,'Rennerslijst Giro'!A3:C978,2))","v":"URAN URAN Rigoberto"},1235]
[4,50,{"$f":"IF(B11=\"\",\"\",VLOOKUP(B11,'Rennerslijst Giro'!A4:C979,2))","v":"ARU Fabio"},1123]
[5,254,{"$f":"IF(B12=\"\",\"\",VLOOKUP(B12,'Rennerslijst Giro'!A5:C980,2))","v":"GREIPEL André"},374]
[6,424,{"$f":"IF(B13=\"\",\"\",VLOOKUP(B13,'Rennerslijst Giro'!A6:C981,2))","v":"ZAKARIN Ilnur"},518]
[7,260,{"$f":"IF(B14=\"\",\"\",VLOOKUP(B14,'Rennerslijst Giro'!A7:C982,2))","v":"VAN DEN BROECK Jurgen"},406]
[8,236,{"$f":"IF(B15=\"\",\"\",VLOOKUP(B15,'Rennerslijst Giro'!A8:C983,2))","v":"ULISSI Diego"},189]
[9,242,{"$f":"IF(B16=\"\",\"\",VLOOKUP(B16,'Rennerslijst Giro'!A9:C984,2))","v":"MODOLO Sacha"},189]
[10,312,{"$f":"IF(B17=\"\",\"\",VLOOKUP(B17,'Rennerslijst Giro'!A10:C985,2))","v":"COLLI Daniele"},177]
[11,27,{"$f":"IF(B18=\"\",\"\",VLOOKUP(B18,'Rennerslijst Giro'!A11:C986,2))","v":"BETANCUR GOMEZ Carlos Alberto"},162]
[12,319,{"$f":"IF(B19=\"\",\"\",VLOOKUP(B19,'Rennerslijst Giro'!A12:C987,2))","v":"STACCHIOTTI Riccardo"},45]
[null,null,null,null,"roze",150,0,0,0,0,0,0,0,150,150,150,150,150,0,0,0,0,0,0,0,0,0,{"$f":"SUM(G20:AA20)","v":750}]
[null,null,"Totaal:",7480,"Berg",100,0,0,0,0,0,0,100,100,0,0,0,0,0,0,0,0,0,0,0,0,0,200]
[null,null,"Totaal niet boven------->",8000,"punten",100,0,0,0,0,100,0,0,0,0,0,0,100,0,0,0,0,0,0,0,0,0,200]
[null,null,null,null,"Jongere",100,0,0,0,0,0,0,0,0,0,100,0,300,0,0,0,0,0,0,0,0,0,400]
[]
[null,null,null,null,null,"Totaal",{"$f":"SUM(G8:G23)","v":0},{"$f":"SUM(H8:H23)","v":0},{"$f":"SUM(I8:I23)","v":0},0,100,0,100,250,150,250,150,550,0,0,0,0,0,0,0,0,0,{"$f":"SUM(AB8:AB23)","v":1550}]
[]
[null,"Code","Reserve","Waarde"]
[1,3,{"$f":"IF(B28=\"\",\"\",VLOOKUP(B28,'Rennerslijst Giro'!A1:C976,2))","v":"POZZOVIVO Domenico"},1358]
[2,285,{"$f":"IF(B29=\"\",\"\",VLOOKUP(B29,'Rennerslijst Giro'!A2:C977,2))","v":"INTXAUSTI ELORRIAGA Beñat"},451]
[3,451,{"$f":"IF(B30=\"\",\"\",VLOOKUP(B30,'Rennerslijst Giro'!A3:C978,2))","v":"KRUIJSWIJK Steven"},888]
[null,null,"Totaal:",2697]
[null,null,"Totaal niet boven ------->",2500]

{"sheet":"The Dolphen","index":11,"n_rows":32,"n_cols":28,"rows_kept":32,"cut":false,"hidden":false,"merged":[]}
["ZWEMbike: GIRO 2015"]
[]
["Naam:","Pieter  :  "]
["Ploegn:","The Dolphen"]
[]
[null,null,null,null,null,"RIT",1,2,3,4,5,6,7,8,9,10,11,12,13,14,15,16,17,18,19,20,21,"Totaal"]
[null,"Code","Naam","Waarde"]
[1,502,{"$f":"IF(B8=\"\",\"\",VLOOKUP(B8,'Rennerslijst Giro'!A1:C976,2))","v":"CONTADOR VELASCO Alberto"},1791]
[2,473,{"$f":"IF(B9=\"\",\"\",VLOOKUP(B9,'Rennerslijst Giro'!A2:C977,2))","v":"PORTE Richie"},1271]
[3,146,{"$f":"IF(B10=\"\",\"\",VLOOKUP(B10,'Rennerslijst Giro'!A3:C978,2))","v":"URAN URAN Rigoberto"},1235]
[4,50,{"$f":"IF(B11=\"\",\"\",VLOOKUP(B11,'Rennerslijst Giro'!A4:C979,2))","v":"ARU Fabio"},1123]
[5,478,{"$f":"IF(B12=\"\",\"\",VLOOKUP(B12,'Rennerslijst Giro'!A5:C980,2))","v":"KÖNIG Leopold"},374]
[6,396,{"$f":"IF(B13=\"\",\"\",VLOOKUP(B13,'Rennerslijst Giro'!A6:C981,2))","v":"MEZGEC Luka"},518]
[7,262,{"$f":"IF(B14=\"\",\"\",VLOOKUP(B14,'Rennerslijst Giro'!A7:C982,2))","v":"MONFORT Maxime"},406]
[8,431,{"$f":"IF(B15=\"\",\"\",VLOOKUP(B15,'Rennerslijst Giro'!A8:C983,2))","v":"PAOLINI Luca"},189]
[9,294,{"$f":"IF(B16=\"\",\"\",VLOOKUP(B16,'Rennerslijst Giro'!A9:C984,2))","v":"AMADOR BIKKAZAKOVA Andrey"},189]
[10,491,{"$f":"IF(B17=\"\",\"\",VLOOKUP(B17,'Rennerslijst Giro'!A10:C985,2))","v":"HENAO GOMEZ Sebastian"},177]
[11,213,{"$f":"IF(B18=\"\",\"\",VLOOKUP(B18,'Rennerslijst Giro'!A11:C986,2))","v":"SARAMOTINS Aleksejs"},162]
[12,117,{"$f":"IF(B19=\"\",\"\",VLOOKUP(B19,'Rennerslijst Giro'!A12:C987,2))","v":"ZABEL Rick"},45]
[null,null,null,null,"roze",150,0,0,0,0,0,0,0,150,150,150,150,150,0,0,0,0,0,0,0,0,0,{"$f":"SUM(G20:AA20)","v":750}]
[null,null,"Totaal:",7480,"Berg",100,0,0,0,0,0,0,100,100,0,0,0,0,0,0,0,0,0,0,0,0,0,200]
[null,null,"Totaal niet boven------->",8000,"punten",100,0,0,0,0,0,0,0,0,0,0,0,0,0,0,0,0,0,0,0,0,0,0]
[null,null,null,null,"Jongere",100,0,0,0,0,0,0,0,0,0,100,0,200,0,0,0,0,0,0,0,0,0,300]
[]
[null,null,null,null,null,"Totaal",{"$f":"SUM(G8:G23)","v":0},{"$f":"SUM(H8:H23)","v":0},{"$f":"SUM(I8:I23)","v":0},0,0,0,100,250,150,250,150,350,0,0,0,0,0,0,0,0,0,{"$f":"SUM(AB8:AB23)","v":1250}]
[]
[null,"Code","Reserve","Waarde"]
[1,3,{"$f":"IF(B28=\"\",\"\",VLOOKUP(B28,'Rennerslijst Giro'!A1:C976,2))","v":"POZZOVIVO Domenico"},1358]
[2,533,{"$f":"IF(B29=\"\",\"\",VLOOKUP(B29,'Rennerslijst Giro'!A2:C977,2))","v":"NIZZOLO Giacomo"},451]
[3,101,{"$f":"IF(B30=\"\",\"\",VLOOKUP(B30,'Rennerslijst Giro'!A3:C978,2))","v":"CARUSO Damiano"},888]
[null,null,"Totaal:",2697]
[null,null,"Totaal niet boven ------->",2500]

{"sheet":"Squadra Parcheggio","index":12,"n_rows":32,"n_cols":28,"rows_kept":32,"cut":false,"hidden":false,"merged":[]}
["ZWEMbike: GIRO 2015"]
[]
["Naam:","Bart  :  "]
["Ploegn:","Squadra Parcheggio"]
[]
[null,null,null,null,null,"RIT",1,2,3,4,5,6,7,8,9,10,11,12,13,14,15,16,17,18,19,20,21,"Totaal"]
[null,"Code","Naam","Waarde"]
[1,322,{"$f":"IF(B8=\"\",\"\",VLOOKUP(B8,'Rennerslijst Giro'!A1:C976,2))","v":"MATTHEWS Michael"},1791]
[2,50,{"$f":"IF(B9=\"\",\"\",VLOOKUP(B9,'Rennerslijst Giro'!A2:C977,2))","v":"ARU Fabio"},1271]
[3,146,{"$f":"IF(B10=\"\",\"\",VLOOKUP(B10,'Rennerslijst Giro'!A3:C978,2))","v":"URAN URAN Rigoberto"},1235]
[4,473,{"$f":"IF(B11=\"\",\"\",VLOOKUP(B11,'Rennerslijst Giro'!A4:C979,2))","v":"PORTE Richie"},1123]
[5,477,{"$f":"IF(B12=\"\",\"\",VLOOKUP(B12,'Rennerslijst Giro'!A5:C980,2))","v":"VIVIANI Elia"},374]
[6,507,{"$f":"IF(B13=\"\",\"\",VLOOKUP(B13,'Rennerslijst Giro'!A6:C981,2))","v":"ROGERS Michael"},518]
[7,491,{"$f":"IF(B14=\"\",\"\",VLOOKUP(B14,'Rennerslijst Giro'!A7:C982,2))","v":"HENAO GOMEZ Sebastian"},406]
[8,327,{"$f":"IF(B15=\"\",\"\",VLOOKUP(B15,'Rennerslijst Giro'!A8:C983,2))","v":"CHAVES RUBIO Jhoan Esteban"},189]
[9,262,{"$f":"IF(B16=\"\",\"\",VLOOKUP(B16,'Rennerslijst Giro'!A9:C984,2))","v":"MONFORT Maxime"},189]
[10,456,{"$f":"IF(B17=\"\",\"\",VLOOKUP(B17,'Rennerslijst Giro'!A10:C985,2))","v":"HOFLAND Moreno"},177]
[11,396,{"$f":"IF(B18=\"\",\"\",VLOOKUP(B18,'Rennerslijst Giro'!A11:C986,2))","v":"MEZGEC Luka"},162]
[12,242,{"$f":"IF(B19=\"\",\"\",VLOOKUP(B19,'Rennerslijst Giro'!A12:C987,2))","v":"MODOLO Sacha"},45]
[null,null,null,null,"roze",150,0,0,0,0,0,0,0,0,0,0,0,0,0,0,0,0,0,0,0,0,0,{"$f":"SUM(G20:AA20)","v":0}]
[null,null,"Totaal:",7480,"Berg",100,0,0,0,0,0,0,100,100,0,0,0,0,0,0,0,0,0,0,0,0,0,200]
[null,null,"Totaal niet boven------->",8000,"punten",100,0,0,0,0,0,0,0,0,100,100,100,0,0,0,0,0,0,0,0,0,0,300]
[null,null,null,null,"Jongere",100,0,0,0,0,0,0,0,0,0,200,0,200,0,0,0,0,0,0,0,0,0,400]
[]
[null,null,null,null,null,"Totaal",{"$f":"SUM(G8:G23)","v":0},{"$f":"SUM(H8:H23)","v":0},{"$f":"SUM(I8:I23)","v":0},0,0,0,100,100,100,300,100,200,0,0,0,0,0,0,0,0,0,{"$f":"SUM(AB8:AB23)","v":900}]
[]
[null,"Code","Reserve","Waarde"]
[1,3,{"$f":"IF(B28=\"\",\"\",VLOOKUP(B28,'Rennerslijst Giro'!A1:C976,2))","v":"POZZOVIVO Domenico"},1358]
[2,260,{"$f":"IF(B29=\"\",\"\",VLOOKUP(B29,'Rennerslijst Giro'!A2:C977,2))","v":"VAN DEN BROECK Jurgen"},451]
[3,285,{"$f":"IF(B30=\"\",\"\",VLOOKUP(B30,'Rennerslijst Giro'!A3:C978,2))","v":"INTXAUSTI ELORRIAGA Beñat"},888]
[null,null,"Totaal:",2697]
[null,null,"Totaal niet boven ------->",2500]

{"sheet":"WELK","index":13,"n_rows":32,"n_cols":28,"rows_kept":32,"cut":false,"hidden":false,"merged":[]}
["ZWEMbike: GIRO 2015"]
[]
["Naam:","Ronny  :  "]
["Ploegn:","WELK*"]
[]
[null,null,null,null,null,"RIT",1,2,3,4,5,6,7,8,9,10,11,12,13,14,15,16,17,18,19,20,21,"Totaal"]
[null,"Code","Naam","Waarde"]
[1,502,{"$f":"IF(B8=\"\",\"\",VLOOKUP(B8,'Rennerslijst Giro'!A1:C976,2))","v":"CONTADOR VELASCO Alberto"},1791]
[2,473,{"$f":"IF(B9=\"\",\"\",VLOOKUP(B9,'Rennerslijst Giro'!A2:C977,2))","v":"PORTE Richie"},1271]
[3,50,{"$f":"IF(B10=\"\",\"\",VLOOKUP(B10,'Rennerslijst Giro'!A3:C978,2))","v":"ARU Fabio"},1235]
[4,254,{"$f":"IF(B11=\"\",\"\",VLOOKUP(B11,'Rennerslijst Giro'!A4:C979,2))","v":"GREIPEL André"},1123]
[5,368,{"$f":"IF(B12=\"\",\"\",VLOOKUP(B12,'Rennerslijst Giro'!A5:C980,2))","v":"HESJEDAL Ryder"},374]
[6,260,{"$f":"IF(B13=\"\",\"\",VLOOKUP(B13,'Rennerslijst Giro'!A6:C981,2))","v":"VAN DEN BROECK Jurgen"},518]
[7,451,{"$f":"IF(B14=\"\",\"\",VLOOKUP(B14,'Rennerslijst Giro'!A7:C982,2))","v":"KRUIJSWIJK Steven"},406]
[8,59,{"$f":"IF(B15=\"\",\"\",VLOOKUP(B15,'Rennerslijst Giro'!A8:C983,2))","v":"LANDA MEANA Mikel"},189]
[9,262,{"$f":"IF(B16=\"\",\"\",VLOOKUP(B16,'Rennerslijst Giro'!A9:C984,2))","v":"MONFORT Maxime"},189]
[10,237,{"$f":"IF(B17=\"\",\"\",VLOOKUP(B17,'Rennerslijst Giro'!A10:C985,2))","v":"FERRARI Roberto"},177]
[11,355,{"$f":"IF(B18=\"\",\"\",VLOOKUP(B18,'Rennerslijst Giro'!A11:C986,2))","v":"PETACCHI Alessandro"},162]
[12,27,{"$f":"IF(B19=\"\",\"\",VLOOKUP(B19,'Rennerslijst Giro'!A12:C987,2))","v":"BETANCUR GOMEZ Carlos Alberto"},45]
[null,null,null,null,"roze",150,0,0,0,0,0,0,0,150,150,150,150,150,0,0,0,0,0,0,0,0,0,{"$f":"SUM(G20:AA20)","v":750}]
[null,null,"Totaal:",7480,"Berg",100,0,0,0,0,0,0,100,100,0,0,0,0,0,0,0,0,0,0,0,0,0,200]
[null,null,"Totaal niet boven------->",8000,"punten",100,0,0,0,0,100,0,0,0,0,0,0,0,0,0,0,0,0,0,0,0,0,100]
[null,null,null,null,"Jongere",100,0,0,0,0,0,0,0,0,0,0,0,200,0,0,0,0,0,0,0,0,0,200]
[]
[null,null,null,null,null,"Totaal",{"$f":"SUM(G8:G23)","v":0},{"$f":"SUM(H8:H23)","v":0},{"$f":"SUM(I8:I23)","v":0},0,100,0,100,250,150,150,150,350,0,0,0,0,0,0,0,0,0,{"$f":"SUM(AB8:AB23)","v":1250}]
[]
[null,"Code","Reserve","Waarde"]
[1,146,{"$f":"IF(B28=\"\",\"\",VLOOKUP(B28,'Rennerslijst Giro'!A1:C976,2))","v":"URAN URAN Rigoberto"},1358]
[2,3,{"$f":"IF(B29=\"\",\"\",VLOOKUP(B29,'Rennerslijst Giro'!A2:C977,2))","v":"POZZOVIVO Domenico"},451]
[3,309,{"$f":"IF(B30=\"\",\"\",VLOOKUP(B30,'Rennerslijst Giro'!A3:C978,2))","v":"CUNEGO Damiano"},888]
[null,null,"Totaal:",2697]
[null,null,"Totaal niet boven ------->",2500]

{"sheet":"De Bakkers","index":14,"n_rows":32,"n_cols":28,"rows_kept":32,"cut":false,"hidden":false,"merged":[]}
["ZWEMbike: GIRO 2015"]
[]
["Naam:","Guy  :  "]
["Ploegn:","De Bakkers"]
[]
[null,null,null,null,null,"RIT",1,2,3,4,5,6,7,8,9,10,11,12,13,14,15,16,17,18,19,20,21,"Totaal"]
[null,"Code","Naam","Waarde"]
[1,502,{"$f":"IF(B8=\"\",\"\",VLOOKUP(B8,'Rennerslijst Giro'!A1:C976,2))","v":"CONTADOR VELASCO Alberto"},1791]
[2,95,{"$f":"IF(B9=\"\",\"\",VLOOKUP(B9,'Rennerslijst Giro'!A2:C977,2))","v":"GILBERT Philippe"},1271]
[3,322,{"$f":"IF(B10=\"\",\"\",VLOOKUP(B10,'Rennerslijst Giro'!A3:C978,2))","v":"MATTHEWS Michael"},1235]
[4,254,{"$f":"IF(B11=\"\",\"\",VLOOKUP(B11,'Rennerslijst Giro'!A4:C979,2))","v":"GREIPEL André"},1123]
[5,534,{"$f":"IF(B12=\"\",\"\",VLOOKUP(B12,'Rennerslijst Giro'!A5:C980,2))","v":"FELLINE Fabio"},374]
[6,327,{"$f":"IF(B13=\"\",\"\",VLOOKUP(B13,'Rennerslijst Giro'!A6:C981,2))","v":"CHAVES RUBIO Jhoan Esteban"},518]
[7,262,{"$f":"IF(B14=\"\",\"\",VLOOKUP(B14,'Rennerslijst Giro'!A7:C982,2))","v":"MONFORT Maxime"},406]
[8,333,{"$f":"IF(B15=\"\",\"\",VLOOKUP(B15,'Rennerslijst Giro'!A8:C983,2))","v":"WEENING Pieter"},189]
[9,264,{"$f":"IF(B16=\"\",\"\",VLOOKUP(B16,'Rennerslijst Giro'!A9:C984,2))","v":"BAK Lars Ytting"},189]
[10,106,{"$f":"IF(B17=\"\",\"\",VLOOKUP(B17,'Rennerslijst Giro'!A10:C985,2))","v":"KÜNG Stefan"},177]
[11,335,{"$f":"IF(B18=\"\",\"\",VLOOKUP(B18,'Rennerslijst Giro'!A11:C986,2))","v":"DURBRIDGE Luke"},162]
[12,242,{"$f":"IF(B19=\"\",\"\",VLOOKUP(B19,'Rennerslijst Giro'!A12:C987,2))","v":"MODOLO Sacha"},45]
[null,null,null,null,"roze",150,0,0,0,0,0,0,0,150,150,150,150,150,0,0,0,0,0,0,0,0,0,{"$f":"SUM(G20:AA20)","v":750}]
[null,null,"Totaal:",7480,"Berg",100,0,0,0,0,0,0,0,0,0,0,0,0,0,0,0,0,0,0,0,0,0,0]
[null,null,"Totaal niet boven------->",8000,"punten",100,0,0,0,0,0,0,0,0,100,100,100,0,0,0,0,0,0,0,0,0,0,300]
[null,null,null,null,"Jongere",100,0,0,0,0,0,0,0,0,0,100,0,0,0,0,0,0,0,0,0,0,0,100]
[]
[null,null,null,null,null,"Totaal",{"$f":"SUM(G8:G23)","v":0},{"$f":"SUM(H8:H23)","v":0},{"$f":"SUM(I8:I23)","v":0},0,0,0,0,150,250,350,250,150,0,0,0,0,0,0,0,0,0,{"$f":"SUM(AB8:AB23)","v":1150}]
[]
[null,"Code","Reserve","Waarde"]
[1,146,{"$f":"IF(B28=\"\",\"\",VLOOKUP(B28,'Rennerslijst Giro'!A1:C976,2))","v":"URAN URAN Rigoberto"},1358]
[2,3,{"$f":"IF(B29=\"\",\"\",VLOOKUP(B29,'Rennerslijst Giro'!A2:C977,2))","v":"POZZOVIVO Domenico"},451]
[3,83,{"$f":"IF(B30=\"\",\"\",VLOOKUP(B30,'Rennerslijst Giro'!A3:C978,2))","v":"PIRAZZI Stefano"},888]
[null,null,"Totaal:",2697]
[null,null,"Totaal niet boven ------->",2500]

{"sheet":"De VACCAreurs","index":15,"n_rows":32,"n_cols":28,"rows_kept":32,"cut":false,"hidden":false,"merged":[]}
["ZWEMbike: GIRO 2015"]
[]
["Naam:","Sven  :    "]
["Ploegn:","De VACCAreurs****"]
[]
[null,null,null,null,null,"RIT",1,2,3,4,5,6,7,8,9,10,11,12,13,14,15,16,17,18,19,20,21,"Totaal"]
[null,"Code","Naam","Waarde"]
[1,502,{"$f":"IF(B8=\"\",\"\",VLOOKUP(B8,'Rennerslijst Giro'!A1:C976,2))","v":"CONTADOR VELASCO Alberto"},1791]
[2,473,{"$f":"IF(B9=\"\",\"\",VLOOKUP(B9,'Rennerslijst Giro'!A2:C977,2))","v":"PORTE Richie"},1271]
[3,146,{"$f":"IF(B10=\"\",\"\",VLOOKUP(B10,'Rennerslijst Giro'!A3:C978,2))","v":"URAN URAN Rigoberto"},1235]
[4,50,{"$f":"IF(B11=\"\",\"\",VLOOKUP(B11,'Rennerslijst Giro'!A4:C979,2))","v":"ARU Fabio"},1123]
[5,254,{"$f":"IF(B12=\"\",\"\",VLOOKUP(B12,'Rennerslijst Giro'!A5:C980,2))","v":"GREIPEL André"},374]
[6,260,{"$f":"IF(B13=\"\",\"\",VLOOKUP(B13,'Rennerslijst Giro'!A6:C981,2))","v":"VAN DEN BROECK Jurgen"},518]
[7,429,{"$f":"IF(B14=\"\",\"\",VLOOKUP(B14,'Rennerslijst Giro'!A7:C982,2))","v":"TROFIMOV Yury"},406]
[8,332,{"$f":"IF(B15=\"\",\"\",VLOOKUP(B15,'Rennerslijst Giro'!A8:C983,2))","v":"YATES Simon"},189]
[9,110,{"$f":"IF(B16=\"\",\"\",VLOOKUP(B16,'Rennerslijst Giro'!A9:C984,2))","v":"ATAPUMA HURTADO Jhon Darwin"},189]
[10,271,{"$f":"IF(B17=\"\",\"\",VLOOKUP(B17,'Rennerslijst Giro'!A10:C985,2))","v":"VERVAEKE Louis"},177]
[11,312,{"$f":"IF(B18=\"\",\"\",VLOOKUP(B18,'Rennerslijst Giro'!A11:C986,2))","v":"COLLI Daniele"},162]
[12,358,{"$f":"IF(B19=\"\",\"\",VLOOKUP(B19,'Rennerslijst Giro'!A12:C987,2))","v":"FAVILLI Elia"},45]
[null,null,null,null,"roze",150,0,0,0,0,0,0,0,150,150,150,150,150,0,0,0,0,0,0,0,0,0,{"$f":"SUM(G20:AA20)","v":750}]
[null,null,"Totaal:",7480,"Berg",100,0,0,0,0,0,0,100,100,0,0,0,0,0,0,0,0,0,0,0,0,0,200]
[null,null,"Totaal niet boven------->",8000,"punten",100,0,0,0,0,0,0,0,0,0,0,0,0,0,0,0,0,0,0,0,0,0,0]
[null,null,null,null,"Jongere",100,0,0,0,0,0,0,0,0,0,0,0,300,0,0,0,0,0,0,0,0,0,300]
[]
[null,null,null,null,null,"Totaal",{"$f":"SUM(G8:G23)","v":0},{"$f":"SUM(H8:H23)","v":0},{"$f":"SUM(I8:I23)","v":0},0,0,0,100,250,150,150,150,450,0,0,0,0,0,0,0,0,0,{"$f":"SUM(AB8:AB23)","v":1250}]
[]
[null,"Code","Reserve","Waarde"]
[1,3,{"$f":"IF(B28=\"\",\"\",VLOOKUP(B28,'Rennerslijst Giro'!A1:C976,2))","v":"POZZOVIVO Domenico"},1358]
[2,124,{"$f":"IF(B29=\"\",\"\",VLOOKUP(B29,'Rennerslijst Giro'!A2:C977,2))","v":"PATERSKI Maciej"},451]
[3,478,{"$f":"IF(B30=\"\",\"\",VLOOKUP(B30,'Rennerslijst Giro'!A3:C978,2))","v":"KÖNIG Leopold"},888]
[null,null,"Totaal:",2697]
[null,null,"Totaal niet boven ------->",2500]

{"sheet":"Totaalstand","index":16,"n_rows":23,"n_cols":16,"rows_kept":23,"cut":false,"hidden":false,"merged":[]}
[null,1,2,3,4,5,6,7,8,9,10,11,12,13,14,15]
["San Lorenzo al Mare – San Remo",{"$f":"SUM('De VACCAreurs'!G25)&(Pronostiekers!A3)","v":"0: Sven****"},{"$f":"SUM('Il Krieperi Disoccupato'!G25)&(Pronostiekers!A4)","v":"0: Robin***"},{"$f":"SUM(U!G25)&(Pronostiekers!A1)","v":"0: Ollie****"},{"$f":"SUM(Jeff!G25)&(Pronostiekers!A21)","v":"0: Arno"},{"$f":"SUM(PADT!G25)&(Pronostiekers!A17)","v":"0: Filip"},{"$f":"SUM(WELK!G25)&(Pronostiekers!A11)","v":"0: Ronny*"},{"$f":"SUM('De Roze 12'!G25)&(Pronostiekers!A9)","v":"0: Janes*"},{"$f":"SUM('FC RAFTEN'!G25)&(Pronostiekers!A5)","v":"0: Raf**"},{"$f":"SUM('Le Capre Di Montagna'!G25)&(Pronostiekers!A2)","v":"0: Joik****"},{"$f":"SUM('De Freddies'!G25)&(Pronostiekers!A13)","v":"0: Fred"},{"$f":"SUM('Squadra Parcheggio'!G25)&(Pronostiekers!A22)","v":"0: Bart"},{"$f":"SUM(Paperboys!G25)&(Pronostiekers!A10)","v":"0: Tom*"},{"$f":"SUM('De Roze Janetten'!G25)&(Pronostiekers!A12)","v":"0: Tim"},{"$f":"SUM('The Dolphen'!G25)&(Pronostiekers!A14)","v":"0: Pieter"},{"$f":"SUM('De Bakkers'!G25)&(Pronostiekers!A20)","v":"0: Guy"}]
["Albenga – Genua",{"$f":"SUM('De VACCAreurs'!G25:H25)&(Pronostiekers!A3)","v":"0: Sven****"},{"$f":"SUM('Il Krieperi Disoccupato'!G25:H25)&(Pronostiekers!A4)","v":"0: Robin***"},{"$f":"SUM(U!G25:H25)&(Pronostiekers!A1)","v":"0: Ollie****"},{"$f":"SUM(Jeff!G25:H25)&(Pronostiekers!A21)","v":"0: Arno"},{"$f":"SUM(PADT!G25:H25)&(Pronostiekers!A17)","v":"0: Filip"},{"$f":"SUM(WELK!G25:H25)&(Pronostiekers!A11)","v":"0: Ronny*"},{"$f":"SUM('De Roze 12'!G25:H25)&(Pronostiekers!A9)","v":"0: Janes*"},{"$f":"SUM('FC RAFTEN'!G25:H25)&(Pronostiekers!A5)","v":"0: Raf**"},{"$f":"SUM('Le Capre Di Montagna'!G25:H25)&(Pronostiekers!A2)","v":"0: Joik****"},{"$f":"SUM('De Freddies'!G25:H25)&(Pronostiekers!A13)","v":"0: Fred"},{"$f":"SUM('Squadra Parcheggio'!G25:H25)&(Pronostiekers!A22)","v":"0: Bart"},{"$f":"SUM(Paperboys!G25:H25)&(Pronostiekers!A10)","v":"0: Tom*"},{"$f":"SUM('De Roze Janetten'!G25:H25)&(Pronostiekers!A12)","v":"0: Tim"},{"$f":"SUM('The Dolphen'!G25:H25)&(Pronostiekers!A14)","v":"0: Pieter"},{"$f":"SUM('De Bakkers'!G25:H25)&(Pronostiekers!A20)","v":"0: Guy"}]
["Rapallo – Sestri Levante",{"$f":"SUM('De VACCAreurs'!G25:I25)&(Pronostiekers!A3)","v":"0: Sven****"},{"$f":"SUM('Il Krieperi Disoccupato'!G25:I25)&(Pronostiekers!A4)","v":"0: Robin***"},{"$f":"SUM(U!G25:I25)&(Pronostiekers!A1)","v":"100: Ollie****"},{"$f":"SUM(Jeff!G25:I25)&(Pronostiekers!A21)","v":"0: Arno"},{"$f":"SUM(PADT!G25:I25)&(Pronostiekers!A17)","v":"0: Filip"},{"$f":"SUM(WELK!G25:I25)&(Pronostiekers!A11)","v":"0: Ronny*"},{"$f":"SUM('De Roze 12'!G25:I25)&(Pronostiekers!A9)","v":"100: Janes*"},{"$f":"SUM('FC RAFTEN'!G25:I25)&(Pronostiekers!A5)","v":"0: Raf**"},{"$f":"SUM('Le Capre Di Montagna'!G25:I25)&(Pronostiekers!A2)","v":"100: Joik****"},{"$f":"SUM('De Freddies'!G25:I25)&(Pronostiekers!A13)","v":"0: Fred"},{"$f":"SUM('Squadra Parcheggio'!G25:I25)&(Pronostiekers!A22)","v":"0: Bart"},{"$f":"SUM(Paperboys!G25:I25)&(Pronostiekers!A10)","v":"0: Tom*"},{"$f":"SUM('De Roze Janetten'!G25:I25)&(Pronostiekers!A12)","v":"100: Tim"},{"$f":"SUM('The Dolphen'!G25:I25)&(Pronostiekers!A14)","v":"0: Pieter"},{"$f":"SUM('De Bakkers'!G25:I25)&(Pronostiekers!A20)","v":"0: Guy"}]
["Chiavari – La Spezia",{"$f":"SUM('De VACCAreurs'!G25:J25)&(Pronostiekers!A3)","v":"0: Sven****"},{"$f":"SUM('Il Krieperi Disoccupato'!G25:J25)&(Pronostiekers!A4)","v":"0: Robin***"},{"$f":"SUM(U!G25:J25)&(Pronostiekers!A1)","v":"200: Ollie****"},{"$f":"SUM(Jeff!G25:J25)&(Pronostiekers!A21)","v":"0: Arno"},{"$f":"SUM(PADT!G25:J25)&(Pronostiekers!A17)","v":"0: Filip"},{"$f":"SUM(WELK!G25:J25)&(Pronostiekers!A11)","v":"0: Ronny*"},{"$f":"SUM('De Roze 12'!G25:J25)&(Pronostiekers!A9)","v":"200: Janes*"},{"$f":"SUM('FC RAFTEN'!G25:J25)&(Pronostiekers!A5)","v":"0: Raf**"},{"$f":"SUM('Le Capre Di Montagna'!G25:J25)&(Pronostiekers!A2)","v":"200: Joik****"},{"$f":"SUM('De Freddies'!G25:J25)&(Pronostiekers!A13)","v":"0: Fred"},{"$f":"SUM('Squadra Parcheggio'!G25:J25)&(Pronostiekers!A22)","v":"0: Bart"},{"$f":"SUM(Paperboys!G25:J25)&(Pronostiekers!A10)","v":"0: Tom*"},{"$f":"SUM('De Roze Janetten'!G25:J25)&(Pronostiekers!A12)","v":"200: Tim"},{"$f":"SUM('The Dolphen'!G25:J25)&(Pronostiekers!A14)","v":"0: Pieter"},{"$f":"SUM('De Bakkers'!G25:J25)&(Pronostiekers!A20)","v":"0: Guy"}]
["La Spezia – Abetone",{"$f":"SUM('De VACCAreurs'!G25:K25)&(Pronostiekers!A3)","v":"0: Sven****"},{"$f":"SUM('Il Krieperi Disoccupato'!G25:K25)&(Pronostiekers!A4)","v":"100: Robin***"},{"$f":"SUM(U!G25:K25)&(Pronostiekers!A1)","v":"600: Ollie****"},{"$f":"SUM(Jeff!G25:K25)&(Pronostiekers!A21)","v":"0: Arno"},{"$f":"SUM(PADT!G25:K25)&(Pronostiekers!A17)","v":"0: Filip"},{"$f":"SUM(WELK!G25:K25)&(Pronostiekers!A11)","v":"100: Ronny*"},{"$f":"SUM('De Roze 12'!G25:K25)&(Pronostiekers!A9)","v":"300: Janes*"},{"$f":"SUM('FC RAFTEN'!G25:K25)&(Pronostiekers!A5)","v":"0: Raf**"},{"$f":"SUM('Le Capre Di Montagna'!G25:K25)&(Pronostiekers!A2)","v":"300: Joik****"},{"$f":"SUM('De Freddies'!G25:K25)&(Pronostiekers!A13)","v":"100: Fred"},{"$f":"SUM('Squadra Parcheggio'!G25:K25)&(Pronostiekers!A22)","v":"0: Bart"},{"$f":"SUM(Paperboys!G25:K25)&(Pronostiekers!A10)","v":"0: Tom*"},{"$f":"SUM('De Roze Janetten'!G25:K25)&(Pronostiekers!A12)","v":"300: Tim"},{"$f":"SUM('The Dolphen'!G25:K25)&(Pronostiekers!A14)","v":"0: Pieter"},{"$f":"SUM('De Bakkers'!G25:K25)&(Pronostiekers!A20)","v":"0: Guy"}]
["Montecatini Terme – Castiglione Della Pescaia",{"$f":"SUM('De VACCAreurs'!G25:L25)&(Pronostiekers!A3)","v":"0: Sven****"},{"$f":"SUM('Il Krieperi Disoccupato'!G25:L25)&(Pronostiekers!A4)","v":"100: Robin***"},{"$f":"SUM(U!G25:L25)&(Pronostiekers!A1)","v":"600: Ollie****"},{"$f":"SUM(Jeff!G25:L25)&(Pronostiekers!A21)","v":"0: Arno"},{"$f":"SUM(PADT!G25:L25)&(Pronostiekers!A17)","v":"0: Filip"},{"$f":"SUM(WELK!G25:L25)&(Pronostiekers!A11)","v":"100: Ronny*"},{"$f":"SUM('De Roze 12'!G25:L25)&(Pronostiekers!A9)","v":"300: Janes*"},{"$f":"SUM('FC RAFTEN'!G25:L25)&(Pronostiekers!A5)","v":"0: Raf**"},{"$f":"SUM('Le Capre Di Montagna'!G25:L25)&(Pronostiekers!A2)","v":"300: Joik****"},{"$f":"SUM('De Freddies'!G25:L25)&(Pronostiekers!A13)","v":"100: Fred"},{"$f":"SUM('Squadra Parcheggio'!G25:L25)&(Pronostiekers!A22)","v":"0: Bart"},{"$f":"SUM(Paperboys!G25:L25)&(Pronostiekers!A10)","v":"0: Tom*"},{"$f":"SUM('De Roze Janetten'!G25:L25)&(Pronostiekers!A12)","v":"300: Tim"},{"$f":"SUM('The Dolphen'!G25:L25)&(Pronostiekers!A14)","v":"0: Pieter"},{"$f":"SUM('De Bakkers'!G25:L25)&(Pronostiekers!A20)","v":"0: Guy"}]
["Grosseto – Fiuggi",{"$f":"SUM('De VACCAreurs'!G25:M25)&(Pronostiekers!A3)","v":"100: Sven****"},{"$f":"SUM('Il Krieperi Disoccupato'!G25:M25)&(Pronostiekers!A4)","v":"200: Robin***"},{"$f":"SUM(U!G25:M25)&(Pronostiekers!A1)","v":"600: Ollie****"},{"$f":"SUM(Jeff!G25:M25)&(Pronostiekers!A21)","v":"0: Arno"},{"$f":"SUM(PADT!G25:M25)&(Pronostiekers!A17)","v":"100: Filip"},{"$f":"SUM(WELK!G25:M25)&(Pronostiekers!A11)","v":"200: Ronny*"},{"$f":"SUM('De Roze 12'!G25:M25)&(Pronostiekers!A9)","v":"400: Janes*"},{"$f":"SUM('FC RAFTEN'!G25:M25)&(Pronostiekers!A5)","v":"100: Raf**"},{"$f":"SUM('Le Capre Di Montagna'!G25:M25)&(Pronostiekers!A2)","v":"300: Joik****"},{"$f":"SUM('De Freddies'!G25:M25)&(Pronostiekers!A13)","v":"200: Fred"},{"$f":"SUM('Squadra Parcheggio'!G25:M25)&(Pronostiekers!A22)","v":"100: Bart"},{"$f":"SUM(Paperboys!G25:M25)&(Pronostiekers!A10)","v":"100: Tom*"},{"$f":"SUM('De Roze Janetten'!G25:M25)&(Pronostiekers!A12)","v":"300: Tim"},{"$f":"SUM('The Dolphen'!G25:M25)&(Pronostiekers!A14)","v":"100: Pieter"},{"$f":"SUM('De Bakkers'!G25:M25)&(Pronostiekers!A20)","v":"0: Guy"}]
["Fiuggi – Campitello Matese",{"$f":"SUM('De VACCAreurs'!G25:N25)&(Pronostiekers!A3)","v":"350: Sven****"},{"$f":"SUM('Il Krieperi Disoccupato'!G25:N25)&(Pronostiekers!A4)","v":"450: Robin***"},{"$f":"SUM(U!G25:N25)&(Pronostiekers!A1)","v":"750: Ollie****"},{"$f":"SUM(Jeff!G25:N25)&(Pronostiekers!A21)","v":"150: Arno"},{"$f":"SUM(PADT!G25:N25)&(Pronostiekers!A17)","v":"350: Filip"},{"$f":"SUM(WELK!G25:N25)&(Pronostiekers!A11)","v":"450: Ronny*"},{"$f":"SUM('De Roze 12'!G25:N25)&(Pronostiekers!A9)","v":"500: Janes*"},{"$f":"SUM('FC RAFTEN'!G25:N25)&(Pronostiekers!A5)","v":"350: Raf**"},{"$f":"SUM('Le Capre Di Montagna'!G25:N25)&(Pronostiekers!A2)","v":"450: Joik****"},{"$f":"SUM('De Freddies'!G25:N25)&(Pronostiekers!A13)","v":"450: Fred"},{"$f":"SUM('Squadra Parcheggio'!G25:N25)&(Pronostiekers!A22)","v":"200: Bart"},{"$f":"SUM(Paperboys!G25:N25)&(Pronostiekers!A10)","v":"200: Tom*"},{"$f":"SUM('De Roze Janetten'!G25:N25)&(Pronostiekers!A12)","v":"450: Tim"},{"$f":"SUM('The Dolphen'!G25:N25)&(Pronostiekers!A14)","v":"350: Pieter"},{"$f":"SUM('De Bakkers'!G25:N25)&(Pronostiekers!A20)","v":"150: Guy"}]
["Benevento – San Giorgio Del Sannio",{"$f":"SUM('De VACCAreurs'!G25:O25)&(Pronostiekers!A3)","v":"500: Sven****"},{"$f":"SUM('Il Krieperi Disoccupato'!G25:O25)&(Pronostiekers!A4)","v":"600: Robin***"},{"$f":"SUM(U!G25:O25)&(Pronostiekers!A1)","v":"1000: Ollie****"},{"$f":"SUM(Jeff!G25:O25)&(Pronostiekers!A21)","v":"300: Arno"},{"$f":"SUM(PADT!G25:O25)&(Pronostiekers!A17)","v":"600: Filip"},{"$f":"SUM(WELK!G25:O25)&(Pronostiekers!A11)","v":"600: Ronny*"},{"$f":"SUM('De Roze 12'!G25:O25)&(Pronostiekers!A9)","v":"500: Janes*"},{"$f":"SUM('FC RAFTEN'!G25:O25)&(Pronostiekers!A5)","v":"600: Raf**"},{"$f":"SUM('Le Capre Di Montagna'!G25:O25)&(Pronostiekers!A2)","v":"700: Joik****"},{"$f":"SUM('De Freddies'!G25:O25)&(Pronostiekers!A13)","v":"700: Fred"},{"$f":"SUM('Squadra Parcheggio'!G25:O25)&(Pronostiekers!A22)","v":"300: Bart"},{"$f":"SUM(Paperboys!G25:O25)&(Pronostiekers!A10)","v":"300: Tom*"},{"$f":"SUM('De Roze Janetten'!G25:O25)&(Pronostiekers!A12)","v":"600: Tim"},{"$f":"SUM('The Dolphen'!G25:O25)&(Pronostiekers!A14)","v":"500: Pieter"},{"$f":"SUM('De Bakkers'!G25:O25)&(Pronostiekers!A20)","v":"400: Guy"}]
["Civitanova Marche – Forlì",{"$f":"SUM('De VACCAreurs'!G25:P25)&(Pronostiekers!A3)","v":"650: Sven****"},{"$f":"SUM('Il Krieperi Disoccupato'!G25:P25)&(Pronostiekers!A4)","v":"850: Robin***"},{"$f":"SUM(U!G25:P25)&(Pronostiekers!A1)","v":"1350: Ollie****"},{"$f":"SUM(Jeff!G25:P25)&(Pronostiekers!A21)","v":"550: Arno"},{"$f":"SUM(PADT!G25:P25)&(Pronostiekers!A17)","v":"950: Filip"},{"$f":"SUM(WELK!G25:P25)&(Pronostiekers!A11)","v":"750: Ronny*"},{"$f":"SUM('De Roze 12'!G25:P25)&(Pronostiekers!A9)","v":"700: Janes*"},{"$f":"SUM('FC RAFTEN'!G25:P25)&(Pronostiekers!A5)","v":"950: Raf**"},{"$f":"SUM('Le Capre Di Montagna'!G25:P25)&(Pronostiekers!A2)","v":"1050: Joik****"},{"$f":"SUM('De Freddies'!G25:P25)&(Pronostiekers!A13)","v":"1050: Fred"},{"$f":"SUM('Squadra Parcheggio'!G25:P25)&(Pronostiekers!A22)","v":"600: Bart"},{"$f":"SUM(Paperboys!G25:P25)&(Pronostiekers!A10)","v":"600: Tom*"},{"$f":"SUM('De Roze Janetten'!G25:P25)&(Pronostiekers!A12)","v":"1050: Tim"},{"$f":"SUM('The Dolphen'!G25:P25)&(Pronostiekers!A14)","v":"750: Pieter"},{"$f":"SUM('De Bakkers'!G25:P25)&(Pronostiekers!A20)","v":"750: Guy"}]
["Forlì – Imola (racecircuit Ferrari)",{"$f":"SUM('De VACCAreurs'!G25:Q25)&(Pronostiekers!A3)","v":"800: Sven****"},{"$f":"SUM('Il Krieperi Disoccupato'!G25:Q25)&(Pronostiekers!A4)","v":"1000: Robin***"},{"$f":"SUM(U!G25:Q25)&(Pronostiekers!A1)","v":"1600: Ollie****"},{"$f":"SUM(Jeff!G25:Q25)&(Pronostiekers!A21)","v":"700: Arno"},{"$f":"SUM(PADT!G25:Q25)&(Pronostiekers!A17)","v":"1200: Filip"},{"$f":"SUM(WELK!G25:Q25)&(Pronostiekers!A11)","v":"900: Ronny*"},{"$f":"SUM('De Roze 12'!G25:Q25)&(Pronostiekers!A9)","v":"700: Janes*"},{"$f":"SUM('FC RAFTEN'!G25:Q25)&(Pronostiekers!A5)","v":"1200: Raf**"},{"$f":"SUM('Le Capre Di Montagna'!G25:Q25)&(Pronostiekers!A2)","v":"1300: Joik****"},{"$f":"SUM('De Freddies'!G25:Q25)&(Pronostiekers!A13)","v":"1300: Fred"},{"$f":"SUM('Squadra Parcheggio'!G25:Q25)&(Pronostiekers!A22)","v":"700: Bart"},{"$f":"SUM(Paperboys!G25:Q25)&(Pronostiekers!A10)","v":"700: Tom*"},{"$f":"SUM('De Roze Janetten'!G25:Q25)&(Pronostiekers!A12)","v":"1200: Tim"},{"$f":"SUM('The Dolphen'!G25:Q25)&(Pronostiekers!A14)","v":"900: Pieter"},{"$f":"SUM('De Bakkers'!G25:Q25)&(Pronostiekers!A20)","v":"1000: Guy"}]
["Imola – Vicenza (Monte Berico)",{"$f":"SUM('De VACCAreurs'!G25:R25)&(Pronostiekers!A3)","v":"1250: Sven****"},{"$f":"SUM('Il Krieperi Disoccupato'!G25:R25)&(Pronostiekers!A4)","v":"1550: Robin***"},{"$f":"SUM(U!G25:R25)&(Pronostiekers!A1)","v":"2150: Ollie****"},{"$f":"SUM(Jeff!G25:R25)&(Pronostiekers!A21)","v":"1150: Arno"},{"$f":"SUM(PADT!G25:R25)&(Pronostiekers!A17)","v":"1550: Filip"},{"$f":"SUM(WELK!G25:R25)&(Pronostiekers!A11)","v":"1250: Ronny*"},{"$f":"SUM('De Roze 12'!G25:R25)&(Pronostiekers!A9)","v":"1000: Janes*"},{"$f":"SUM('FC RAFTEN'!G25:R25)&(Pronostiekers!A5)","v":"1550: Raf**"},{"$f":"SUM('Le Capre Di Montagna'!G25:R25)&(Pronostiekers!A2)","v":"1950: Joik****"},{"$f":"SUM('De Freddies'!G25:R25)&(Pronostiekers!A13)","v":"1550: Fred"},{"$f":"SUM('Squadra Parcheggio'!G25:R25)&(Pronostiekers!A22)","v":"900: Bart"},{"$f":"SUM(Paperboys!G25:R25)&(Pronostiekers!A10)","v":"900: Tom*"},{"$f":"SUM('De Roze Janetten'!G25:R25)&(Pronostiekers!A12)","v":"1750: Tim"},{"$f":"SUM('The Dolphen'!G25:R25)&(Pronostiekers!A14)","v":"1250: Pieter"},{"$f":"SUM('De Bakkers'!G25:R25)&(Pronostiekers!A20)","v":"1150: Guy"}]
["Montecchio Maggiore – Jesolo",{"$f":"SUM('De VACCAreurs'!G25:S25)&(Pronostiekers!A3)","v":"1250: Sven****"},{"$f":"SUM('Il Krieperi Disoccupato'!G25:S25)&(Pronostiekers!A4)","v":"1550: Robin***"},{"$f":"SUM(U!G25:S25)&(Pronostiekers!A1)","v":"2150: Ollie****"},{"$f":"SUM(Jeff!G25:S25)&(Pronostiekers!A21)","v":"1150: Arno"},{"$f":"SUM(PADT!G25:S25)&(Pronostiekers!A17)","v":"1550: Filip"},{"$f":"SUM(WELK!G25:S25)&(Pronostiekers!A11)","v":"1250: Ronny*"},{"$f":"SUM('De Roze 12'!G25:S25)&(Pronostiekers!A9)","v":"1000: Janes*"},{"$f":"SUM('FC RAFTEN'!G25:S25)&(Pronostiekers!A5)","v":"1550: Raf**"},{"$f":"SUM('Le Capre Di Montagna'!G25:S25)&(Pronostiekers!A2)","v":"1950: Joik****"},{"$f":"SUM('De Freddies'!G25:S25)&(Pronostiekers!A13)","v":"1550: Fred"},{"$f":"SUM('Squadra Parcheggio'!G25:S25)&(Pronostiekers!A22)","v":"900: Bart"},{"$f":"SUM(Paperboys!G25:S25)&(Pronostiekers!A10)","v":"900: Tom*"},{"$f":"SUM('De Roze Janetten'!G25:S25)&(Pronostiekers!A12)","v":"1750: Tim"},{"$f":"SUM('The Dolphen'!G25:S25)&(Pronostiekers!A14)","v":"1250: Pieter"},{"$f":"SUM('De Bakkers'!G25:S25)&(Pronostiekers!A20)","v":"1150: Guy"}]
["Treviso – Valdobbiadene",{"$f":"SUM('De VACCAreurs'!G25:T25)&(Pronostiekers!A3)","v":"1250: Sven****"},{"$f":"SUM('Il Krieperi Disoccupato'!G25:T25)&(Pronostiekers!A4)","v":"1550: Robin***"},{"$f":"SUM(U!G25:T25)&(Pronostiekers!A1)","v":"2150: Ollie****"},{"$f":"SUM(Jeff!G25:T25)&(Pronostiekers!A21)","v":"1150: Arno"},{"$f":"SUM(PADT!G25:T25)&(Pronostiekers!A17)","v":"1550: Filip"},{"$f":"SUM(WELK!G25:T25)&(Pronostiekers!A11)","v":"1250: Ronny*"},{"$f":"SUM('De Roze 12'!G25:T25)&(Pronostiekers!A9)","v":"1000: Janes*"},{"$f":"SUM('FC RAFTEN'!G25:T25)&(Pronostiekers!A5)","v":"1550: Raf**"},{"$f":"SUM('Le Capre Di Montagna'!G25:T25)&(Pronostiekers!A2)","v":"1950: Joik****"},{"$f":"SUM('De Freddies'!G25:T25)&(Pronostiekers!A13)","v":"1550: Fred"},{"$f":"SUM('Squadra Parcheggio'!G25:T25)&(Pronostiekers!A22)","v":"900: Bart"},{"$f":"SUM(Paperboys!G25:T25)&(Pronostiekers!A10)","v":"900: Tom*"},{"$f":"SUM('De Roze Janetten'!G25:T25)&(Pronostiekers!A12)","v":"1750: Tim"},{"$f":"SUM('The Dolphen'!G25:T25)&(Pronostiekers!A14)","v":"1250: Pieter"},{"$f":"SUM('De Bakkers'!G25:T25)&(Pronostiekers!A20)","v":"1150: Guy"}]
["Marostica – Madonna di Campiglio",{"$f":"SUM('De VACCAreurs'!G25:U25)&(Pronostiekers!A3)","v":"1250: Sven****"},{"$f":"SUM('Il Krieperi Disoccupato'!G25:U25)&(Pronostiekers!A4)","v":"1550: Robin***"},{"$f":"SUM(U!G25:U25)&(Pronostiekers!A1)","v":"2150: Ollie****"},{"$f":"SUM(Jeff!G25:U25)&(Pronostiekers!A21)","v":"1150: Arno"},{"$f":"SUM(PADT!G25:U25)&(Pronostiekers!A17)","v":"1550: Filip"},{"$f":"SUM(WELK!G25:U25)&(Pronostiekers!A11)","v":"1250: Ronny*"},{"$f":"SUM('De Roze 12'!G25:U25)&(Pronostiekers!A9)","v":"1000: Janes*"},{"$f":"SUM('FC RAFTEN'!G25:U25)&(Pronostiekers!A5)","v":"1550: Raf**"},{"$f":"SUM('Le Capre Di Montagna'!G25:U25)&(Pronostiekers!A2)","v":"1950: Joik****"},{"$f":"SUM('De Freddies'!G25:U25)&(Pronostiekers!A13)","v":"1550: Fred"},{"$f":"SUM('Squadra Parcheggio'!G25:U25)&(Pronostiekers!A22)","v":"900: Bart"},{"$f":"SUM(Paperboys!G25:U25)&(Pronostiekers!A10)","v":"900: Tom*"},{"$f":"SUM('De Roze Janetten'!G25:U25)&(Pronostiekers!A12)","v":"1750: Tim"},{"$f":"SUM('The Dolphen'!G25:U25)&(Pronostiekers!A14)","v":"1250: Pieter"},{"$f":"SUM('De Bakkers'!G25:U25)&(Pronostiekers!A20)","v":"1150: Guy"}]
["Pinzolo – Aprica",{"$f":"SUM('De VACCAreurs'!G25:V25)&(Pronostiekers!A3)","v":"1250: Sven****"},{"$f":"SUM('Il Krieperi Disoccupato'!G25:V25)&(Pronostiekers!A4)","v":"1550: Robin***"},{"$f":"SUM(U!G25:V25)&(Pronostiekers!A1)","v":"2150: Ollie****"},{"$f":"SUM(Jeff!G25:V25)&(Pronostiekers!A21)","v":"1150: Arno"},{"$f":"SUM(PADT!G25:V25)&(Pronostiekers!A17)","v":"1550: Filip"},{"$f":"SUM(WELK!G25:V25)&(Pronostiekers!A11)","v":"1250: Ronny*"},{"$f":"SUM('De Roze 12'!G25:V25)&(Pronostiekers!A9)","v":"1000: Janes*"},{"$f":"SUM('FC RAFTEN'!G25:V25)&(Pronostiekers!A5)","v":"1550: Raf**"},{"$f":"SUM('Le Capre Di Montagna'!G25:V25)&(Pronostiekers!A2)","v":"1950: Joik****"},{"$f":"SUM('De Freddies'!G25:V25)&(Pronostiekers!A13)","v":"1550: Fred"},{"$f":"SUM('Squadra Parcheggio'!G25:V25)&(Pronostiekers!A22)","v":"900: Bart"},{"$f":"SUM(Paperboys!G25:V25)&(Pronostiekers!A10)","v":"900: Tom*"},{"$f":"SUM('De Roze Janetten'!G25:V25)&(Pronostiekers!A12)","v":"1750: Tim"},{"$f":"SUM('The Dolphen'!G25:V25)&(Pronostiekers!A14)","v":"1250: Pieter"},{"$f":"SUM('De Bakkers'!G25:V25)&(Pronostiekers!A20)","v":"1150: Guy"}]
["Tirano – Lugano",{"$f":"SUM('De VACCAreurs'!G25:W25)&(Pronostiekers!A3)","v":"1250: Sven****"},{"$f":"SUM('Il Krieperi Disoccupato'!G25:W25)&(Pronostiekers!A4)","v":"1550: Robin***"},{"$f":"SUM(U!G25:W25)&(Pronostiekers!A1)","v":"2150: Ollie****"},{"$f":"SUM(Jeff!G25:W25)&(Pronostiekers!A21)","v":"1150: Arno"},{"$f":"SUM(PADT!G25:W25)&(Pronostiekers!A17)","v":"1550: Filip"},{"$f":"SUM(WELK!G25:W25)&(Pronostiekers!A11)","v":"1250: Ronny*"},{"$f":"SUM('De Roze 12'!G25:W25)&(Pronostiekers!A9)","v":"1000: Janes*"},{"$f":"SUM('FC RAFTEN'!G25:W25)&(Pronostiekers!A5)","v":"1550: Raf**"},{"$f":"SUM('Le Capre Di Montagna'!G25:W25)&(Pronostiekers!A2)","v":"1950: Joik****"},{"$f":"SUM('De Freddies'!G25:W25)&(Pronostiekers!A13)","v":"1550: Fred"},{"$f":"SUM('Squadra Parcheggio'!G25:W25)&(Pronostiekers!A22)","v":"900: Bart"},{"$f":"SUM(Paperboys!G25:W25)&(Pronostiekers!A10)","v":"900: Tom*"},{"$f":"SUM('De Roze Janetten'!G25:W25)&(Pronostiekers!A12)","v":"1750: Tim"},{"$f":"SUM('The Dolphen'!G25:W25)&(Pronostiekers!A14)","v":"1250: Pieter"},{"$f":"SUM('De Bakkers'!G25:W25)&(Pronostiekers!A20)","v":"1150: Guy"}]
["Melide – Verbania",{"$f":"SUM('De VACCAreurs'!G25:X25)&(Pronostiekers!A3)","v":"1250: Sven****"},{"$f":"SUM('Il Krieperi Disoccupato'!G25:X25)&(Pronostiekers!A4)","v":"1550: Robin***"},{"$f":"SUM(U!G25:X25)&(Pronostiekers!A1)","v":"2150: Ollie****"},{"$f":"SUM(Jeff!G25:X25)&(Pronostiekers!A21)","v":"1150: Arno"},{"$f":"SUM(PADT!G25:X25)&(Pronostiekers!A17)","v":"1550: Filip"},{"$f":"SUM(WELK!G25:X25)&(Pronostiekers!A11)","v":"1250: Ronny*"},{"$f":"SUM('De Roze 12'!G25:X25)&(Pronostiekers!A9)","v":"1000: Janes*"},{"$f":"SUM('FC RAFTEN'!G25:X25)&(Pronostiekers!A5)","v":"1550: Raf**"},{"$f":"SUM('Le Capre Di Montagna'!G25:X25)&(Pronostiekers!A2)","v":"1950: Joik****"},{"$f":"SUM('De Freddies'!G25:X25)&(Pronostiekers!A13)","v":"1550: Fred"},{"$f":"SUM('Squadra Parcheggio'!G25:X25)&(Pronostiekers!A22)","v":"900: Bart"},{"$f":"SUM(Paperboys!G25:X25)&(Pronostiekers!A10)","v":"900: Tom*"},{"$f":"SUM('De Roze Janetten'!G25:X25)&(Pronostiekers!A12)","v":"1750: Tim"},{"$f":"SUM('The Dolphen'!G25:X25)&(Pronostiekers!A14)","v":"1250: Pieter"},{"$f":"SUM('De Bakkers'!G25:X25)&(Pronostiekers!A20)","v":"1150: Guy"}]
["Gravellona Toce – Cervinia",{"$f":"SUM('De VACCAreurs'!G25:Y25)&(Pronostiekers!A3)","v":"1250: Sven****"},{"$f":"SUM('Il Krieperi Disoccupato'!G25:Y25)&(Pronostiekers!A4)","v":"1550: Robin***"},{"$f":"SUM(U!G25:Y25)&(Pronostiekers!A1)","v":"2150: Ollie****"},{"$f":"SUM(Jeff!G25:Y25)&(Pronostiekers!A21)","v":"1150: Arno"},{"$f":"SUM(PADT!G25:Y25)&(Pronostiekers!A17)","v":"1550: Filip"},{"$f":"SUM(WELK!G25:Y25)&(Pronostiekers!A11)","v":"1250: Ronny*"},{"$f":"SUM('De Roze 12'!G25:Y25)&(Pronostiekers!A9)","v":"1000: Janes*"},{"$f":"SUM('FC RAFTEN'!G25:Y25)&(Pronostiekers!A5)","v":"1550: Raf**"},{"$f":"SUM('Le Capre Di Montagna'!G25:Y25)&(Pronostiekers!A2)","v":"1950: Joik****"},{"$f":"SUM('De Freddies'!G25:Y25)&(Pronostiekers!A13)","v":"1550: Fred"},{"$f":"SUM('Squadra Parcheggio'!G25:Y25)&(Pronostiekers!A22)","v":"900: Bart"},{"$f":"SUM(Paperboys!G25:Y25)&(Pronostiekers!A10)","v":"900: Tom*"},{"$f":"SUM('De Roze Janetten'!G25:Y25)&(Pronostiekers!A12)","v":"1750: Tim"},{"$f":"SUM('The Dolphen'!G25:Y25)&(Pronostiekers!A14)","v":"1250: Pieter"},{"$f":"SUM('De Bakkers'!G25:Y25)&(Pronostiekers!A20)","v":"1150: Guy"}]
["Saint-Vincent – Sestrière",{"$f":"SUM('De VACCAreurs'!G25:Z25)&(Pronostiekers!A3)","v":"1250: Sven****"},{"$f":"SUM('Il Krieperi Disoccupato'!G25:Z25)&(Pronostiekers!A4)","v":"1550: Robin***"},{"$f":"SUM(U!G25:Z25)&(Pronostiekers!A1)","v":"2150: Ollie****"},{"$f":"SUM(Jeff!G25:Z25)&(Pronostiekers!A21)","v":"1150: Arno"},{"$f":"SUM(PADT!G25:Z25)&(Pronostiekers!A17)","v":"1550: Filip"},{"$f":"SUM(WELK!G25:Z25)&(Pronostiekers!A11)","v":"1250: Ronny*"},{"$f":"SUM('De Roze 12'!G25:Z25)&(Pronostiekers!A9)","v":"1000: Janes*"},{"$f":"SUM('FC RAFTEN'!G25:Z25)&(Pronostiekers!A5)","v":"1550: Raf**"},{"$f":"SUM('Le Capre Di Montagna'!G25:Z25)&(Pronostiekers!A2)","v":"1950: Joik****"},{"$f":"SUM('De Freddies'!G25:Z25)&(Pronostiekers!A13)","v":"1550: Fred"},{"$f":"SUM('Squadra Parcheggio'!G25:Z25)&(Pronostiekers!A22)","v":"900: Bart"},{"$f":"SUM(Paperboys!G25:Z25)&(Pronostiekers!A10)","v":"900: Tom*"},{"$f":"SUM('De Roze Janetten'!G25:Z25)&(Pronostiekers!A12)","v":"1750: Tim"},{"$f":"SUM('The Dolphen'!G25:Z25)&(Pronostiekers!A14)","v":"1250: Pieter"},{"$f":"SUM('De Bakkers'!G25:Z25)&(Pronostiekers!A20)","v":"1150: Guy"}]
["Turijn – Milaan",{"$f":"SUM('De VACCAreurs'!G25:AA25)&(Pronostiekers!A3)","v":"1250: Sven****"},{"$f":"SUM('Il Krieperi Disoccupato'!G25:AA25)&(Pronostiekers!A4)","v":"1550: Robin***"},{"$f":"SUM(U!G25:AA25)&(Pronostiekers!A1)","v":"2150: Ollie****"},{"$f":"SUM(Jeff!G25:AA25)&(Pronostiekers!A21)","v":"1150: Arno"},{"$f":"SUM(PADT!G25:AA25)&(Pronostiekers!A17)","v":"1550: Filip"},{"$f":"SUM(WELK!G25:AA25)&(Pronostiekers!A11)","v":"1250: Ronny*"},{"$f":"SUM('De Roze 12'!G25:AA25)&(Pronostiekers!A9)","v":"1000: Janes*"},{"$f":"SUM('FC RAFTEN'!G25:AA25)&(Pronostiekers!A5)","v":"1550: Raf**"},{"$f":"SUM('Le Capre Di Montagna'!G25:AA25)&(Pronostiekers!A2)","v":"1950: Joik****"},{"$f":"SUM('De Freddies'!G25:AA25)&(Pronostiekers!A13)","v":"1550: Fred"},{"$f":"SUM('Squadra Parcheggio'!G25:AA25)&(Pronostiekers!A22)","v":"900: Bart"},{"$f":"SUM(Paperboys!G25:AA25)&(Pronostiekers!A10)","v":"900: Tom*"},{"$f":"SUM('De Roze Janetten'!G25:AA25)&(Pronostiekers!A12)","v":"1750: Tim"},{"$f":"SUM('The Dolphen'!G25:AA25)&(Pronostiekers!A14)","v":"1250: Pieter"},{"$f":"SUM('De Bakkers'!G25:AA25)&(Pronostiekers!A20)","v":"1150: Guy"}]
["TOTAAL",{"$f":"SUM('De VACCAreurs'!G25:AB25)&(Pronostiekers!A3)","v":"2500: Sven****"},{"$f":"SUM('Il Krieperi Disoccupato'!G25:AB25)&(Pronostiekers!A4)","v":"3100: Robin***"},{"$f":"SUM(U!G25:AB25)&(Pronostiekers!A1)","v":"4300: Ollie****"},{"$f":"SUM(Jeff!G25:AB25)&(Pronostiekers!A21)","v":"2300: Arno"},{"$f":"SUM(PADT!G25:AB25)&(Pronostiekers!A17)","v":"3100: Filip"},{"$f":"SUM(WELK!G25:AB25)&(Pronostiekers!A11)","v":"2500: Ronny*"},{"$f":"SUM('De Roze 12'!G25:AB25)&(Pronostiekers!A9)","v":"2000: Janes*"},{"$f":"SUM('FC RAFTEN'!G25:AB25)&(Pronostiekers!A5)","v":"3100: Raf**"},{"$f":"SUM('Le Capre Di Montagna'!G25:AB25)&(Pronostiekers!A2)","v":"3900: Joik****"},{"$f":"SUM('De Freddies'!G25:AB25)&(Pronostiekers!A13)","v":"3100: Fred"},{"$f":"SUM('Squadra Parcheggio'!G25:AB25)&(Pronostiekers!A22)","v":"1800: Bart"},{"$f":"SUM(Paperboys!G25:AB25)&(Pronostiekers!A10)","v":"1800: Tom*"},{"$f":"SUM('De Roze Janetten'!G25:AB25)&(Pronostiekers!A12)","v":"3500: Tim"},{"$f":"SUM('The Dolphen'!G25:AB25)&(Pronostiekers!A14)","v":"2500: Pieter"},{"$f":"SUM('De Bakkers'!G25:AB25)&(Pronostiekers!A20)","v":"2300: Guy"}]

{"sheet":"San Lorenzo- San Remo","index":17,"n_rows":25,"n_cols":8,"rows_kept":25,"cut":false,"hidden":false,"merged":[]}
[null,1500,null,null,null,1,{"$f":"'De VACCAreurs'!B3&'De VACCAreurs'!B4","v":"Sven  :    De VACCAreurs****"},{"$f":"'De VACCAreurs'!G25","v":0}]
[null,1300,null,null,null,2,{"$f":"'De Freddies'!B3&'De Freddies'!B4","v":"Fred  :  De Freddies"},{"$f":"'De Freddies'!G25","v":0}]
[null,1100,null,null,null,3,{"$f":"'FC RAFTEN'!B3&'FC RAFTEN'!B4","v":"Raf  :  FC RAFTEN**"},{"$f":"'FC RAFTEN'!G25","v":0}]
[null,1000,null,null,null,4,{"$f":"'De Roze 12'!B3&'De Roze 12'!B4","v":"Janes  :  De Roze 12*"},{"$f":"'De Roze 12'!G25","v":0}]
[null,900,null,null,null,5,{"$f":"'Le Capre Di Montagna'!B3&'Le Capre Di Montagna'!B4","v":"Joik  :  Le Capre Di Montagna****"},{"$f":"'Le Capre Di Montagna'!G25","v":0}]
[null,800,null,null,null,6,{"$f":"'De Roze Janetten'!B3&'De Roze Janetten'!B4","v":"Tim  :  De Roze Janetten"},{"$f":"'De Roze Janetten'!G25","v":0}]
[null,700,null,null,null,7,{"$f":"U!B3&U!B4","v":"Ollie  :  U****"},{"$f":"U!G25","v":0}]
[null,650,null,null,null,8,{"$f":"Jeff!B3&Jeff!B4","v":"Arno  :  Jeff"},{"$f":"Jeff!G25","v":0}]
[null,600,null,null,null,9,{"$f":"PADT!B3&PADT!B4","v":"Filip  :  PADT"},{"$f":"PADT!G25","v":0}]
[null,550,null,null,null,10,{"$f":"Paperboys!B3&Paperboys!B4","v":"Tom  :  Paperboys*"},{"$f":"Paperboys!G25","v":0}]
[null,500,null,null,null,11,{"$f":"'Il Krieperi Disoccupato'!B3&'Il Krieperi Disoccupato'!B4","v":"Robin  :  Il Krieperi Disoccupato***"},{"$f":"'Il Krieperi Disoccupato'!G25","v":0}]
[null,450,null,null,null,12,{"$f":"'The Dolphen'!B3&'The Dolphen'!B4","v":"Pieter  :  The Dolphen"},{"$f":"'The Dolphen'!G25","v":0}]
[null,400,null,null,null,13,{"$f":"'Squadra Parcheggio'!B3&'Squadra Parcheggio'!B4","v":"Bart  :  Squadra Parcheggio"},{"$f":"'Squadra Parcheggio'!G25","v":0}]
[null,350,null,null,null,14,{"$f":"WELK!B3&WELK!B4","v":"Ronny  :  WELK*"},{"$f":"WELK!G25","v":0}]
[null,300,null,null,null,15,{"$f":"'De Bakkers'!B3&'De Bakkers'!B4","v":"Guy  :  De Bakkers"},{"$f":"'De Bakkers'!G25","v":0}]
[null,250]
[null,200]
[null,150]
[null,100]
[null,75]
[null,50]
[null,40]
[null,30]
[null,20]
[null,10]

{"sheet":"Albenga-Genua","index":18,"n_rows":25,"n_cols":8,"rows_kept":25,"cut":false,"hidden":false,"merged":[]}
[null,1500,null,null,null,1,{"$f":"'De VACCAreurs'!B3&'De VACCAreurs'!B4","v":"Sven  :    De VACCAreurs****"},{"$f":"'De VACCAreurs'!H25","v":0}]
[null,1300,null,null,null,2,{"$f":"'De Freddies'!B3&'De Freddies'!B4","v":"Fred  :  De Freddies"},{"$f":"'De Freddies'!H25","v":0}]
[null,1100,null,null,null,3,{"$f":"'FC RAFTEN'!B3&'FC RAFTEN'!B4","v":"Raf  :  FC RAFTEN**"},{"$f":"'FC RAFTEN'!H25","v":0}]
[null,1000,null,null,null,4,{"$f":"'De Roze 12'!B3&'De Roze 12'!B4","v":"Janes  :  De Roze 12*"},{"$f":"'De Roze 12'!H25","v":0}]
[null,900,null,null,null,5,{"$f":"'Le Capre Di Montagna'!B3&'Le Capre Di Montagna'!B4","v":"Joik  :  Le Capre Di Montagna****"},{"$f":"'Le Capre Di Montagna'!H25","v":0}]
[null,800,null,null,null,6,{"$f":"'De Roze Janetten'!B3&'De Roze Janetten'!B4","v":"Tim  :  De Roze Janetten"},{"$f":"'De Roze Janetten'!H25","v":0}]
[null,700,null,null,null,7,{"$f":"U!B3&U!B4","v":"Ollie  :  U****"},{"$f":"U!H25","v":0}]
[null,650,null,null,null,8,{"$f":"Jeff!B3&Jeff!B4","v":"Arno  :  Jeff"},{"$f":"Jeff!H25","v":0}]
[null,600,null,null,null,9,{"$f":"PADT!B3&PADT!B4","v":"Filip  :  PADT"},{"$f":"PADT!H25","v":0}]
[null,550,null,null,null,10,{"$f":"Paperboys!B3&Paperboys!B4","v":"Tom  :  Paperboys*"},{"$f":"Paperboys!H25","v":0}]
[null,500,null,null,null,11,{"$f":"'Il Krieperi Disoccupato'!B3&'Il Krieperi Disoccupato'!B4","v":"Robin  :  Il Krieperi Disoccupato***"},{"$f":"'Il Krieperi Disoccupato'!H25","v":0}]
[null,450,null,null,null,12,{"$f":"'The Dolphen'!B3&'The Dolphen'!B4","v":"Pieter  :  The Dolphen"},{"$f":"'The Dolphen'!H25","v":0}]
[null,400,null,null,null,13,{"$f":"'Squadra Parcheggio'!B3&'Squadra Parcheggio'!B4","v":"Bart  :  Squadra Parcheggio"},{"$f":"'Squadra Parcheggio'!H25","v":0}]
[null,350,null,null,null,14,{"$f":"WELK!B3&WELK!B4","v":"Ronny  :  WELK*"},{"$f":"WELK!H25","v":0}]
[null,300,null,null,null,15,{"$f":"'De Bakkers'!B3&'De Bakkers'!B4","v":"Guy  :  De Bakkers"},{"$f":"'De Bakkers'!H25","v":0}]
[null,250]
[null,200]
[null,150]
[null,100]
[null,75]
[null,50]
[null,40]
[null,30]
[null,20]
[null,10]

{"sheet":"Rapallo-Sestri Levante","index":19,"n_rows":25,"n_cols":8,"rows_kept":25,"cut":false,"hidden":false,"merged":[]}
[null,1500,null,null,null,1,{"$f":"'De VACCAreurs'!B3&'De VACCAreurs'!B4","v":"Sven  :    De VACCAreurs****"},{"$f":"'De VACCAreurs'!I25","v":0}]
[null,1300,null,null,null,2,{"$f":"'De Freddies'!B3&'De Freddies'!B4","v":"Fred  :  De Freddies"},{"$f":"'De Freddies'!I25","v":0}]
[null,1100,null,null,null,3,{"$f":"'FC RAFTEN'!B3&'FC RAFTEN'!B4","v":"Raf  :  FC RAFTEN**"},{"$f":"'FC RAFTEN'!I25","v":0}]
[null,1000,null,null,null,4,{"$f":"'De Roze 12'!B3&'De Roze 12'!B4","v":"Janes  :  De Roze 12*"},{"$f":"'De Roze 12'!I25","v":100}]
[null,900,null,null,null,5,{"$f":"'Le Capre Di Montagna'!B3&'Le Capre Di Montagna'!B4","v":"Joik  :  Le Capre Di Montagna****"},{"$f":"'Le Capre Di Montagna'!I25","v":100}]
[null,800,null,null,null,6,{"$f":"'De Roze Janetten'!B3&'De Roze Janetten'!B4","v":"Tim  :  De Roze Janetten"},{"$f":"'De Roze Janetten'!I25","v":100}]
[null,700,null,null,null,7,{"$f":"U!B3&U!B4","v":"Ollie  :  U****"},{"$f":"U!I25","v":100}]
[null,650,null,null,null,8,{"$f":"Jeff!B3&Jeff!B4","v":"Arno  :  Jeff"},{"$f":"Jeff!I25","v":0}]
[null,600,null,null,null,9,{"$f":"PADT!B3&PADT!B4","v":"Filip  :  PADT"},{"$f":"PADT!I25","v":0}]
[null,550,null,null,null,10,{"$f":"Paperboys!B3&Paperboys!B4","v":"Tom  :  Paperboys*"},{"$f":"Paperboys!I25","v":0}]
[null,500,null,null,null,11,{"$f":"'Il Krieperi Disoccupato'!B3&'Il Krieperi Disoccupato'!B4","v":"Robin  :  Il Krieperi Disoccupato***"},{"$f":"'Il Krieperi Disoccupato'!I25","v":0}]
[null,450,null,null,null,12,{"$f":"'The Dolphen'!B3&'The Dolphen'!B4","v":"Pieter  :  The Dolphen"},{"$f":"'The Dolphen'!I25","v":0}]
[null,400,null,null,null,13,{"$f":"'Squadra Parcheggio'!B3&'Squadra Parcheggio'!B4","v":"Bart  :  Squadra Parcheggio"},{"$f":"'Squadra Parcheggio'!I25","v":0}]
[null,350,null,null,null,14,{"$f":"WELK!B3&WELK!B4","v":"Ronny  :  WELK*"},{"$f":"WELK!I25","v":0}]
[null,300,null,null,null,15,{"$f":"'De Bakkers'!B3&'De Bakkers'!B4","v":"Guy  :  De Bakkers"},{"$f":"'De Bakkers'!I25","v":0}]
[null,250]
[null,200]
[null,150]
[null,100]
[null,75]
[null,50]
[null,40]
[null,30]
[null,20]
[null,10]

{"sheet":"Chiavari-La Spezia","index":20,"n_rows":25,"n_cols":8,"rows_kept":25,"cut":false,"hidden":false,"merged":[]}
[null,1500,null,null,null,1,{"$f":"'De VACCAreurs'!B3&'De VACCAreurs'!B4","v":"Sven  :    De VACCAreurs****"},{"$f":"'De VACCAreurs'!J25","v":0}]
[null,1300,null,null,null,2,{"$f":"'De Freddies'!B3&'De Freddies'!B4","v":"Fred  :  De Freddies"},{"$f":"'De Freddies'!J25","v":0}]
[null,1100,null,null,null,3,{"$f":"'FC RAFTEN'!B3&'FC RAFTEN'!B4","v":"Raf  :  FC RAFTEN**"},{"$f":"'FC RAFTEN'!J25","v":0}]
[null,1000,null,null,null,4,{"$f":"'De Roze 12'!B3&'De Roze 12'!B4","v":"Janes  :  De Roze 12*"},{"$f":"'De Roze 12'!J25","v":100}]
[null,900,null,null,null,5,{"$f":"'Le Capre Di Montagna'!B3&'Le Capre Di Montagna'!B4","v":"Joik  :  Le Capre Di Montagna****"},{"$f":"'Le Capre Di Montagna'!J25","v":100}]
[null,800,null,null,null,6,{"$f":"'De Roze Janetten'!B3&'De Roze Janetten'!B4","v":"Tim  :  De Roze Janetten"},{"$f":"'De Roze Janetten'!J25","v":100}]
[null,700,null,null,null,7,{"$f":"U!B3&U!B4","v":"Ollie  :  U****"},{"$f":"U!J25","v":100}]
[null,650,null,null,null,8,{"$f":"Jeff!B3&Jeff!B4","v":"Arno  :  Jeff"},{"$f":"Jeff!J25","v":0}]
[null,600,null,null,null,9,{"$f":"PADT!B3&PADT!B4","v":"Filip  :  PADT"},{"$f":"PADT!J25","v":0}]
[null,550,null,null,null,10,{"$f":"Paperboys!B3&Paperboys!B4","v":"Tom  :  Paperboys*"},{"$f":"Paperboys!J25","v":0}]
[null,500,null,null,null,11,{"$f":"'Il Krieperi Disoccupato'!B3&'Il Krieperi Disoccupato'!B4","v":"Robin  :  Il Krieperi Disoccupato***"},{"$f":"'Il Krieperi Disoccupato'!J25","v":0}]
[null,450,null,null,null,12,{"$f":"'The Dolphen'!B3&'The Dolphen'!B4","v":"Pieter  :  The Dolphen"},{"$f":"'The Dolphen'!J25","v":0}]
[null,400,null,null,null,13,{"$f":"'Squadra Parcheggio'!B3&'Squadra Parcheggio'!B4","v":"Bart  :  Squadra Parcheggio"},{"$f":"'Squadra Parcheggio'!J25","v":0}]
[null,350,null,null,null,14,{"$f":"WELK!B3&WELK!B4","v":"Ronny  :  WELK*"},{"$f":"WELK!J25","v":0}]
[null,300,null,null,null,15,{"$f":"'De Bakkers'!B3&'De Bakkers'!B4","v":"Guy  :  De Bakkers"},{"$f":"'De Bakkers'!J25","v":0}]
[null,250]
[null,200]
[null,150]
[null,100]
[null,75]
[null,50]
[null,40]
[null,30]
[null,20]
[null,10]

{"sheet":"La Spezia-Abetone","index":21,"n_rows":25,"n_cols":8,"rows_kept":25,"cut":false,"hidden":false,"merged":[]}
[null,1500,null,null,null,1,{"$f":"'De VACCAreurs'!B3&'De VACCAreurs'!B4","v":"Sven  :    De VACCAreurs****"},{"$f":"'De VACCAreurs'!K25","v":0}]
[null,1300,null,null,null,2,{"$f":"'De Freddies'!B3&'De Freddies'!B4","v":"Fred  :  De Freddies"},{"$f":"'De Freddies'!K25","v":100}]
[null,1100,null,null,null,3,{"$f":"'FC RAFTEN'!B3&'FC RAFTEN'!B4","v":"Raf  :  FC RAFTEN**"},{"$f":"'FC RAFTEN'!K25","v":0}]
[null,1000,null,null,null,4,{"$f":"'De Roze 12'!B3&'De Roze 12'!B4","v":"Janes  :  De Roze 12*"},{"$f":"'De Roze 12'!K25","v":100}]
[null,900,null,null,null,5,{"$f":"'Le Capre Di Montagna'!B3&'Le Capre Di Montagna'!B4","v":"Joik  :  Le Capre Di Montagna****"},{"$f":"'Le Capre Di Montagna'!K25","v":100}]
[null,800,null,null,null,6,{"$f":"'De Roze Janetten'!B3&'De Roze Janetten'!B4","v":"Tim  :  De Roze Janetten"},{"$f":"'De Roze Janetten'!K25","v":100}]
[null,700,null,null,null,7,{"$f":"U!B3&U!B4","v":"Ollie  :  U****"},{"$f":"U!K25","v":400}]
[null,650,null,null,null,8,{"$f":"Jeff!B3&Jeff!B4","v":"Arno  :  Jeff"},{"$f":"Jeff!K25","v":0}]
[null,600,null,null,null,9,{"$f":"PADT!B3&PADT!B4","v":"Filip  :  PADT"},{"$f":"PADT!K25","v":0}]
[null,550,null,null,null,10,{"$f":"Paperboys!B3&Paperboys!B4","v":"Tom  :  Paperboys*"},{"$f":"Paperboys!K25","v":0}]
[null,500,null,null,null,11,{"$f":"'Il Krieperi Disoccupato'!B3&'Il Krieperi Disoccupato'!B4","v":"Robin  :  Il Krieperi Disoccupato***"},{"$f":"'Il Krieperi Disoccupato'!K25","v":100}]
[null,450,null,null,null,12,{"$f":"'The Dolphen'!B3&'The Dolphen'!B4","v":"Pieter  :  The Dolphen"},{"$f":"'The Dolphen'!K25","v":0}]
[null,400,null,null,null,13,{"$f":"'Squadra Parcheggio'!B3&'Squadra Parcheggio'!B4","v":"Bart  :  Squadra Parcheggio"},{"$f":"'Squadra Parcheggio'!K25","v":0}]
[null,350,null,null,null,14,{"$f":"WELK!B3&WELK!B4","v":"Ronny  :  WELK*"},{"$f":"WELK!K25","v":100}]
[null,300,null,null,null,15,{"$f":"'De Bakkers'!B3&'De Bakkers'!B4","v":"Guy  :  De Bakkers"},{"$f":"'De Bakkers'!K25","v":0}]
[null,250]
[null,200]
[null,150]
[null,100]
[null,75]
[null,50]
[null,40]
[null,30]
[null,20]
[null,10]

{"sheet":"Montecatini-Castiglione","index":22,"n_rows":25,"n_cols":8,"rows_kept":25,"cut":false,"hidden":false,"merged":[]}
[null,1500,null,null,null,1,{"$f":"'De VACCAreurs'!B3&'De VACCAreurs'!B4","v":"Sven  :    De VACCAreurs****"},{"$f":"'De VACCAreurs'!L25","v":0}]
[null,1300,null,null,null,2,{"$f":"'De Freddies'!B3&'De Freddies'!B4","v":"Fred  :  De Freddies"},{"$f":"'De Freddies'!L25","v":0}]
[null,1100,null,null,null,3,{"$f":"'FC RAFTEN'!B3&'FC RAFTEN'!B4","v":"Raf  :  FC RAFTEN**"},{"$f":"'FC RAFTEN'!L25","v":0}]
[null,1000,null,null,null,4,{"$f":"'De Roze 12'!B3&'De Roze 12'!B4","v":"Janes  :  De Roze 12*"},{"$f":"'De Roze 12'!L25","v":0}]
[null,900,null,null,null,5,{"$f":"'Le Capre Di Montagna'!B3&'Le Capre Di Montagna'!B4","v":"Joik  :  Le Capre Di Montagna****"},{"$f":"'Le Capre Di Montagna'!L25","v":0}]
[null,800,null,null,null,6,{"$f":"'De Roze Janetten'!B3&'De Roze Janetten'!B4","v":"Tim  :  De Roze Janetten"},{"$f":"'De Roze Janetten'!L25","v":0}]
[null,700,null,null,null,7,{"$f":"U!B3&U!B4","v":"Ollie  :  U****"},{"$f":"U!L25","v":0}]
[null,650,null,null,null,8,{"$f":"Jeff!B3&Jeff!B4","v":"Arno  :  Jeff"},{"$f":"Jeff!L25","v":0}]
[null,600,null,null,null,9,{"$f":"PADT!B3&PADT!B4","v":"Filip  :  PADT"},{"$f":"PADT!L25","v":0}]
[null,550,null,null,null,10,{"$f":"Paperboys!B3&Paperboys!B4","v":"Tom  :  Paperboys*"},{"$f":"Paperboys!L25","v":0}]
[null,500,null,null,null,11,{"$f":"'Il Krieperi Disoccupato'!B3&'Il Krieperi Disoccupato'!B4","v":"Robin  :  Il Krieperi Disoccupato***"},{"$f":"'Il Krieperi Disoccupato'!L25","v":0}]
[null,450,null,null,null,12,{"$f":"'The Dolphen'!B3&'The Dolphen'!B4","v":"Pieter  :  The Dolphen"},{"$f":"'The Dolphen'!L25","v":0}]
[null,400,null,null,null,13,{"$f":"'Squadra Parcheggio'!B3&'Squadra Parcheggio'!B4","v":"Bart  :  Squadra Parcheggio"},{"$f":"'Squadra Parcheggio'!L25","v":0}]
[null,350,null,null,null,14,{"$f":"WELK!B3&WELK!B4","v":"Ronny  :  WELK*"},{"$f":"WELK!L25","v":0}]
[null,300,null,null,null,15,{"$f":"'De Bakkers'!B3&'De Bakkers'!B4","v":"Guy  :  De Bakkers"},{"$f":"'De Bakkers'!L25","v":0}]
[null,250]
[null,200]
[null,150]
[null,100]
[null,75]
[null,50]
[null,40]
[null,30]
[null,20]
[null,10]

{"sheet":"Grosseto-Fiuggi","index":23,"n_rows":25,"n_cols":8,"rows_kept":25,"cut":false,"hidden":false,"merged":[]}
[null,1500,null,null,null,1,{"$f":"'De VACCAreurs'!B3&'De VACCAreurs'!B4","v":"Sven  :    De VACCAreurs****"},{"$f":"'De VACCAreurs'!M25","v":100}]
[null,1300,null,null,null,2,{"$f":"'De Freddies'!B3&'De Freddies'!B4","v":"Fred  :  De Freddies"},{"$f":"'De Freddies'!M25","v":100}]
[null,1100,null,null,null,3,{"$f":"'FC RAFTEN'!B3&'FC RAFTEN'!B4","v":"Raf  :  FC RAFTEN**"},{"$f":"'FC RAFTEN'!M25","v":100}]
[null,1000,null,null,null,4,{"$f":"'De Roze 12'!B3&'De Roze 12'!B4","v":"Janes  :  De Roze 12*"},{"$f":"'De Roze 12'!M25","v":100}]
[null,900,null,null,null,5,{"$f":"'Le Capre Di Montagna'!B3&'Le Capre Di Montagna'!B4","v":"Joik  :  Le Capre Di Montagna****"},{"$f":"'Le Capre Di Montagna'!M25","v":0}]
[null,800,null,null,null,6,{"$f":"'De Roze Janetten'!B3&'De Roze Janetten'!B4","v":"Tim  :  De Roze Janetten"},{"$f":"'De Roze Janetten'!M25","v":0}]
[null,700,null,null,null,7,{"$f":"U!B3&U!B4","v":"Ollie  :  U****"},{"$f":"U!M25","v":0}]
[null,650,null,null,null,8,{"$f":"Jeff!B3&Jeff!B4","v":"Arno  :  Jeff"},{"$f":"Jeff!M25","v":0}]
[null,600,null,null,null,9,{"$f":"PADT!B3&PADT!B4","v":"Filip  :  PADT"},{"$f":"PADT!M25","v":100}]
[null,550,null,null,null,10,{"$f":"Paperboys!B3&Paperboys!B4","v":"Tom  :  Paperboys*"},{"$f":"Paperboys!M25","v":100}]
[null,500,null,null,null,11,{"$f":"'Il Krieperi Disoccupato'!B3&'Il Krieperi Disoccupato'!B4","v":"Robin  :  Il Krieperi Disoccupato***"},{"$f":"'Il Krieperi Disoccupato'!M25","v":100}]
[null,450,null,null,null,12,{"$f":"'The Dolphen'!B3&'The Dolphen'!B4","v":"Pieter  :  The Dolphen"},{"$f":"'The Dolphen'!M25","v":100}]
[null,400,null,null,null,13,{"$f":"'Squadra Parcheggio'!B3&'Squadra Parcheggio'!B4","v":"Bart  :  Squadra Parcheggio"},{"$f":"'Squadra Parcheggio'!M25","v":100}]
[null,350,null,null,null,14,{"$f":"WELK!B3&WELK!B4","v":"Ronny  :  WELK*"},{"$f":"WELK!M25","v":100}]
[null,300,null,null,null,15,{"$f":"'De Bakkers'!B3&'De Bakkers'!B4","v":"Guy  :  De Bakkers"},{"$f":"'De Bakkers'!M25","v":0}]
[null,250]
[null,200]
[null,150]
[null,100]
[null,75]
[null,50]
[null,40]
[null,30]
[null,20]
[null,10]

{"sheet":"Fiuggi-Campitello Matese","index":24,"n_rows":25,"n_cols":8,"rows_kept":25,"cut":false,"hidden":false,"merged":[]}
[null,1500,null,null,null,1,{"$f":"'De VACCAreurs'!B3&'De VACCAreurs'!B4","v":"Sven  :    De VACCAreurs****"},{"$f":"'De VACCAreurs'!N25","v":250}]
[null,1300,null,null,null,2,{"$f":"'De Freddies'!B3&'De Freddies'!B4","v":"Fred  :  De Freddies"},{"$f":"'De Freddies'!N25","v":250}]
[null,1100,null,null,null,3,{"$f":"'FC RAFTEN'!B3&'FC RAFTEN'!B4","v":"Raf  :  FC RAFTEN**"},{"$f":"'FC RAFTEN'!N25","v":250}]
[null,1000,null,null,null,4,{"$f":"'De Roze 12'!B3&'De Roze 12'!B4","v":"Janes  :  De Roze 12*"},{"$f":"'De Roze 12'!N25","v":100}]
[null,900,null,null,null,5,{"$f":"'Le Capre Di Montagna'!B3&'Le Capre Di Montagna'!B4","v":"Joik  :  Le Capre Di Montagna****"},{"$f":"'Le Capre Di Montagna'!N25","v":150}]
[null,800,null,null,null,6,{"$f":"'De Roze Janetten'!B3&'De Roze Janetten'!B4","v":"Tim  :  De Roze Janetten"},{"$f":"'De Roze Janetten'!N25","v":150}]
[null,700,null,null,null,7,{"$f":"U!B3&U!B4","v":"Ollie  :  U****"},{"$f":"U!N25","v":150}]
[null,650,null,null,null,8,{"$f":"Jeff!B3&Jeff!B4","v":"Arno  :  Jeff"},{"$f":"Jeff!N25","v":150}]
[null,600,null,null,null,9,{"$f":"PADT!B3&PADT!B4","v":"Filip  :  PADT"},{"$f":"PADT!N25","v":250}]
[null,550,null,null,null,10,{"$f":"Paperboys!B3&Paperboys!B4","v":"Tom  :  Paperboys*"},{"$f":"Paperboys!N25","v":100}]
[null,500,null,null,null,11,{"$f":"'Il Krieperi Disoccupato'!B3&'Il Krieperi Disoccupato'!B4","v":"Robin  :  Il Krieperi Disoccupato***"},{"$f":"'Il Krieperi Disoccupato'!N25","v":250}]
[null,450,null,null,null,12,{"$f":"'The Dolphen'!B3&'The Dolphen'!B4","v":"Pieter  :  The Dolphen"},{"$f":"'The Dolphen'!N25","v":250}]
[null,400,null,null,null,13,{"$f":"'Squadra Parcheggio'!B3&'Squadra Parcheggio'!B4","v":"Bart  :  Squadra Parcheggio"},{"$f":"'Squadra Parcheggio'!N25","v":100}]
[null,350,null,null,null,14,{"$f":"WELK!B3&WELK!B4","v":"Ronny  :  WELK*"},{"$f":"WELK!N25","v":250}]
[null,300,null,null,null,15,{"$f":"'De Bakkers'!B3&'De Bakkers'!B4","v":"Guy  :  De Bakkers"},{"$f":"'De Bakkers'!N25","v":150}]
[null,250]
[null,200]
[null,150]
[null,100]
[null,75]
[null,50]
[null,40]
[null,30]
[null,20]
[null,10]

{"sheet":"Benevento-San Giorgio","index":25,"n_rows":25,"n_cols":8,"rows_kept":25,"cut":false,"hidden":false,"merged":[]}
[null,1500,null,null,null,1,{"$f":"'De VACCAreurs'!B3&'De VACCAreurs'!B4","v":"Sven  :    De VACCAreurs****"},{"$f":"'De VACCAreurs'!O25","v":150}]
[null,1300,null,null,null,2,{"$f":"'De Freddies'!B3&'De Freddies'!B4","v":"Fred  :  De Freddies"},{"$f":"'De Freddies'!O25","v":250}]
[null,1100,null,null,null,3,{"$f":"'FC RAFTEN'!B3&'FC RAFTEN'!B4","v":"Raf  :  FC RAFTEN**"},{"$f":"'FC RAFTEN'!O25","v":250}]
[null,1000,null,null,null,4,{"$f":"'De Roze 12'!B3&'De Roze 12'!B4","v":"Janes  :  De Roze 12*"},{"$f":"'De Roze 12'!O25","v":0}]
[null,900,null,null,null,5,{"$f":"'Le Capre Di Montagna'!B3&'Le Capre Di Montagna'!B4","v":"Joik  :  Le Capre Di Montagna****"},{"$f":"'Le Capre Di Montagna'!O25","v":250}]
[null,800,null,null,null,6,{"$f":"'De Roze Janetten'!B3&'De Roze Janetten'!B4","v":"Tim  :  De Roze Janetten"},{"$f":"'De Roze Janetten'!O25","v":150}]
[null,700,null,null,null,7,{"$f":"U!B3&U!B4","v":"Ollie  :  U****"},{"$f":"U!O25","v":250}]
[null,650,null,null,null,8,{"$f":"Jeff!B3&Jeff!B4","v":"Arno  :  Jeff"},{"$f":"Jeff!O25","v":150}]
[null,600,null,null,null,9,{"$f":"PADT!B3&PADT!B4","v":"Filip  :  PADT"},{"$f":"PADT!O25","v":250}]
[null,550,null,null,null,10,{"$f":"Paperboys!B3&Paperboys!B4","v":"Tom  :  Paperboys*"},{"$f":"Paperboys!O25","v":100}]
[null,500,null,null,null,11,{"$f":"'Il Krieperi Disoccupato'!B3&'Il Krieperi Disoccupato'!B4","v":"Robin  :  Il Krieperi Disoccupato***"},{"$f":"'Il Krieperi Disoccupato'!O25","v":150}]
[null,450,null,null,null,12,{"$f":"'The Dolphen'!B3&'The Dolphen'!B4","v":"Pieter  :  The Dolphen"},{"$f":"'The Dolphen'!O25","v":150}]
[null,400,null,null,null,13,{"$f":"'Squadra Parcheggio'!B3&'Squadra Parcheggio'!B4","v":"Bart  :  Squadra Parcheggio"},{"$f":"'Squadra Parcheggio'!O25","v":100}]
[null,350,null,null,null,14,{"$f":"WELK!B3&WELK!B4","v":"Ronny  :  WELK*"},{"$f":"WELK!O25","v":150}]
[null,300,null,null,null,15,{"$f":"'De Bakkers'!B3&'De Bakkers'!B4","v":"Guy  :  De Bakkers"},{"$f":"'De Bakkers'!O25","v":250}]
[null,250]
[null,200]
[null,150]
[null,100]
[null,75]
[null,50]
[null,40]
[null,30]
[null,20]
[null,10]

{"sheet":"Civitanova Marche-Forli","index":26,"n_rows":25,"n_cols":8,"rows_kept":25,"cut":false,"hidden":false,"merged":[]}
[null,1500,null,null,null,1,{"$f":"'De VACCAreurs'!B3&'De VACCAreurs'!B4","v":"Sven  :    De VACCAreurs****"},{"$f":"'De VACCAreurs'!P25","v":150}]
[null,1300,null,null,null,2,{"$f":"'De Freddies'!B3&'De Freddies'!B4","v":"Fred  :  De Freddies"},{"$f":"'De Freddies'!P25","v":350}]
[null,1100,null,null,null,3,{"$f":"'FC RAFTEN'!B3&'FC RAFTEN'!B4","v":"Raf  :  FC RAFTEN**"},{"$f":"'FC RAFTEN'!P25","v":350}]
[null,1000,null,null,null,4,{"$f":"'De Roze 12'!B3&'De Roze 12'!B4","v":"Janes  :  De Roze 12*"},{"$f":"'De Roze 12'!P25","v":200}]
[null,900,null,null,null,5,{"$f":"'Le Capre Di Montagna'!B3&'Le Capre Di Montagna'!B4","v":"Joik  :  Le Capre Di Montagna****"},{"$f":"'Le Capre Di Montagna'!P25","v":350}]
[null,800,null,null,null,6,{"$f":"'De Roze Janetten'!B3&'De Roze Janetten'!B4","v":"Tim  :  De Roze Janetten"},{"$f":"'De Roze Janetten'!P25","v":450}]
[null,700,null,null,null,7,{"$f":"U!B3&U!B4","v":"Ollie  :  U****"},{"$f":"U!P25","v":350}]
[null,650,null,null,null,8,{"$f":"Jeff!B3&Jeff!B4","v":"Arno  :  Jeff"},{"$f":"Jeff!P25","v":250}]
[null,600,null,null,null,9,{"$f":"PADT!B3&PADT!B4","v":"Filip  :  PADT"},{"$f":"PADT!P25","v":350}]
[null,550,null,null,null,10,{"$f":"Paperboys!B3&Paperboys!B4","v":"Tom  :  Paperboys*"},{"$f":"Paperboys!P25","v":300}]
[null,500,null,null,null,11,{"$f":"'Il Krieperi Disoccupato'!B3&'Il Krieperi Disoccupato'!B4","v":"Robin  :  Il Krieperi Disoccupato***"},{"$f":"'Il Krieperi Disoccupato'!P25","v":250}]
[null,450,null,null,null,12,{"$f":"'The Dolphen'!B3&'The Dolphen'!B4","v":"Pieter  :  The Dolphen"},{"$f":"'The Dolphen'!P25","v":250}]
[null,400,null,null,null,13,{"$f":"'Squadra Parcheggio'!B3&'Squadra Parcheggio'!B4","v":"Bart  :  Squadra Parcheggio"},{"$f":"'Squadra Parcheggio'!P25","v":300}]
[null,350,null,null,null,14,{"$f":"WELK!B3&WELK!B4","v":"Ronny  :  WELK*"},{"$f":"WELK!P25","v":150}]
[null,300,null,null,null,15,{"$f":"'De Bakkers'!B3&'De Bakkers'!B4","v":"Guy  :  De Bakkers"},{"$f":"'De Bakkers'!P25","v":350}]
[null,250]
[null,200]
[null,150]
[null,100]
[null,75]
[null,50]
[null,40]
[null,30]
[null,20]
[null,10]

{"sheet":"Forli-Imola","index":27,"n_rows":25,"n_cols":8,"rows_kept":25,"cut":false,"hidden":false,"merged":[]}
[null,1500,null,null,null,1,{"$f":"'De VACCAreurs'!B3&'De VACCAreurs'!B4","v":"Sven  :    De VACCAreurs****"},{"$f":"'De VACCAreurs'!Q25","v":150}]
[null,1300,null,null,null,2,{"$f":"'De Freddies'!B3&'De Freddies'!B4","v":"Fred  :  De Freddies"},{"$f":"'De Freddies'!Q25","v":250}]
[null,1100,null,null,null,3,{"$f":"'FC RAFTEN'!B3&'FC RAFTEN'!B4","v":"Raf  :  FC RAFTEN**"},{"$f":"'FC RAFTEN'!Q25","v":250}]
[null,1000,null,null,null,4,{"$f":"'De Roze 12'!B3&'De Roze 12'!B4","v":"Janes  :  De Roze 12*"},{"$f":"'De Roze 12'!Q25","v":0}]
[null,900,null,null,null,5,{"$f":"'Le Capre Di Montagna'!B3&'Le Capre Di Montagna'!B4","v":"Joik  :  Le Capre Di Montagna****"},{"$f":"'Le Capre Di Montagna'!Q25","v":250}]
[null,800,null,null,null,6,{"$f":"'De Roze Janetten'!B3&'De Roze Janetten'!B4","v":"Tim  :  De Roze Janetten"},{"$f":"'De Roze Janetten'!Q25","v":150}]
[null,700,null,null,null,7,{"$f":"U!B3&U!B4","v":"Ollie  :  U****"},{"$f":"U!Q25","v":250}]
[null,650,null,null,null,8,{"$f":"Jeff!B3&Jeff!B4","v":"Arno  :  Jeff"},{"$f":"Jeff!Q25","v":150}]
[null,600,null,null,null,9,{"$f":"PADT!B3&PADT!B4","v":"Filip  :  PADT"},{"$f":"PADT!Q25","v":250}]
[null,550,null,null,null,10,{"$f":"Paperboys!B3&Paperboys!B4","v":"Tom  :  Paperboys*"},{"$f":"Paperboys!Q25","v":100}]
[null,500,null,null,null,11,{"$f":"'Il Krieperi Disoccupato'!B3&'Il Krieperi Disoccupato'!B4","v":"Robin  :  Il Krieperi Disoccupato***"},{"$f":"'Il Krieperi Disoccupato'!Q25","v":150}]
[null,450,null,null,null,12,{"$f":"'The Dolphen'!B3&'The Dolphen'!B4","v":"Pieter  :  The Dolphen"},{"$f":"'The Dolphen'!Q25","v":150}]
[null,400,null,null,null,13,{"$f":"'Squadra Parcheggio'!B3&'Squadra Parcheggio'!B4","v":"Bart  :  Squadra Parcheggio"},{"$f":"'Squadra Parcheggio'!Q25","v":100}]
[null,350,null,null,null,14,{"$f":"WELK!B3&WELK!B4","v":"Ronny  :  WELK*"},{"$f":"WELK!Q25","v":150}]
[null,300,null,null,null,15,{"$f":"'De Bakkers'!B3&'De Bakkers'!B4","v":"Guy  :  De Bakkers"},{"$f":"'De Bakkers'!Q25","v":250}]
[null,250]
[null,200]
[null,150]
[null,100]
[null,75]
[null,50]
[null,40]
[null,30]
[null,20]
[null,10]

{"sheet":"Imola-Vicenza","index":28,"n_rows":25,"n_cols":8,"rows_kept":25,"cut":false,"hidden":false,"merged":[]}
[null,1500,null,null,null,1,{"$f":"'De VACCAreurs'!B3&'De VACCAreurs'!B4","v":"Sven  :    De VACCAreurs****"},{"$f":"'De VACCAreurs'!R25","v":450}]
[null,1300,null,null,null,2,{"$f":"'De Freddies'!B3&'De Freddies'!B4","v":"Fred  :  De Freddies"},{"$f":"'De Freddies'!R25","v":250}]
[null,1100,null,null,null,3,{"$f":"'FC RAFTEN'!B3&'FC RAFTEN'!B4","v":"Raf  :  FC RAFTEN**"},{"$f":"'FC RAFTEN'!R25","v":350}]
[null,1000,null,null,null,4,{"$f":"'De Roze 12'!B3&'De Roze 12'!B4","v":"Janes  :  De Roze 12*"},{"$f":"'De Roze 12'!R25","v":300}]
[null,900,null,null,null,5,{"$f":"'Le Capre Di Montagna'!B3&'Le Capre Di Montagna'!B4","v":"Joik  :  Le Capre Di Montagna****"},{"$f":"'Le Capre Di Montagna'!R25","v":650}]
[null,800,null,null,null,6,{"$f":"'De Roze Janetten'!B3&'De Roze Janetten'!B4","v":"Tim  :  De Roze Janetten"},{"$f":"'De Roze Janetten'!R25","v":550}]
[null,700,null,null,null,7,{"$f":"U!B3&U!B4","v":"Ollie  :  U****"},{"$f":"U!R25","v":550}]
[null,650,null,null,null,8,{"$f":"Jeff!B3&Jeff!B4","v":"Arno  :  Jeff"},{"$f":"Jeff!R25","v":450}]
[null,600,null,null,null,9,{"$f":"PADT!B3&PADT!B4","v":"Filip  :  PADT"},{"$f":"PADT!R25","v":350}]
[null,550,null,null,null,10,{"$f":"Paperboys!B3&Paperboys!B4","v":"Tom  :  Paperboys*"},{"$f":"Paperboys!R25","v":200}]
[null,500,null,null,null,11,{"$f":"'Il Krieperi Disoccupato'!B3&'Il Krieperi Disoccupato'!B4","v":"Robin  :  Il Krieperi Disoccupato***"},{"$f":"'Il Krieperi Disoccupato'!R25","v":550}]
[null,450,null,null,null,12,{"$f":"'The Dolphen'!B3&'The Dolphen'!B4","v":"Pieter  :  The Dolphen"},{"$f":"'The Dolphen'!R25","v":350}]
[null,400,null,null,null,13,{"$f":"'Squadra Parcheggio'!B3&'Squadra Parcheggio'!B4","v":"Bart  :  Squadra Parcheggio"},{"$f":"'Squadra Parcheggio'!R25","v":200}]
[null,350,null,null,null,14,{"$f":"WELK!B3&WELK!B4","v":"Ronny  :  WELK*"},{"$f":"WELK!R25","v":350}]
[null,300,null,null,null,15,{"$f":"'De Bakkers'!B3&'De Bakkers'!B4","v":"Guy  :  De Bakkers"},{"$f":"'De Bakkers'!R25","v":150}]
[null,250]
[null,200]
[null,150]
[null,100]
[null,75]
[null,50]
[null,40]
[null,30]
[null,20]
[null,10]

{"sheet":"Montecchio Maggiore-Jesolo","index":29,"n_rows":25,"n_cols":8,"rows_kept":25,"cut":false,"hidden":false,"merged":[]}
[null,1500,null,null,null,1,{"$f":"'De VACCAreurs'!B3&'De VACCAreurs'!B4","v":"Sven  :    De VACCAreurs****"},{"$f":"'De VACCAreurs'!S25","v":0}]
[null,1300,null,null,null,2,{"$f":"'De Freddies'!B3&'De Freddies'!B4","v":"Fred  :  De Freddies"},{"$f":"'De Freddies'!S25","v":0}]
[null,1100,null,null,null,3,{"$f":"'FC RAFTEN'!B3&'FC RAFTEN'!B4","v":"Raf  :  FC RAFTEN**"},{"$f":"'FC RAFTEN'!S25","v":0}]
[null,1000,null,null,null,4,{"$f":"'De Roze 12'!B3&'De Roze 12'!B4","v":"Janes  :  De Roze 12*"},{"$f":"'De Roze 12'!S25","v":0}]
[null,900,null,null,null,5,{"$f":"'Le Capre Di Montagna'!B3&'Le Capre Di Montagna'!B4","v":"Joik  :  Le Capre Di Montagna****"},{"$f":"'Le Capre Di Montagna'!S25","v":0}]
[null,800,null,null,null,6,{"$f":"'De Roze Janetten'!B3&'De Roze Janetten'!B4","v":"Tim  :  De Roze Janetten"},{"$f":"'De Roze Janetten'!S25","v":0}]
[null,700,null,null,null,7,{"$f":"U!B3&U!B4","v":"Ollie  :  U****"},{"$f":"U!S25","v":0}]
[null,650,null,null,null,8,{"$f":"Jeff!B3&Jeff!B4","v":"Arno  :  Jeff"},{"$f":"Jeff!S25","v":0}]
[null,600,null,null,null,9,{"$f":"PADT!B3&PADT!B4","v":"Filip  :  PADT"},{"$f":"PADT!S25","v":0}]
[null,550,null,null,null,10,{"$f":"Paperboys!B3&Paperboys!B4","v":"Tom  :  Paperboys*"},{"$f":"Paperboys!S25","v":0}]
[null,500,null,null,null,11,{"$f":"'Il Krieperi Disoccupato'!B3&'Il Krieperi Disoccupato'!B4","v":"Robin  :  Il Krieperi Disoccupato***"},{"$f":"'Il Krieperi Disoccupato'!S25","v":0}]
[null,450,null,null,null,12,{"$f":"'The Dolphen'!B3&'The Dolphen'!B4","v":"Pieter  :  The Dolphen"},{"$f":"'The Dolphen'!S25","v":0}]
[null,400,null,null,null,13,{"$f":"'Squadra Parcheggio'!B3&'Squadra Parcheggio'!B4","v":"Bart  :  Squadra Parcheggio"},{"$f":"'Squadra Parcheggio'!S25","v":0}]
[null,350,null,null,null,14,{"$f":"WELK!B3&WELK!B4","v":"Ronny  :  WELK*"},{"$f":"WELK!S25","v":0}]
[null,300,null,null,null,15,{"$f":"'De Bakkers'!B3&'De Bakkers'!B4","v":"Guy  :  De Bakkers"},{"$f":"'De Bakkers'!S25","v":0}]
[null,250]
[null,200]
[null,150]
[null,100]
[null,75]
[null,50]
[null,40]
[null,30]
[null,20]
[null,10]

{"sheet":"Treviso-Valdobbiadene","index":30,"n_rows":25,"n_cols":8,"rows_kept":25,"cut":false,"hidden":false,"merged":[]}
[null,1500,null,null,null,1,{"$f":"'De VACCAreurs'!B3&'De VACCAreurs'!B4","v":"Sven  :    De VACCAreurs****"},{"$f":"'De VACCAreurs'!T25","v":0}]
[null,1300,null,null,null,2,{"$f":"'De Freddies'!B3&'De Freddies'!B4","v":"Fred  :  De Freddies"},{"$f":"'De Freddies'!T25","v":0}]
[null,1100,null,null,null,3,{"$f":"'FC RAFTEN'!B3&'FC RAFTEN'!B4","v":"Raf  :  FC RAFTEN**"},{"$f":"'FC RAFTEN'!T25","v":0}]
[null,1000,null,null,null,4,{"$f":"'De Roze 12'!B3&'De Roze 12'!B4","v":"Janes  :  De Roze 12*"},{"$f":"'De Roze 12'!T25","v":0}]
[null,900,null,null,null,5,{"$f":"'Le Capre Di Montagna'!B3&'Le Capre Di Montagna'!B4","v":"Joik  :  Le Capre Di Montagna****"},{"$f":"'Le Capre Di Montagna'!T25","v":0}]
[null,800,null,null,null,6,{"$f":"'De Roze Janetten'!B3&'De Roze Janetten'!B4","v":"Tim  :  De Roze Janetten"},{"$f":"'De Roze Janetten'!T25","v":0}]
[null,700,null,null,null,7,{"$f":"U!B3&U!B4","v":"Ollie  :  U****"},{"$f":"U!T25","v":0}]
[null,650,null,null,null,8,{"$f":"Jeff!B3&Jeff!B4","v":"Arno  :  Jeff"},{"$f":"Jeff!T25","v":0}]
[null,600,null,null,null,9,{"$f":"PADT!B3&PADT!B4","v":"Filip  :  PADT"},{"$f":"PADT!T25","v":0}]
[null,550,null,null,null,10,{"$f":"Paperboys!B3&Paperboys!B4","v":"Tom  :  Paperboys*"},{"$f":"Paperboys!T25","v":0}]
[null,500,null,null,null,11,{"$f":"'Il Krieperi Disoccupato'!B3&'Il Krieperi Disoccupato'!B4","v":"Robin  :  Il Krieperi Disoccupato***"},{"$f":"'Il Krieperi Disoccupato'!T25","v":0}]
[null,450,null,null,null,12,{"$f":"'The Dolphen'!B3&'The Dolphen'!B4","v":"Pieter  :  The Dolphen"},{"$f":"'The Dolphen'!T25","v":0}]
[null,400,null,null,null,13,{"$f":"'Squadra Parcheggio'!B3&'Squadra Parcheggio'!B4","v":"Bart  :  Squadra Parcheggio"},{"$f":"'Squadra Parcheggio'!T25","v":0}]
[null,350,null,null,null,14,{"$f":"WELK!B3&WELK!B4","v":"Ronny  :  WELK*"},{"$f":"WELK!T25","v":0}]
[null,300,null,null,null,15,{"$f":"'De Bakkers'!B3&'De Bakkers'!B4","v":"Guy  :  De Bakkers"},{"$f":"'De Bakkers'!T25","v":0}]
[null,250]
[null,200]
[null,150]
[null,100]
[null,75]
[null,50]
[null,40]
[null,30]
[null,20]
[null,10]

{"sheet":"Marostica-Madonna","index":31,"n_rows":25,"n_cols":8,"rows_kept":25,"cut":false,"hidden":false,"merged":[]}
[null,1500,null,null,null,1,{"$f":"'De VACCAreurs'!B3&'De VACCAreurs'!B4","v":"Sven  :    De VACCAreurs****"},{"$f":"'De VACCAreurs'!U25","v":0}]
[null,1300,null,null,null,2,{"$f":"'De Freddies'!B3&'De Freddies'!B4","v":"Fred  :  De Freddies"},{"$f":"'De Freddies'!U25","v":0}]
[null,1100,null,null,null,3,{"$f":"'FC RAFTEN'!B3&'FC RAFTEN'!B4","v":"Raf  :  FC RAFTEN**"},{"$f":"'FC RAFTEN'!U25","v":0}]
[null,1000,null,null,null,4,{"$f":"'De Roze 12'!B3&'De Roze 12'!B4","v":"Janes  :  De Roze 12*"},{"$f":"'De Roze 12'!U25","v":0}]
[null,900,null,null,null,5,{"$f":"'Le Capre Di Montagna'!B3&'Le Capre Di Montagna'!B4","v":"Joik  :  Le Capre Di Montagna****"},{"$f":"'Le Capre Di Montagna'!U25","v":0}]
[null,800,null,null,null,6,{"$f":"'De Roze Janetten'!B3&'De Roze Janetten'!B4","v":"Tim  :  De Roze Janetten"},{"$f":"'De Roze Janetten'!U25","v":0}]
[null,700,null,null,null,7,{"$f":"U!B3&U!B4","v":"Ollie  :  U****"},{"$f":"U!U25","v":0}]
[null,650,null,null,null,8,{"$f":"Jeff!B3&Jeff!B4","v":"Arno  :  Jeff"},{"$f":"Jeff!U25","v":0}]
[null,600,null,null,null,9,{"$f":"PADT!B3&PADT!B4","v":"Filip  :  PADT"},{"$f":"PADT!U25","v":0}]
[null,550,null,null,null,10,{"$f":"Paperboys!B3&Paperboys!B4","v":"Tom  :  Paperboys*"},{"$f":"Paperboys!U25","v":0}]
[null,500,null,null,null,11,{"$f":"'Il Krieperi Disoccupato'!B3&'Il Krieperi Disoccupato'!B4","v":"Robin  :  Il Krieperi Disoccupato***"},{"$f":"'Il Krieperi Disoccupato'!U25","v":0}]
[null,450,null,null,null,12,{"$f":"'The Dolphen'!B3&'The Dolphen'!B4","v":"Pieter  :  The Dolphen"},{"$f":"'The Dolphen'!U25","v":0}]
[null,400,null,null,null,13,{"$f":"'Squadra Parcheggio'!B3&'Squadra Parcheggio'!B4","v":"Bart  :  Squadra Parcheggio"},{"$f":"'Squadra Parcheggio'!U25","v":0}]
[null,350,null,null,null,14,{"$f":"WELK!B3&WELK!B4","v":"Ronny  :  WELK*"},{"$f":"WELK!U25","v":0}]
[null,300,null,null,null,15,{"$f":"'De Bakkers'!B3&'De Bakkers'!B4","v":"Guy  :  De Bakkers"},{"$f":"'De Bakkers'!U25","v":0}]
[null,250]
[null,200]
[null,150]
[null,100]
[null,75]
[null,50]
[null,40]
[null,30]
[null,20]
[null,10]

{"sheet":"Pinzolo-Aprica","index":32,"n_rows":25,"n_cols":8,"rows_kept":25,"cut":false,"hidden":false,"merged":[]}
[null,1500,null,null,null,1,{"$f":"'De VACCAreurs'!B3&'De VACCAreurs'!B4","v":"Sven  :    De VACCAreurs****"},{"$f":"'De VACCAreurs'!V25","v":0}]
[null,1300,null,null,null,2,{"$f":"'De Freddies'!B3&'De Freddies'!B4","v":"Fred  :  De Freddies"},{"$f":"'De Freddies'!V25","v":0}]
[null,1100,null,null,null,3,{"$f":"'FC RAFTEN'!B3&'FC RAFTEN'!B4","v":"Raf  :  FC RAFTEN**"},{"$f":"'FC RAFTEN'!V25","v":0}]
[null,1000,null,null,null,4,{"$f":"'De Roze 12'!B3&'De Roze 12'!B4","v":"Janes  :  De Roze 12*"},{"$f":"'De Roze 12'!V25","v":0}]
[null,900,null,null,null,5,{"$f":"'Le Capre Di Montagna'!B3&'Le Capre Di Montagna'!B4","v":"Joik  :  Le Capre Di Montagna****"},{"$f":"'Le Capre Di Montagna'!V25","v":0}]
[null,800,null,null,null,6,{"$f":"'De Roze Janetten'!B3&'De Roze Janetten'!B4","v":"Tim  :  De Roze Janetten"},{"$f":"'De Roze Janetten'!V25","v":0}]
[null,700,null,null,null,7,{"$f":"U!B3&U!B4","v":"Ollie  :  U****"},{"$f":"U!V25","v":0}]
[null,650,null,null,null,8,{"$f":"Jeff!B3&Jeff!B4","v":"Arno  :  Jeff"},{"$f":"Jeff!V25","v":0}]
[null,600,null,null,null,9,{"$f":"PADT!B3&PADT!B4","v":"Filip  :  PADT"},{"$f":"PADT!V25","v":0}]
[null,550,null,null,null,10,{"$f":"Paperboys!B3&Paperboys!B4","v":"Tom  :  Paperboys*"},{"$f":"Paperboys!V25","v":0}]
[null,500,null,null,null,11,{"$f":"'Il Krieperi Disoccupato'!B3&'Il Krieperi Disoccupato'!B4","v":"Robin  :  Il Krieperi Disoccupato***"},{"$f":"'Il Krieperi Disoccupato'!V25","v":0}]
[null,450,null,null,null,12,{"$f":"'The Dolphen'!B3&'The Dolphen'!B4","v":"Pieter  :  The Dolphen"},{"$f":"'The Dolphen'!V25","v":0}]
[null,400,null,null,null,13,{"$f":"'Squadra Parcheggio'!B3&'Squadra Parcheggio'!B4","v":"Bart  :  Squadra Parcheggio"},{"$f":"'Squadra Parcheggio'!V25","v":0}]
[null,350,null,null,null,14,{"$f":"WELK!B3&WELK!B4","v":"Ronny  :  WELK*"},{"$f":"WELK!V25","v":0}]
[null,300,null,null,null,15,{"$f":"'De Bakkers'!B3&'De Bakkers'!B4","v":"Guy  :  De Bakkers"},{"$f":"'De Bakkers'!V25","v":0}]
[null,250]
[null,200]
[null,150]
[null,100]
[null,75]
[null,50]
[null,40]
[null,30]
[null,20]
[null,10]

{"sheet":"Tirano-Lugano","index":33,"n_rows":25,"n_cols":8,"rows_kept":25,"cut":false,"hidden":false,"merged":[]}
[null,1500,null,null,null,1,{"$f":"'De VACCAreurs'!B3&'De VACCAreurs'!B4","v":"Sven  :    De VACCAreurs****"},{"$f":"'De VACCAreurs'!W25","v":0}]
[null,1300,null,null,null,2,{"$f":"'De Freddies'!B3&'De Freddies'!B4","v":"Fred  :  De Freddies"},{"$f":"'De Freddies'!W25","v":0}]
[null,1100,null,null,null,3,{"$f":"'FC RAFTEN'!B3&'FC RAFTEN'!B4","v":"Raf  :  FC RAFTEN**"},{"$f":"'FC RAFTEN'!W25","v":0}]
[null,1000,null,null,null,4,{"$f":"'De Roze 12'!B3&'De Roze 12'!B4","v":"Janes  :  De Roze 12*"},{"$f":"'De Roze 12'!W25","v":0}]
[null,900,null,null,null,5,{"$f":"'Le Capre Di Montagna'!B3&'Le Capre Di Montagna'!B4","v":"Joik  :  Le Capre Di Montagna****"},{"$f":"'Le Capre Di Montagna'!W25","v":0}]
[null,800,null,null,null,6,{"$f":"'De Roze Janetten'!B3&'De Roze Janetten'!B4","v":"Tim  :  De Roze Janetten"},{"$f":"'De Roze Janetten'!W25","v":0}]
[null,700,null,null,null,7,{"$f":"U!B3&U!B4","v":"Ollie  :  U****"},{"$f":"U!W25","v":0}]
[null,650,null,null,null,8,{"$f":"Jeff!B3&Jeff!B4","v":"Arno  :  Jeff"},{"$f":"Jeff!W25","v":0}]
[null,600,null,null,null,9,{"$f":"PADT!B3&PADT!B4","v":"Filip  :  PADT"},{"$f":"PADT!W25","v":0}]
[null,550,null,null,null,10,{"$f":"Paperboys!B3&Paperboys!B4","v":"Tom  :  Paperboys*"},{"$f":"Paperboys!W25","v":0}]
[null,500,null,null,null,11,{"$f":"'Il Krieperi Disoccupato'!B3&'Il Krieperi Disoccupato'!B4","v":"Robin  :  Il Krieperi Disoccupato***"},{"$f":"'Il Krieperi Disoccupato'!W25","v":0}]
[null,450,null,null,null,12,{"$f":"'The Dolphen'!B3&'The Dolphen'!B4","v":"Pieter  :  The Dolphen"},{"$f":"'The Dolphen'!W25","v":0}]
[null,400,null,null,null,13,{"$f":"'Squadra Parcheggio'!B3&'Squadra Parcheggio'!B4","v":"Bart  :  Squadra Parcheggio"},{"$f":"'Squadra Parcheggio'!W25","v":0}]
[null,350,null,null,null,14,{"$f":"WELK!B3&WELK!B4","v":"Ronny  :  WELK*"},{"$f":"WELK!W25","v":0}]
[null,300,null,null,null,15,{"$f":"'De Bakkers'!B3&'De Bakkers'!B4","v":"Guy  :  De Bakkers"},{"$f":"'De Bakkers'!W25","v":0}]
[null,250]
[null,200]
[null,150]
[null,100]
[null,75]
[null,50]
[null,40]
[null,30]
[null,20]
[null,10]

{"sheet":"Melide-Verbania","index":34,"n_rows":25,"n_cols":8,"rows_kept":25,"cut":false,"hidden":false,"merged":[]}
[null,1500,null,null,null,1,{"$f":"'De VACCAreurs'!B3&'De VACCAreurs'!B4","v":"Sven  :    De VACCAreurs****"},{"$f":"'De VACCAreurs'!X25","v":0}]
[null,1300,null,null,null,2,{"$f":"'De Freddies'!B3&'De Freddies'!B4","v":"Fred  :  De Freddies"},{"$f":"'De Freddies'!X25","v":0}]
[null,1100,null,null,null,3,{"$f":"'FC RAFTEN'!B3&'FC RAFTEN'!B4","v":"Raf  :  FC RAFTEN**"},{"$f":"'FC RAFTEN'!X25","v":0}]
[null,1000,null,null,null,4,{"$f":"'De Roze 12'!B3&'De Roze 12'!B4","v":"Janes  :  De Roze 12*"},{"$f":"'De Roze 12'!X25","v":0}]
[null,900,null,null,null,5,{"$f":"'Le Capre Di Montagna'!B3&'Le Capre Di Montagna'!B4","v":"Joik  :  Le Capre Di Montagna****"},{"$f":"'Le Capre Di Montagna'!X25","v":0}]
[null,800,null,null,null,6,{"$f":"'De Roze Janetten'!B3&'De Roze Janetten'!B4","v":"Tim  :  De Roze Janetten"},{"$f":"'De Roze Janetten'!X25","v":0}]
[null,700,null,null,null,7,{"$f":"U!B3&U!B4","v":"Ollie  :  U****"},{"$f":"U!X25","v":0}]
[null,650,null,null,null,8,{"$f":"Jeff!B3&Jeff!B4","v":"Arno  :  Jeff"},{"$f":"Jeff!X25","v":0}]
[null,600,null,null,null,9,{"$f":"PADT!B3&PADT!B4","v":"Filip  :  PADT"},{"$f":"PADT!X25","v":0}]
[null,550,null,null,null,10,{"$f":"Paperboys!B3&Paperboys!B4","v":"Tom  :  Paperboys*"},{"$f":"Paperboys!X25","v":0}]
[null,500,null,null,null,11,{"$f":"'Il Krieperi Disoccupato'!B3&'Il Krieperi Disoccupato'!B4","v":"Robin  :  Il Krieperi Disoccupato***"},{"$f":"'Il Krieperi Disoccupato'!X25","v":0}]
[null,450,null,null,null,12,{"$f":"'The Dolphen'!B3&'The Dolphen'!B4","v":"Pieter  :  The Dolphen"},{"$f":"'The Dolphen'!X25","v":0}]
[null,400,null,null,null,13,{"$f":"'Squadra Parcheggio'!B3&'Squadra Parcheggio'!B4","v":"Bart  :  Squadra Parcheggio"},{"$f":"'Squadra Parcheggio'!X25","v":0}]
[null,350,null,null,null,14,{"$f":"WELK!B3&WELK!B4","v":"Ronny  :  WELK*"},{"$f":"WELK!X25","v":0}]
[null,300,null,null,null,15,{"$f":"'De Bakkers'!B3&'De Bakkers'!B4","v":"Guy  :  De Bakkers"},{"$f":"'De Bakkers'!X25","v":0}]
[null,250]
[null,200]
[null,150]
[null,100]
[null,75]
[null,50]
[null,40]
[null,30]
[null,20]
[null,10]

{"sheet":"Gravellona Toce-Cervinia","index":35,"n_rows":25,"n_cols":8,"rows_kept":25,"cut":false,"hidden":false,"merged":[]}
[null,1500,null,null,null,1,{"$f":"'De VACCAreurs'!B3&'De VACCAreurs'!B4","v":"Sven  :    De VACCAreurs****"},{"$f":"'De VACCAreurs'!Y25","v":0}]
[null,1300,null,null,null,2,{"$f":"'De Freddies'!B3&'De Freddies'!B4","v":"Fred  :  De Freddies"},{"$f":"'De Freddies'!Y25","v":0}]
[null,1100,null,null,null,3,{"$f":"'FC RAFTEN'!B3&'FC RAFTEN'!B4","v":"Raf  :  FC RAFTEN**"},{"$f":"'FC RAFTEN'!Y25","v":0}]
[null,1000,null,null,null,4,{"$f":"'De Roze 12'!B3&'De Roze 12'!B4","v":"Janes  :  De Roze 12*"},{"$f":"'De Roze 12'!Y25","v":0}]
[null,900,null,null,null,5,{"$f":"'Le Capre Di Montagna'!B3&'Le Capre Di Montagna'!B4","v":"Joik  :  Le Capre Di Montagna****"},{"$f":"'Le Capre Di Montagna'!Y25","v":0}]
[null,800,null,null,null,6,{"$f":"'De Roze Janetten'!B3&'De Roze Janetten'!B4","v":"Tim  :  De Roze Janetten"},{"$f":"'De Roze Janetten'!Y25","v":0}]
[null,700,null,null,null,7,{"$f":"U!B3&U!B4","v":"Ollie  :  U****"},{"$f":"U!Y25","v":0}]
[null,650,null,null,null,8,{"$f":"Jeff!B3&Jeff!B4","v":"Arno  :  Jeff"},{"$f":"Jeff!Y25","v":0}]
[null,600,null,null,null,9,{"$f":"PADT!B3&PADT!B4","v":"Filip  :  PADT"},{"$f":"PADT!Y25","v":0}]
[null,550,null,null,null,10,{"$f":"Paperboys!B3&Paperboys!B4","v":"Tom  :  Paperboys*"},{"$f":"Paperboys!Y25","v":0}]
[null,500,null,null,null,11,{"$f":"'Il Krieperi Disoccupato'!B3&'Il Krieperi Disoccupato'!B4","v":"Robin  :  Il Krieperi Disoccupato***"},{"$f":"'Il Krieperi Disoccupato'!Y25","v":0}]
[null,450,null,null,null,12,{"$f":"'The Dolphen'!B3&'The Dolphen'!B4","v":"Pieter  :  The Dolphen"},{"$f":"'The Dolphen'!Y25","v":0}]
[null,400,null,null,null,13,{"$f":"'Squadra Parcheggio'!B3&'Squadra Parcheggio'!B4","v":"Bart  :  Squadra Parcheggio"},{"$f":"'Squadra Parcheggio'!Y25","v":0}]
[null,350,null,null,null,14,{"$f":"WELK!B3&WELK!B4","v":"Ronny  :  WELK*"},{"$f":"WELK!Y25","v":0}]
[null,300,null,null,null,15,{"$f":"'De Bakkers'!B3&'De Bakkers'!B4","v":"Guy  :  De Bakkers"},{"$f":"'De Bakkers'!Y25","v":0}]
[null,250]
[null,200]
[null,150]
[null,100]
[null,75]
[null,50]
[null,40]
[null,30]
[null,20]
[null,10]

{"sheet":"Saint.Vincent-Sestriere","index":36,"n_rows":25,"n_cols":8,"rows_kept":25,"cut":false,"hidden":false,"merged":[]}
[null,1500,null,null,null,1,{"$f":"'De VACCAreurs'!B3&'De VACCAreurs'!B4","v":"Sven  :    De VACCAreurs****"},{"$f":"'De VACCAreurs'!Z25","v":0}]
[null,1300,null,null,null,2,{"$f":"'De Freddies'!B3&'De Freddies'!B4","v":"Fred  :  De Freddies"},{"$f":"'De Freddies'!Z25","v":0}]
[null,1100,null,null,null,3,{"$f":"'FC RAFTEN'!B3&'FC RAFTEN'!B4","v":"Raf  :  FC RAFTEN**"},{"$f":"'FC RAFTEN'!Z25","v":0}]
[null,1000,null,null,null,4,{"$f":"'De Roze 12'!B3&'De Roze 12'!B4","v":"Janes  :  De Roze 12*"},{"$f":"'De Roze 12'!Z25","v":0}]
[null,900,null,null,null,5,{"$f":"'Le Capre Di Montagna'!B3&'Le Capre Di Montagna'!B4","v":"Joik  :  Le Capre Di Montagna****"},{"$f":"'Le Capre Di Montagna'!Z25","v":0}]
[null,800,null,null,null,6,{"$f":"'De Roze Janetten'!B3&'De Roze Janetten'!B4","v":"Tim  :  De Roze Janetten"},{"$f":"'De Roze Janetten'!Z25","v":0}]
[null,700,null,null,null,7,{"$f":"U!B3&U!B4","v":"Ollie  :  U****"},{"$f":"U!Z25","v":0}]
[null,650,null,null,null,8,{"$f":"Jeff!B3&Jeff!B4","v":"Arno  :  Jeff"},{"$f":"Jeff!Z25","v":0}]
[null,600,null,null,null,9,{"$f":"PADT!B3&PADT!B4","v":"Filip  :  PADT"},{"$f":"PADT!Z25","v":0}]
[null,550,null,null,null,10,{"$f":"Paperboys!B3&Paperboys!B4","v":"Tom  :  Paperboys*"},{"$f":"Paperboys!Z25","v":0}]
[null,500,null,null,null,11,{"$f":"'Il Krieperi Disoccupato'!B3&'Il Krieperi Disoccupato'!B4","v":"Robin  :  Il Krieperi Disoccupato***"},{"$f":"'Il Krieperi Disoccupato'!Z25","v":0}]
[null,450,null,null,null,12,{"$f":"'The Dolphen'!B3&'The Dolphen'!B4","v":"Pieter  :  The Dolphen"},{"$f":"'The Dolphen'!Z25","v":0}]
[null,400,null,null,null,13,{"$f":"'Squadra Parcheggio'!B3&'Squadra Parcheggio'!B4","v":"Bart  :  Squadra Parcheggio"},{"$f":"'Squadra Parcheggio'!Z25","v":0}]
[null,350,null,null,null,14,{"$f":"WELK!B3&WELK!B4","v":"Ronny  :  WELK*"},{"$f":"WELK!Z25","v":0}]
[null,300,null,null,null,15,{"$f":"'De Bakkers'!B3&'De Bakkers'!B4","v":"Guy  :  De Bakkers"},{"$f":"'De Bakkers'!Z25","v":0}]
[null,250]
[null,200]
[null,150]
[null,100]
[null,75]
[null,50]
[null,40]
[null,30]
[null,20]
[null,10]

{"sheet":"Turijn-Milaan","index":37,"n_rows":25,"n_cols":8,"rows_kept":25,"cut":false,"hidden":false,"merged":[]}
[null,1500,null,null,null,1,{"$f":"'De VACCAreurs'!B3&'De VACCAreurs'!B4","v":"Sven  :    De VACCAreurs****"},{"$f":"'De VACCAreurs'!AA25","v":0}]
[null,1300,null,null,null,2,{"$f":"'De Freddies'!B3&'De Freddies'!B4","v":"Fred  :  De Freddies"},{"$f":"'De Freddies'!AA25","v":0}]
[null,1100,null,null,null,3,{"$f":"'FC RAFTEN'!B3&'FC RAFTEN'!B4","v":"Raf  :  FC RAFTEN**"},{"$f":"'FC RAFTEN'!AA25","v":0}]
[null,1000,null,null,null,4,{"$f":"'De Roze 12'!B3&'De Roze 12'!B4","v":"Janes  :  De Roze 12*"},{"$f":"'De Roze 12'!AA25","v":0}]
[null,900,null,null,null,5,{"$f":"'Le Capre Di Montagna'!B3&'Le Capre Di Montagna'!B4","v":"Joik  :  Le Capre Di Montagna****"},{"$f":"'Le Capre Di Montagna'!AA25","v":0}]
[null,800,null,null,null,6,{"$f":"'De Roze Janetten'!B3&'De Roze Janetten'!B4","v":"Tim  :  De Roze Janetten"},{"$f":"'De Roze Janetten'!AA25","v":0}]
[null,700,null,null,null,7,{"$f":"U!B3&U!B4","v":"Ollie  :  U****"},{"$f":"U!AA25","v":0}]
[null,650,null,null,null,8,{"$f":"Jeff!B3&Jeff!B4","v":"Arno  :  Jeff"},{"$f":"Jeff!AA25","v":0}]
[null,600,null,null,null,9,{"$f":"PADT!B3&PADT!B4","v":"Filip  :  PADT"},{"$f":"PADT!AA25","v":0}]
[null,550,null,null,null,10,{"$f":"Paperboys!B3&Paperboys!B4","v":"Tom  :  Paperboys*"},{"$f":"Paperboys!AA25","v":0}]
[null,500,null,null,null,11,{"$f":"'Il Krieperi Disoccupato'!B3&'Il Krieperi Disoccupato'!B4","v":"Robin  :  Il Krieperi Disoccupato***"},{"$f":"'Il Krieperi Disoccupato'!AA25","v":0}]
[null,450,null,null,null,12,{"$f":"'The Dolphen'!B3&'The Dolphen'!B4","v":"Pieter  :  The Dolphen"},{"$f":"'The Dolphen'!AA25","v":0}]
[null,400,null,null,null,13,{"$f":"'Squadra Parcheggio'!B3&'Squadra Parcheggio'!B4","v":"Bart  :  Squadra Parcheggio"},{"$f":"'Squadra Parcheggio'!AA25","v":0}]
[null,350,null,null,null,14,{"$f":"WELK!B3&WELK!B4","v":"Ronny  :  WELK*"},{"$f":"WELK!AA25","v":0}]
[null,300,null,null,null,15,{"$f":"'De Bakkers'!B3&'De Bakkers'!B4","v":"Guy  :  De Bakkers"},{"$f":"'De Bakkers'!AA25","v":0}]
[null,250]
[null,200]
[null,150]
[null,100]
[null,75]
[null,50]
[null,40]
[null,30]
[null,20]
[null,10]

{"sheet":"Eindklassement renners","index":38,"n_rows":204,"n_cols":8,"rows_kept":204,"cut":false,"hidden":false,"merged":[]}
[]
[]
[]
[]
[]
[]
[null,5000,null,null,null,1,{"$f":"Pronostiekers!A3","v":": Sven****"},{"$f":"'De VACCAreurs'!AB25","v":1250}]
[null,3750,null,null,null,2,{"$f":"Pronostiekers!A13","v":": Fred"},{"$f":"'Il Krieperi Disoccupato'!AB25","v":1550}]
[null,3000,null,null,null,3,{"$f":"Pronostiekers!A5","v":": Raf**"},{"$f":"U!AB25","v":2150}]
[null,2750,null,null,null,4,{"$f":"Pronostiekers!A9","v":": Janes*"},{"$f":"Jeff!AB25","v":1150}]
[null,2500,null,null,null,5,{"$f":"Pronostiekers!A2","v":": Joik****"},{"$f":"PADT!AB25","v":1550}]
[null,2250,null,null,null,6,{"$f":"Pronostiekers!A12","v":": Tim"},{"$f":"WELK!AB25","v":1250}]
[null,2000,null,null,null,7,{"$f":"Pronostiekers!A1","v":": Ollie****"},{"$f":"'De Roze 12'!AB25","v":1000}]
[null,1750,null,null,null,8,{"$f":"Pronostiekers!A21","v":": Arno"},{"$f":"'FC RAFTEN'!AB25","v":1550}]
[null,1500,null,null,null,9,{"$f":"Pronostiekers!A17","v":": Filip"},{"$f":"'Le Capre Di Montagna'!AB25","v":1950}]
[null,1250,null,null,null,10,{"$f":"Pronostiekers!A10","v":": Tom*"},{"$f":"'De Freddies'!AB25","v":1550}]
[null,1160,null,null,null,11,{"$f":"Pronostiekers!A4","v":": Robin***"},{"$f":"'Squadra Parcheggio'!AB25","v":900}]
[null,1070,null,null,null,12,{"$f":"Pronostiekers!A14","v":": Pieter"},{"$f":"Paperboys!AB25","v":900}]
[null,990,null,null,null,13,{"$f":"Pronostiekers!A22","v":": Bart"},{"$f":"'De Roze Janetten'!AB25","v":1750}]
[null,910,null,null,null,14,{"$f":"Pronostiekers!A11","v":": Ronny*"},{"$f":"'The Dolphen'!AB25","v":1250}]
[null,830,null,null,null,15,{"$f":"Pronostiekers!A20","v":": Guy"},{"$f":"'De Bakkers'!AB25","v":1150}]
[null,750]
[null,670]
[null,590]
[null,510]
[null,430]
[null,350]
[null,270]
[null,190]
[null,110]
[null,100]
[null,100]
[null,100]
[null,100]
[null,100]
[null,100]
[null,100]
[null,100]
[null,100]
[null,100]
[null,100]
[null,100]
[null,100]
[null,100]
[null,100]
[null,100]
[null,100]
[null,100]
[null,100]
[null,100]
[null,100]
[null,100]
[null,100]
[null,100]
[null,100]
[null,100]
[null,100]
[null,100]
[null,100]
[null,100]
[null,100]
[null,100]
[null,100]
[null,100]
[null,100]
[null,100]
[null,100]
[null,100]
[null,100]
[null,100]
[null,100]
[null,100]
[null,100]
[null,100]
[null,100]
[null,100]
[null,100]
[null,100]
[null,100]
[null,100]
[null,100]
[null,100]
[null,100]
[null,100]
[null,100]
[null,100]
[null,100]
[null,100]
[null,100]
[null,100]
[null,100]
[null,100]
[null,100]
[null,100]
[null,100]
[null,100]
[null,100]
[null,100]
[null,100]
[null,100]
[null,100]
[null,100]
[null,100]
[null,100]
[null,100]
[null,100]
[null,100]
[null,100]
[null,100]
[null,100]
[null,100]
[null,100]
[null,100]
[null,100]
[null,100]
[null,100]
[null,100]
[null,100]
[null,100]
[null,100]
[null,100]
[null,100]
[null,100]
[null,100]
[null,100]
[null,100]
[null,100]
[null,100]
[null,100]
[null,100]
[null,100]
[null,100]
[null,100]
[null,100]
[null,100]
[null,100]
[null,100]
[null,100]
[null,100]
[null,100]
[null,100]
[null,100]
[null,100]
[null,100]
[null,100]
[null,100]
[null,100]
[null,100]
[null,100]
[null,100]
[null,100]
[null,100]
[null,100]
[null,100]
[null,100]
[null,100]
[null,100]
[null,100]
[null,100]
[null,100]
[null,100]
[null,100]
[null,100]
[null,100]
[null,100]
[null,100]
[null,100]
[null,100]
[null,100]
[null,100]
[null,100]
[null,100]
[null,100]
[null,100]
[null,100]
[null,100]
[null,100]
[null,100]
[null,100]
[null,100]
[null,100]
[null,100]
[null,100]
[null,100]
[null,100]
[null,100]
[null,100]
[null,100]
[null,100]
[null,100]
[null,100]
[null,100]
[null,100]
[null,100]
[null,100]
[null,100]
[null,100]
[null,100]
[null,100]
[null,100]
[null,100]
[null,100]
[null,100]
[null,100]

{"sheet":"Pronostiekers","index":39,"n_rows":22,"n_cols":1,"rows_kept":22,"cut":false,"hidden":false,"merged":[]}
[": Ollie****"]
[": Joik****"]
[": Sven****"]
[": Robin***"]
[": Raf**"]
[": Luciano**"]
[": Kenny*"]
[": Fré*"]
[": Janes*"]
[": Tom*"]
[": Ronny*"]
[": Tim"]
[": Fred"]
[": Pieter"]
[": Barbara"]
[": Joppe"]
[": Filip"]
[": Bram"]
[": Hannes"]
[": Guy"]
[": Arno"]
[": Bart"]

{"sheet":"Deelnemende Renners","index":40,"n_rows":100,"n_cols":26,"rows_kept":100,"cut":false,"hidden":false,"merged":[]}
[null,"RIT",1,2,3,4,5,6,7,8,9,10,11,12,13,14,15,16,17,18,19,20,21,"TOTAAL",null,"Roze"]
[502,{"$f":"IF(A2=\"\",\"\",VLOOKUP(A2,'Rennerslijst Giro'!A$2:B$620,2,0))","v":"CONTADOR VELASCO Alberto"},null,20,100,600,1000,null,null,900,500,null,75,1300,null,null,null,null,null,null,null,null,null,{"$f":"SUM(C2:W2)","v":4495},null,"Berg"]
[146,{"$f":"IF(A3=\"\",\"\",VLOOKUP(A3,'Rennerslijst Giro'!A$2:B$620,2,0))","v":"URAN URAN Rigoberto"},null,250,null,50,200,null,null,700,null,null,null,500,null,null,null,null,null,null,null,null,null,{"$f":"SUM(C3:W3)","v":1700},null,"Punten"]
[473,{"$f":"IF(A4=\"\",\"\",VLOOKUP(A4,'Rennerslijst Giro'!A$2:B$620,2,0))","v":"PORTE Richie"},null,40,null,550,900,30,null,800,450,null,null,450,null,null,null,null,null,null,null,null,null,3220,null,"Jongere"]
[3,{"$f":"IF(A5=\"\",\"\",VLOOKUP(A5,'Rennerslijst Giro'!A$2:B$620,2,0))","v":"POZZOVIVO Domenico"},null,null,null,null,null,null,null,null,null,null,null,null,null,null,null,null,null,null,null,null,null,0]
[509,{"$f":"IF(A6=\"\",\"\",VLOOKUP(A6,'Rennerslijst Giro'!A$2:B$620,2,0))","v":"KREUZIGER Roman"},null,400,20,400,250,null,null,100,null,null,null,250,null,null,null,null,null,null,null,null,null,1420]
[260,{"$f":"IF(A7=\"\",\"\",VLOOKUP(A7,'Rennerslijst Giro'!A$2:B$620,2,0))","v":"VAN DEN BROECK Jurgen"},null,null,null,150,null,null,null,250,20,null,150,600,null,null,null,null,null,null,null,null,null,1170]
[83,{"$f":"IF(A8=\"\",\"\",VLOOKUP(A8,'Rennerslijst Giro'!A$2:B$620,2,0))","v":"PIRAZZI Stefano"},null,null,null,null,20,null,null,null,100,null,null,null,null,null,null,null,null,null,null,null,null,120]
[242,{"$f":"IF(A9=\"\",\"\",VLOOKUP(A9,'Rennerslijst Giro'!A$2:B$620,2,0))","v":"MODOLO Sacha"},null,null,null,null,null,1100,null,null,null,800,null,null,null,null,null,null,null,null,null,null,null,1900]
[396,{"$f":"IF(A10=\"\",\"\",VLOOKUP(A10,'Rennerslijst Giro'!A$2:B$620,2,0))","v":"MEZGEC Luka"},null,1000,null,null,null,650,null,null,null,650,null,null,null,null,null,null,null,null,null,null,null,2300]
[533,{"$f":"IF(A11=\"\",\"\",VLOOKUP(A11,'Rennerslijst Giro'!A$2:B$620,2,0))","v":"NIZZOLO Giacomo"},null,800,null,null,null,900,null,null,null,900,null,null,null,null,null,null,null,null,null,null,null,2600]
[27,{"$f":"IF(A12=\"\",\"\",VLOOKUP(A12,'Rennerslijst Giro'!A$2:B$620,2,0))","v":"BETANCUR GOMEZ Carlos Alberto"},null,null,null,null,null,null,30,null,800,null,1300,650,null,null,null,null,null,null,null,null,null,2780]
[237,{"$f":"IF(A13=\"\",\"\",VLOOKUP(A13,'Rennerslijst Giro'!A$2:B$620,2,0))","v":"FERRARI Roberto"},null,null,null,null,null,null,null,null,null,null,null,null,null,null,null,null,null,null,null,null,null,0]
[50,{"$f":"IF(A14=\"\",\"\",VLOOKUP(A14,'Rennerslijst Giro'!A$2:B$620,2,0))","v":"ARU Fabio"},null,450,450,800,1100,null,200,1000,550,75,50,null,null,null,null,null,null,null,null,null,null,4675]
[232,{"$f":"IF(A15=\"\",\"\",VLOOKUP(A15,'Rennerslijst Giro'!A$2:B$620,2,0))","v":"NIEMIEC Przemyslaw"},null,null,null,null,150,null,null,null,null,null,null,null,null,null,null,null,null,null,null,null,null,150]
[451,{"$f":"IF(A16=\"\",\"\",VLOOKUP(A16,'Rennerslijst Giro'!A$2:B$620,2,0))","v":"KRUIJSWIJK Steven"},null,null,null,null,null,null,null,10,1300,null,800,20,null,null,null,null,null,null,null,null,null,2130]
[322,{"$f":"IF(A17=\"\",\"\",VLOOKUP(A17,'Rennerslijst Giro'!A$2:B$620,2,0))","v":"MATTHEWS Michael"},null,700,1500,null,null,200,null,null,250,null,250,null,null,null,null,null,null,null,null,null,null,2900]
[101,{"$f":"IF(A18=\"\",\"\",VLOOKUP(A18,'Rennerslijst Giro'!A$2:B$620,2,0))","v":"CARUSO Damiano"},null,30,10,200,600,null,250,550,75,null,null,350,null,null,null,null,null,null,null,null,null,2065]
[424,{"$f":"IF(A19=\"\",\"\",VLOOKUP(A19,'Rennerslijst Giro'!A$2:B$620,2,0))","v":"ZAKARIN Ilnur"},null,null,null,null,null,null,null,null,null,null,1500,null,null,null,null,null,null,null,null,null,null,1500]
[59,{"$f":"IF(A20=\"\",\"\",VLOOKUP(A20,'Rennerslijst Giro'!A$2:B$620,2,0))","v":"LANDA MEANA Mikel"},null,null,null,40,800,null,null,1300,400,null,30,550,null,null,null,null,null,null,null,null,null,3120]
[236,{"$f":"IF(A21=\"\",\"\",VLOOKUP(A21,'Rennerslijst Giro'!A$2:B$620,2,0))","v":"ULISSI Diego"},null,null,null,null,null,null,1500,null,null,null,null,1100,null,null,null,null,null,null,null,null,null,2600]
[85,{"$f":"IF(A22=\"\",\"\",VLOOKUP(A22,'Rennerslijst Giro'!A$2:B$620,2,0))","v":"RUFFONI Nicola"},null,null,null,null,null,600,null,null,null,600,null,null,null,null,null,null,null,null,null,null,null,1200]
[478,{"$f":"IF(A23=\"\",\"\",VLOOKUP(A23,'Rennerslijst Giro'!A$2:B$620,2,0))","v":"KÖNIG Leopold"},null,null,null,30,400,null,10,350,null,null,40,200,null,null,null,null,null,null,null,null,null,1030]
[254,{"$f":"IF(A24=\"\",\"\",VLOOKUP(A24,'Rennerslijst Giro'!A$2:B$620,2,0))","v":"GREIPEL André"},null,1100,null,null,null,1500,null,null,null,700,null,null,null,null,null,null,null,null,null,null,null,3300]
[312,{"$f":"IF(A25=\"\",\"\",VLOOKUP(A25,'Rennerslijst Giro'!A$2:B$620,2,0))","v":"COLLI Daniele"},null,600,null,null,null,null,null,null,null,null,null,null,null,null,null,null,null,null,null,null,null,600]
[319,{"$f":"IF(A26=\"\",\"\",VLOOKUP(A26,'Rennerslijst Giro'!A$2:B$620,2,0))","v":"STACCHIOTTI Riccardo"},null,null,null,null,null,null,null,null,null,null,null,null,null,null,null,null,null,null,null,null,null,0]
[285,{"$f":"IF(A27=\"\",\"\",VLOOKUP(A27,'Rennerslijst Giro'!A$2:B$620,2,0))","v":"INTXAUSTI ELORRIAGA Beñat"},null,null,null,null,null,null,null,1500,null,null,1000,null,null,null,null,null,null,null,null,null,null,2500]
[429,{"$f":"IF(A28=\"\",\"\",VLOOKUP(A28,'Rennerslijst Giro'!A$2:B$620,2,0))","v":"TROFIMOV Yury"},null,null,null,100,650,null,null,40,null,null,null,40,null,null,null,null,null,null,null,null,null,830]
[332,{"$f":"IF(A29=\"\",\"\",VLOOKUP(A29,'Rennerslijst Giro'!A$2:B$620,2,0))","v":"YATES Simon"},null,null,null,null,null,null,null,null,null,null,null,null,null,null,null,null,null,null,null,null,null,0]
[110,{"$f":"IF(A30=\"\",\"\",VLOOKUP(A30,'Rennerslijst Giro'!A$2:B$620,2,0))","v":"ATAPUMA HURTADO Jhon Darwin"},null,null,null,450,550,null,null,300,null,null,null,100,null,null,null,null,null,null,null,null,null,1400]
[271,{"$f":"IF(A31=\"\",\"\",VLOOKUP(A31,'Rennerslijst Giro'!A$2:B$620,2,0))","v":"VERVAEKE Louis"},null,null,null,null,null,null,null,null,null,null,null,null,null,null,null,null,null,null,null,null,null,0]
[358,{"$f":"IF(A32=\"\",\"\",VLOOKUP(A32,'Rennerslijst Giro'!A$2:B$620,2,0))","v":"FAVILLI Elia"},null,null,350,null,null,null,null,null,null,null,null,null,null,null,null,null,null,null,null,null,null,350]
[124,{"$f":"IF(A33=\"\",\"\",VLOOKUP(A33,'Rennerslijst Giro'!A$2:B$620,2,0))","v":"PATERSKI Maciej"},null,null,null,null,null,null,null,null,null,null,650,null,null,null,null,null,null,null,null,null,null,650]
[82,{"$f":"IF(A34=\"\",\"\",VLOOKUP(A34,'Rennerslijst Giro'!A$2:B$620,2,0))","v":"BATTAGLIN Enrico"},null,null,650,null,null,null,900,null,null,null,null,900,null,null,null,null,null,null,null,null,null,2450]
[34,{"$f":"IF(A35=\"\",\"\",VLOOKUP(A35,'Rennerslijst Giro'!A$2:B$620,2,0))","v":"APPOLLONIO Davide"},null,650,null,null,null,550,500,null,null,550,null,null,null,null,null,null,null,null,null,null,null,2250]
[355,{"$f":"IF(A36=\"\",\"\",VLOOKUP(A36,'Rennerslijst Giro'!A$2:B$620,2,0))","v":"PETACCHI Alessandro"},null,900,null,null,null,800,null,null,null,null,null,null,null,null,null,null,null,null,null,null,null,1700]
[477,{"$f":"IF(A37=\"\",\"\",VLOOKUP(A37,'Rennerslijst Giro'!A$2:B$620,2,0))","v":"VIVIANI Elia"},null,1500,null,null,null,700,null,null,null,250,null,null,null,null,null,null,null,null,null,null,null,2450]
[507,{"$f":"IF(A38=\"\",\"\",VLOOKUP(A38,'Rennerslijst Giro'!A$2:B$620,2,0))","v":"ROGERS Michael"},null,null,null,null,30,null,null,null,null,null,null,null,null,null,null,null,null,null,null,null,null,30]
[368,{"$f":"IF(A39=\"\",\"\",VLOOKUP(A39,'Rennerslijst Giro'!A$2:B$620,2,0))","v":"HESJEDAL Ryder"},null,null,null,null,300,null,null,150,600,null,700,null,null,null,null,null,null,null,null,null,null,1750]
[207,{"$f":"IF(A40=\"\",\"\",VLOOKUP(A40,'Rennerslijst Giro'!A$2:B$620,2,0))","v":"PELUCCHI Matteo"},null,null,null,null,null,1300,null,null,null,null,null,null,null,null,null,null,null,null,null,null,null,1300]
[456,{"$f":"IF(A41=\"\",\"\",VLOOKUP(A41,'Rennerslijst Giro'!A$2:B$620,2,0))","v":"HOFLAND Moreno"},null,1300,null,null,null,500,null,null,null,200,null,null,null,null,null,null,null,null,null,null,null,2000]
[63,{"$f":"IF(A42=\"\",\"\",VLOOKUP(A42,'Rennerslijst Giro'!A$2:B$620,2,0))","v":"KANGERT Tanel"},null,null,30,null,null,null,null,null,null,null,null,null,null,null,null,null,null,null,null,null,null,30]
[298,{"$f":"IF(A43=\"\",\"\",VLOOKUP(A43,'Rennerslijst Giro'!A$2:B$620,2,0))","v":"ANTON HERNANDEZ Igor"},null,null,null,null,null,null,null,null,null,null,null,null,null,null,null,null,null,null,null,null,null,0]
[262,{"$f":"IF(A44=\"\",\"\",VLOOKUP(A44,'Rennerslijst Giro'!A$2:B$620,2,0))","v":"MONFORT Maxime"},null,null,null,75,null,null,null,200,null,null,null,50,null,null,null,null,null,null,null,null,null,325]
[309,{"$f":"IF(A45=\"\",\"\",VLOOKUP(A45,'Rennerslijst Giro'!A$2:B$620,2,0))","v":"CUNEGO Damiano"},null,null,null,20,500,null,null,600,30,null,null,30,null,null,null,null,null,null,null,null,null,1180]
[284,{"$f":"IF(A46=\"\",\"\",VLOOKUP(A46,'Rennerslijst Giro'!A$2:B$620,2,0))","v":"LOBATO DEL VALLE Juan Jose"},null,null,null,null,null,350,1300,null,null,400,550,null,null,null,null,null,null,null,null,null,null,2600]
[87,{"$f":"IF(A47=\"\",\"\",VLOOKUP(A47,'Rennerslijst Giro'!A$2:B$620,2,0))","v":"BARBIN Enrico"},null,null,null,null,null,null,null,null,50,null,null,null,null,null,null,null,null,null,null,null,null,50]
[431,{"$f":"IF(A48=\"\",\"\",VLOOKUP(A48,'Rennerslijst Giro'!A$2:B$620,2,0))","v":"PAOLINI Luca"},null,null,800,null,null,10,null,null,null,null,null,null,null,null,null,null,null,null,null,null,null,810]
[294,{"$f":"IF(A49=\"\",\"\",VLOOKUP(A49,'Rennerslijst Giro'!A$2:B$620,2,0))","v":"AMADOR BIKKAZAKOVA Andrey"},null,null,200,250,450,null,null,400,200,null,100,75,null,null,null,null,null,null,null,null,null,1675]
[491,{"$f":"IF(A50=\"\",\"\",VLOOKUP(A50,'Rennerslijst Giro'!A$2:B$620,2,0))","v":"HENAO GOMEZ Sebastian"},null,null,null,null,null,null,null,null,null,null,null,null,null,null,null,null,null,null,null,null,null,0]
[213,{"$f":"IF(A51=\"\",\"\",VLOOKUP(A51,'Rennerslijst Giro'!A$2:B$620,2,0))","v":"SARAMOTINS Aleksejs"},null,null,null,null,null,null,null,null,null,null,null,null,null,null,null,null,null,null,null,null,null,0]
[117,{"$f":"IF(A52=\"\",\"\",VLOOKUP(A52,'Rennerslijst Giro'!A$2:B$620,2,0))","v":"ZABEL Rick"},null,null,null,null,null,null,null,null,null,null,null,null,null,null,null,null,null,null,null,null,null,0]
[519,{"$f":"IF(A53=\"\",\"\",VLOOKUP(A53,'Rennerslijst Giro'!A$2:B$620,2,0))","v":"BASSO Ivan"},null,null,null,null,null,null,null,null,null,null,null,null,null,null,null,null,null,null,null,null,null,0]
[549,{"$f":"IF(A54=\"\",\"\",VLOOKUP(A54,'Rennerslijst Giro'!A$2:B$620,2,0))","v":"VAN POPPEL Boy"},null,null,null,null,null,null,null,null,null,null,null,null,null,null,null,null,null,null,null,null,null,0]
[327,{"$f":"IF(A55=\"\",\"\",VLOOKUP(A55,'Rennerslijst Giro'!A$2:B$620,2,0))","v":"CHAVES RUBIO Jhoan Esteban"},null,null,null,900,40,null,null,null,null,null,null,null,null,null,null,null,null,null,null,null,null,940]
[30,{"$f":"IF(A56=\"\",\"\",VLOOKUP(A56,'Rennerslijst Giro'!A$2:B$620,2,0))","v":"PELLIZOTTI Franco"},null,null,null,null,null,null,null,null,null,null,1100,null,null,null,null,null,null,null,null,null,null,1100]
[529,{"$f":"IF(A57=\"\",\"\",VLOOKUP(A57,'Rennerslijst Giro'!A$2:B$620,2,0))","v":"PAULINHO Sergio Miguel Moreira"},null,null,null,null,null,null,null,null,null,null,null,null,null,null,null,null,null,null,null,null,null,0]
[412,{"$f":"IF(A58=\"\",\"\",VLOOKUP(A58,'Rennerslijst Giro'!A$2:B$620,2,0))","v":"LUDVIGSSON Tobias"},null,null,null,null,null,null,null,null,null,null,null,null,null,null,null,null,null,null,null,null,null,0]
[95,{"$f":"IF(A59=\"\",\"\",VLOOKUP(A59,'Rennerslijst Giro'!A$2:B$620,2,0))","v":"GILBERT Philippe"},null,null,1100,null,null,null,400,null,null,40,600,1500,null,null,null,null,null,null,null,null,null,3640]
[534,{"$f":"IF(A60=\"\",\"\",VLOOKUP(A60,'Rennerslijst Giro'!A$2:B$620,2,0))","v":"FELLINE Fabio"},null,null,1300,null,null,null,700,null,150,null,null,null,null,null,null,null,null,null,null,null,null,2150]
[333,{"$f":"IF(A61=\"\",\"\",VLOOKUP(A61,'Rennerslijst Giro'!A$2:B$620,2,0))","v":"WEENING Pieter"},null,null,null,null,null,null,null,null,null,null,null,null,null,null,null,null,null,null,null,null,null,0]
[264,{"$f":"IF(A62=\"\",\"\",VLOOKUP(A62,'Rennerslijst Giro'!A$2:B$620,2,0))","v":"BAK Lars Ytting"},null,null,null,null,null,null,null,null,null,null,null,null,null,null,null,null,null,null,null,null,null,0]
[106,{"$f":"IF(A63=\"\",\"\",VLOOKUP(A63,'Rennerslijst Giro'!A$2:B$620,2,0))","v":"KÜNG Stefan"},null,null,null,null,null,null,null,null,null,10,null,null,null,null,null,null,null,null,null,null,null,10]
[335,{"$f":"IF(A64=\"\",\"\",VLOOKUP(A64,'Rennerslijst Giro'!A$2:B$620,2,0))","v":"DURBRIDGE Luke"},null,null,null,null,null,null,null,null,null,null,null,null,null,null,null,null,null,null,null,null,null,0]
[null,{"$f":"IF(A65=\"\",\"\",VLOOKUP(A65,'Rennerslijst Giro'!A65:C1039,2))","v":""},null,null,null,null,null,null,null,null,null,null,null,null,null,null,null,null,null,null,null,null,null,0]
[null,{"$f":"IF(A66=\"\",\"\",VLOOKUP(A66,'Rennerslijst Giro'!A66:C1040,2))","v":""},null,null,null,null,null,null,null,null,null,null,null,null,null,null,null,null,null,null,null,null,null,0]
[null,{"$f":"IF(A67=\"\",\"\",VLOOKUP(A67,'Rennerslijst Giro'!A67:C1041,2))","v":""},null,null,null,null,null,null,null,null,null,null,null,null,null,null,null,null,null,null,null,null,null,{"$f":"SUM(C67:W67)","v":0}]
[null,{"$f":"IF(A68=\"\",\"\",VLOOKUP(A68,'Rennerslijst Giro'!A68:C1042,2))","v":""},null,null,null,null,null,null,null,null,null,null,null,null,null,null,null,null,null,null,null,null,null,0]
[null,{"$f":"IF(A69=\"\",\"\",VLOOKUP(A69,'Rennerslijst Giro'!A69:C1043,2))","v":""},null,null,null,null,null,null,null,null,null,null,null,null,null,null,null,null,null,null,null,null,null,0]
[null,{"$f":"IF(A70=\"\",\"\",VLOOKUP(A70,'Rennerslijst Giro'!A70:C1044,2))","v":""},null,null,null,null,null,null,null,null,null,null,null,null,null,null,null,null,null,null,null,null,null,0]
[null,{"$f":"IF(A71=\"\",\"\",VLOOKUP(A71,'Rennerslijst Giro'!A71:C1045,2))","v":""},null,null,null,null,null,null,null,null,null,null,null,null,null,null,null,null,null,null,null,null,null,0]
[null,{"$f":"IF(A72=\"\",\"\",VLOOKUP(A72,'Rennerslijst Giro'!A72:C1046,2))","v":""},null,null,null,null,null,null,null,null,null,null,null,null,null,null,null,null,null,null,null,null,null,0]
[null,{"$f":"IF(A73=\"\",\"\",VLOOKUP(A73,'Rennerslijst Giro'!A73:C1047,2))","v":""},null,null,null,null,null,null,null,null,null,null,null,null,null,null,null,null,null,null,null,null,null,0]
[null,{"$f":"IF(A74=\"\",\"\",VLOOKUP(A74,'Rennerslijst Giro'!A74:C1048,2))","v":""},null,null,null,null,null,null,null,null,null,null,null,null,null,null,null,null,null,null,null,null,null,0]
[null,{"$f":"IF(A75=\"\",\"\",VLOOKUP(A75,'Rennerslijst Giro'!A75:C1049,2))","v":""},null,null,null,null,null,null,null,null,null,null,null,null,null,null,null,null,null,null,null,null,null,0]
[null,{"$f":"IF(A76=\"\",\"\",VLOOKUP(A76,'Rennerslijst Giro'!A76:C1050,2))","v":""},null,null,null,null,null,null,null,null,null,null,null,null,null,null,null,null,null,null,null,null,null,0]
[null,{"$f":"IF(A77=\"\",\"\",VLOOKUP(A77,'Rennerslijst Giro'!A77:C1051,2))","v":""},null,null,null,null,null,null,null,null,null,null,null,null,null,null,null,null,null,null,null,null,null,0]
[null,{"$f":"IF(A78=\"\",\"\",VLOOKUP(A78,'Rennerslijst Giro'!A78:C1052,2))","v":""},null,null,null,null,null,null,null,null,null,null,null,null,null,null,null,null,null,null,null,null,null,0]
[null,{"$f":"IF(A79=\"\",\"\",VLOOKUP(A79,'Rennerslijst Giro'!A79:C1053,2))","v":""},null,null,null,null,null,null,null,null,null,null,null,null,null,null,null,null,null,null,null,null,null,0]
[null,{"$f":"IF(A80=\"\",\"\",VLOOKUP(A80,'Rennerslijst Giro'!A80:C1054,2))","v":""},null,null,null,null,null,null,null,null,null,null,null,null,null,null,null,null,null,null,null,null,null,0]
[null,{"$f":"IF(A81=\"\",\"\",VLOOKUP(A81,'Rennerslijst Giro'!A81:C1055,2))","v":""},null,null,null,null,null,null,null,null,null,null,null,null,null,null,null,null,null,null,null,null,null,0]
[null,{"$f":"IF(A82=\"\",\"\",VLOOKUP(A82,'Rennerslijst Giro'!A82:C1056,2))","v":""},null,null,null,null,null,null,null,null,null,null,null,null,null,null,null,null,null,null,null,null,null,0]
[null,{"$f":"IF(A83=\"\",\"\",VLOOKUP(A83,'Rennerslijst Giro'!A83:C1057,2))","v":""},null,null,null,null,null,null,null,null,null,null,null,null,null,null,null,null,null,null,null,null,null,0]
[null,{"$f":"IF(A84=\"\",\"\",VLOOKUP(A84,'Rennerslijst Giro'!A84:C1058,2))","v":""},null,null,null,null,null,null,null,null,null,null,null,null,null,null,null,null,null,null,null,null,null,0]
[null,{"$f":"IF(A85=\"\",\"\",VLOOKUP(A85,'Rennerslijst Giro'!A85:C1059,2))","v":""},null,null,null,null,null,null,null,null,null,null,null,null,null,null,null,null,null,null,null,null,null,0]
[null,{"$f":"IF(A86=\"\",\"\",VLOOKUP(A86,'Rennerslijst Giro'!A86:C1060,2))","v":""},null,null,null,null,null,null,null,null,null,null,null,null,null,null,null,null,null,null,null,null,null,0]
[null,{"$f":"IF(A87=\"\",\"\",VLOOKUP(A87,'Rennerslijst Giro'!A87:C1061,2))","v":""},null,null,null,null,null,null,null,null,null,null,null,null,null,null,null,null,null,null,null,null,null,0]
[null,{"$f":"IF(A88=\"\",\"\",VLOOKUP(A88,'Rennerslijst Giro'!A88:C1062,2))","v":""},null,null,null,null,null,null,null,null,null,null,null,null,null,null,null,null,null,null,null,null,null,0]
[null,{"$f":"IF(A89=\"\",\"\",VLOOKUP(A89,'Rennerslijst Giro'!A89:C1063,2))","v":""},null,null,null,null,null,null,null,null,null,null,null,null,null,null,null,null,null,null,null,null,null,0]
[null,{"$f":"IF(A90=\"\",\"\",VLOOKUP(A90,'Rennerslijst Giro'!A90:C1064,2))","v":""},null,null,null,null,null,null,null,null,null,null,null,null,null,null,null,null,null,null,null,null,null,0]
[null,{"$f":"IF(A91=\"\",\"\",VLOOKUP(A91,'Rennerslijst Giro'!A91:C1065,2))","v":""},null,null,null,null,null,null,null,null,null,null,null,null,null,null,null,null,null,null,null,null,null,0]
[null,{"$f":"IF(A92=\"\",\"\",VLOOKUP(A92,'Rennerslijst Giro'!A92:C1066,2))","v":""},null,null,null,null,null,null,null,null,null,null,null,null,null,null,null,null,null,null,null,null,null,0]
[null,{"$f":"IF(A93=\"\",\"\",VLOOKUP(A93,'Rennerslijst Giro'!A93:C1067,2))","v":""},null,null,null,null,null,null,null,null,null,null,null,null,null,null,null,null,null,null,null,null,null,0]
[null,{"$f":"IF(A94=\"\",\"\",VLOOKUP(A94,'Rennerslijst Giro'!A94:C1068,2))","v":""},null,null,null,null,null,null,null,null,null,null,null,null,null,null,null,null,null,null,null,null,null,0]
[null,{"$f":"IF(A95=\"\",\"\",VLOOKUP(A95,'Rennerslijst Giro'!A95:C1069,2))","v":""},null,null,null,null,null,null,null,null,null,null,null,null,null,null,null,null,null,null,null,null,null,0]
[null,{"$f":"IF(A96=\"\",\"\",VLOOKUP(A96,'Rennerslijst Giro'!A96:C1070,2))","v":""},null,null,null,null,null,null,null,null,null,null,null,null,null,null,null,null,null,null,null,null,null,0]
[null,{"$f":"IF(A97=\"\",\"\",VLOOKUP(A97,'Rennerslijst Giro'!A97:C1071,2))","v":""},null,null,null,null,null,null,null,null,null,null,null,null,null,null,null,null,null,null,null,null,null,0]
[null,{"$f":"IF(A98=\"\",\"\",VLOOKUP(A98,'Rennerslijst Giro'!A98:C1072,2))","v":""},null,null,null,null,null,null,null,null,null,null,null,null,null,null,null,null,null,null,null,null,null,0]
[null,{"$f":"IF(A99=\"\",\"\",VLOOKUP(A99,'Rennerslijst Giro'!A99:C1073,2))","v":""},null,null,null,null,null,null,null,null,null,null,null,null,null,null,null,null,null,null,null,null,null,0]
[null,{"$f":"IF(A100=\"\",\"\",VLOOKUP(A100,'Rennerslijst Giro'!A100:C1074,2))","v":""},null,null,null,null,null,null,null,null,null,null,null,null,null,null,null,null,null,null,null,null,null,0]